{"text_format":"1","workbook":"xlsx","n_sheets":4,"sheets":["Приџ,прим vs Расх,изд","Оптшти део - (6)","По основ. нам.","ПО КОРИСНИЦИМА"],"not_rendered":{"charts":1,"images":0,"macros":1,"external_links":0,"defined_names":3,"comments":2,"pivot_tables":0},"unopened":[],"bounds":{"document_bytes":16777216,"sheet_cells":100000,"rows_first":2000,"rows_last":500,"rows_between":2000,"halvings":0,"cell_chars":16384,"cell_head_chars":4096},"cells_cut":0,"cells_raw":0,"read":"whole","date_system":"1900"}

{"sheet":"Приџ,прим vs Расх,изд","index":0,"n_rows":47,"n_cols":6,"rows_kept":47,"cut":false,"hidden":true,"merged":[]}
["Р.бр.","ОПИС","Шифра економске класификације","Средства из буџета","Средства из осталих извора","Укупно"]
[1,2,3,4,5,6]
["I","УКУПНИ ПРИХОДИ И ПРИМАЊА ОД ПРОДАЈЕ НЕФИНАНСИЈСКЕ ИМОВИНЕ","7+8"]
["1.","Порески приходи",71]
["1.1.","Порез на доходак, добит и капиталне добитке (осим самодоприноса)",711]
["1.2.","Самодопринос",711180]
["1.3.","Порез на имовину",713]
["1.6.","Остали порески приходи"]
["2.","Непорески приходи ",74]
["2.1","Накнада за коришћење природних добара",741510]
["2.2","Накнада за коришћење шумског и пољопривредног земљишта",741520]
["2.2","Накнада за коришћење грађевинског земљишта",741534]
["2.3","Накнада за коришћење природног лековитог фактора",741542]
["2.4","Приход од имовине који припада имаоцима полисе осигурања",741411]
["2.5","Накнада за обавезни здравствени преглед биља",742252]
["2.6","Накнада за уређивање грађевинског земљишта",742253]
["2.7","Приходи настали продајом услуга корисника средстава буџета јединице локлане самоуправе чије је пружање уговорено са физичким и правним лицима",742340]
["2.8","Остали непорески приходи"]
["3.","Донације","731+732"]
["4.","Трансфери",733]
["5.","Меморандумске ставке за рефундацију расхода",771]
["6.","Примања од продаје нефинансијске имовине",8]
["II","УКУПНИ РАСХОДИ И ИЗДАЦИ ЗА НАБАВКУ НЕФИНАНСИЈСКЕ ИМОВИНЕ","4+5"]
["1.","Текући расходи","4 - 463"]
["1.1.","Расходи за запослене",41]
["1.2.","Коришћење роба и услуга",42]
["1.3.","Употреба основних средстава",43]
["1.4.","Отплата камата",44]
["1.5.","Субвенције",45]
["1.6.","Социјална заштита из буџета",47]
["1.7.","Остали расходи","48+49"]
["2.","Трансфери",463]
["3.","Издаци за набавку нефинансијске имовине",5]
["4.","Издаци за набавку финансијске имовине (осим 6211)",62]
["III","ПРИМАЊА ОД ПРОДАЈЕ ФИНАНСИЈСКЕ ИМОВИНЕ И ЗАДУЖИВАЊА",9]
["1.","Задуживање",91]
["1.1.","Задуживање код домаћих кредитора",911]
["1.2.","Задуживање код страних кредитора",912]
["2.","Примања по основу отплате кредита и продаје финансијске имовине",92]
["IV","ОТПЛАТА ДУГА И НАБАВКА ФИНАНСИЈСКЕ ИМОВИНЕ",6]
["1.","Отплата дуга",61]
["1.1.","Отплата дуга домаћим кредиторима",611]
["1.2.","Отплата дуга страним кредиторима",612]
["1.3.","Отплата дуга по гаранцијама",613]
["2.","Набавка финансијске имовине",6211]
[]
["V","НЕРАСПОРЕЂЕНИ ВИШАК ПРИХОДА ИЗ РАНИЈИХ ГОДИНА",3]

{"sheet":"Оптшти део - (6)","index":1,"n_rows":95,"n_cols":8,"rows_kept":95,"cut":false,"hidden":false,"merged":[[0,3,0,5],[0,6,1,6],[0,0,1,0],[0,1,1,1],[0,2,1,2]]}
["Класа/Категорија/Група","Конто","ВРСТЕ ПРИХОДА И ПРИМАЊА","План за 2022. ",null,null,"УКУПНА ЈАВНА СРЕДСТВА"]
[null,null,null,"Средства из буџета","Структ-ура %","Средства из осталих извора финан. буџ. корисника",null,"%"]
[null,"321121","Вишак прихода и примања - суфицит",null,{"$f":"IFERROR(D3/$D$95,\"-\")","v":0},650000000,650000000,{"$f":"G3/G95*100","v":19.490254872563717}]
["700000",null,"ТЕКУЋИ ПРИХОДИ ",{"$f":"SUM(D5,D41,D50,D81,D84)","v":2665093000},0.99943748446050817,{"$f":"F41+F74+F81","v":18407000},{"$f":"G5+G41+G50+G81","v":2683500000},{"$f":"G4/G95*100","v":80.464767616191907}]
[710000,null,"ПОРЕЗИ",{"$f":"D6+D18+D20+D26+D37+D39","v":909142500},0.34093785590826947,{"$f":"SUM(F6,F20,F26,F39)","v":0},{"$f":"G6+G18+G20+G26+G37+G39","v":909142500},{"$f":"G5/G95*100","v":27.260644677661173}]
[711000,null,"ПОРЕЗ НА ДОХОДАК, ДОБИТ И КАПИТАЛНЕ ДОБИТКЕ",{"$f":"D7+D8+D9+D10+D11+D12+D13+D14+D15+D16+D17","v":302282000},0.11335888153910252,{"$f":"SUM(F7:F16)","v":0},{"$f":"G7+G8+G9+G10+G11+G12+G13+G14+G15+G16+G17","v":302282000},{"$f":"G6/G95*100","v":9.0639280359820091}]
[null,711111,"Порез на зараде",205000000,7.6877123730543062E-2,null,{"$f":"D7+F7","v":205000000},{"$f":"G7/G95*100","v":6.1469265367316339}]
[null,711121,"Порез на приходе од самосталних делатности који се плаћа према стварно оствареном приходу, по решењу Пореске управе",150000,5.6251553949177843E-5,null,{"$f":"D8+F8","v":150000},{"$f":"G8/G95*100","v":4.4977511244377816E-3}]
[null,711122,"Порез на приходе од самосталних делатности који се плаћа према паушално утврђеном приходу, по решењу Пореске управе",17000000,6.3751761142401562E-3,null,{"$f":"D9+F9","v":17000000},{"$f":"G9/G95*100","v":0.50974512743628186}]
[null,711123,"Порез на приходе од самосталних делатности који се плаћа према стварно оствареном приходу самоопорезивањем",44000000,1.6500455825092169E-2,null,44000000,{"$f":"G10/G95*100","v":1.3193403298350825}]
[null,711143,"Порез на приходе од непокретности",1000,3.7501035966118566E-7,null,1000,{"$f":"G11/G95*100","v":2.9985007496251871E-5}]
[null,711145,"Порез на приходе од давања у закуп покретних ствари - по основу самоопорезивања и по решењу Пореске управе ",400000,1.5000414386447426E-4,null,400000,{"$f":"G12/G95*100","v":1.1994002998500749E-2}]
[null,711147,"Порез на земљиште",200000,7.5002071932237129E-5,null,200000,{"$f":"G13/G95*100","v":5.9970014992503746E-3}]
[null,711181,"Самодопринос према зарадама запослених",1000,3.7501035966118566E-7,null,1000,0]
[null,711184,"Самодопринос из прихода од самосталне делатности",30000,1.1250310789835569E-5,null,30000,{"$f":"G15/G95*100","v":8.9955022488755621E-4}]
[null,711191,"Порез на друге приходе",33000000,1.2375341868819126E-2,null,33000000,{"$f":"G16/G95*100","v":0.98950524737631185}]
[null,711193,"Порез на приходе спортиста и спортских стручнјака",2500000,9.3752589915296414E-4,null,2500000,{"$f":"G17/G95*100","v":7.4962518740629688E-2}]
[712000,null,"ПОРЕЗ НА ФОНД ЗАРАДА",{"$f":"D19","v":500},1.8750517983059283E-7,null,500,0]
[null,712112,"Порез на фонд зарада",500,1.8750517983059283E-7,null,500,0]
[713000,null,"ПОРЕЗ НА ИМОВИНУ",{"$f":"D21+D22+D23+D24+D25","v":457500000},0.17156723954499242,{"$f":"SUM(F21:F25)","v":0},{"$f":"G21+G22+G23+G24+G25","v":457500000},{"$f":"G20/G95*100","v":13.718140929535233}]
[null,713121,"Порез на имовину (осим на земљиште, акције и уделе) од физичких лица",140000000,5.2501450352565988E-2,null,{"$f":"D21+F21","v":140000000},{"$f":"G21/G95*100","v":4.1979010494752629}]
[null,713122,"Порез на имовину (осим на земљиште, акције и уделе) од правних лица",150000000,5.6251553949177843E-2,null,150000000,{"$f":"G22/G95*100","v":4.497751124437781}]
[null,713311,"Порез на наслеђе и поклон по решењу Пореске управе",14000000,5.2501450352565992E-3,null,14000000,{"$f":"G23/G95*100","v":0.41979010494752622}]
[null,713421,"Порез на пренос апсолутних права на непокретности, по решењу Пореске управе",150000000,0.83,null,150000000,{"$f":"G24/G95*100","v":4.497751124437781}]
[null,713423,"Порез на пренос апсолутних права на моторним возилима, пловилима и ваздухопловима, по решењу Пореске управе        ",3500000,{"$f":"IFERROR(D25/$D$95,\"-\")","v":1.3125362588141498E-3},null,3500000,{"$f":"G25/G95*100","v":0.10494752623688156}]
[714000,null,"ПОРЕЗ НА ДОБРА И УСЛУГЕ",{"$f":"D27+D28+D29+D30+D31+D32+D33+D34+D35+D36","v":129860000},4.8698845305601569E-2,{"$f":"SUM(F27:F34)","v":0},{"$f":"G27+G28+G29+G30+G31+G32+G33+G34+G35+G36","v":129860000},{"$f":"G26/G95*100","v":3.8938530734632688}]
[null,714431,"Комунална такса за коришћење рекламних паноа, укључујући и истицање и исписивање фирме ван пословног простора на објектима и просторима који припадају јединици локалне самоуправе(коловози, тротоари, зелене површине, бандере и сл.)  ",300000,1.1250310789835569E-4,null,{"$f":"D27+F27","v":300000},{"$f":"G27/G95*100","v":8.9955022488755632E-3}]
[null,714513,"Комунална такса за држање моторних друмских и прикључних возила, осим пољопривредних возила и машина",13000000,4.8751346755954135E-3,null,13000000,{"$f":"G28/G95*100","v":0.38980509745127434}]
[null,714543,"Накнада за промену намене обрадивог пољопривредног земљишта",6000000,2.2500621579671139E-3,null,6000000,{"$f":"G29/G95*100","v":0.17991004497751123}]
[null,714548,"Накнада за супстанце које оштећују озонски омотач",1500000,5.6251553949177848E-4,null,1500000,{"$f":"G30/G95*100","v":4.4977511244377807E-2}]
[null,714549,"Накнада од емисије СО2, НО2, прашкастих материја",60000,2.2500621579671138E-5,null,60000,0]
[null,714552,"Боравишна такса - правна лица",60000000,2.2500621579671139E-2,null,60000000,{"$f":"G32/G95*100","v":1.7991004497751124}]
[null,714553,"Боравишна такса - физичка лица у пазшалном износу по лежају",10000000,3.7501035966118566E-3,null,10000000,0.39]
[null,714562,"Посебна накнада за заштиту и унапређење животне средине",7500000,2.8125776974588924E-3,null,7500000,{"$f":"G34/G95*100","v":0.22488755622188905}]
[null,714565,"Накнада за коришћење простора на јавној површини",30000000,1.125031078983557E-2,null,30000000,0.16]
[null,714566,"Накнада за коришћење јавне површине за оглашавање",1500000,5.6251553949177848E-4,null,1500000,0.04]
["715000",null,"ПОРЕЗ НА МЕЂУНАРОДНУ ТРГОВИНУ И ТРАНСАКЦИЈЕ",{"$f":"D38","v":500000},null,null,500000,0.03]
[null,715411,"Добит по основу разлике између куповног и продајног девизног курса",500000,null,null,500000,0.03]
["716000",null,"ДРУГИ ПОРЕЗИ",{"$f":"SUM(D40:D40)","v":19000000},{"$f":"IFERROR(D39/$D$95,\"-\")","v":7.1251968335625275E-3},{"$f":"SUM(F40:F40)","v":0},{"$f":"D39+F39","v":19000000},{"$f":"G39/G95*100","v":0.56971514242878563}]
[null,"716111","Комунална такса за истицање фирме на пословном простору",19000000,{"$f":"IFERROR(D40/$D$95,\"-\")","v":7.1251968335625275E-3},null,19000000,0.64]
["730000",null,"ДОНАЦИЈЕ И ТРАНСФЕРИ",{"$f":"SUM(D42,D45)","v":75432192},{"$f":"IFERROR(D41/$D$95,\"-\")","v":2.828785345195161E-2},{"$f":"F42+F45","v":18107000},{"$f":"G42+G45","v":93539192},{"$f":"G41/G95*100","v":2.8047733733133433}]
["732000",null,"ДОНАЦИЈЕ И ПОМОЋИ ОД МЕЂ. ОРГАНИЗАЦИЈА",{"$f":"D43+D44","v":0},{"$f":"IFERROR(D42/$D$95,\"-\")","v":0},{"$f":"F43+F44","v":0},{"$f":"G43+G44","v":0},0]
[null,"732341","Текуће помоћи ЕУ у корист нивоа општине",null,{"$f":"IFERROR(D43/$D$95,\"-\")","v":0},null,{"$f":"F43","v":0},0]
[null,"732441","Капиталне помоћи ЕУ у корист нивоа општине",0,null,null,{"$f":"D44+F44","v":0},0]
["733000",null,"ТРАНСФЕРИ ОД ДРУГИХ НИВОА ВЛАСТИ",{"$f":"SUM(D46:D49)","v":75432192},{"$f":"IFERROR(D45/$D$95,\"-\")","v":2.828785345195161E-2},{"$f":"F46+F47+F48+F49","v":18107000},{"$f":"G46+G47+G48+G49","v":93539192},{"$f":"G45/G95*100","v":2.8047733733133433}]
[null,733151,"Ненаменски трансфери од Републике у корист нивоа општина",75432192,2.828785345195161E-2,null,75432192,{"$f":"G46/G95*100","v":2.2618348425787107}]
[null,733152,"Други текући трансфери од Републике у корист нивоа општина",0,0,null,{"$f":"F47","v":0},0]
[null,"733154","Текући наменски трансфери, у ужем смислу, од Републике у корист нивоа општина",0,0,7700000,{"$f":"F48","v":7700000},{"$f":"G48/G95*100","v":0.23088455772113944}]
[null,"733251","Капитални наменски трансфери, у ужем смислу, од Републике у корист нивоа општине",0,0,10407000,{"$f":"F49","v":10407000},0.67]
["740000",null,"ДРУГИ ПРИХОДИ",{"$f":"SUM(D51,D61,D70,D74,D77)","v":1678468308},0.62944300386298169,{"$f":"F61+F77","v":0},{"$f":"G51+G61+G70+G74+G77","v":1678618308},{"$f":"G50/G95*100","v":50.333382548725638}]
["741000",null,"ПРИХОДИ ОД ИМОВИНЕ",{"$f":"D52+D53+D54+D55+D56+D57+D58+D59+D60","v":1550361000},0.58140143621467544,{"$f":"SUM(F52:F59)","v":0},{"$f":"G52+G53+G54+G55+G56+G57+G58+G59+G60","v":1550361000},{"$f":"G51/G95*100","v":46.487586206896552}]
[null,"741151","Приходи буџета општине од камата на средства консолидованог рачуна трезора укључена у депозит банака",1000,3.7501035966118566E-7,null,{"$f":"D52+F52","v":1000},0]
[null,"741511","Накнада за коришћење минералних сировина",3500000,1.3125362588141498E-3,null,{"$f":"D53+F53","v":3500000},{"$f":"G53/G95*100","v":0.10494752623688156}]
[null,"741522","Средства остварена од давања у закуп пољопривредног земљишта",1500000,5.6251553949177848E-4,null,1500000,0.04]
[null,"741526","Накнада за коришћење шумског и пољопривредног земљишта",50000,1.8750517983059282E-5,null,50000,{"$f":"G55/G95*100","v":1.4992503748125937E-3}]
[null,"741531","Комунална такса за коришћење простора на јавним површинама или испред пословног простора у пословне сврхе, осим ради продаје штампе, књига и других публикација, производа старих и уметничких заната и домаће радиности",1500000,5.6251553949177848E-4,null,1500000,{"$f":"G56/G95*100","v":4.4977511244377807E-2}]
[null,"741532","Комунална такса за коришћење простора за паркирање друмских моторних и прикључних возила на уређеним и обележеним местима",2500000,9.3752589915296414E-4,null,2500000,{"$f":"G57/G95*100","v":7.4962518740629688E-2}]
[null,"741534","Накнада за коришћење грађевинског земљишта",10000,3.7501035966118566E-6,null,10000,0]
[null,"741538","Допринос за уређивање грађевинског земљишта",1540000000,0.57751595387822585,null,1540000000,43.87]
[null,"741596","Накнада за коришћење дрвета",1300000,4.8751346755954134E-4,null,1300000,0.03]
["742000",null,"ПРИХОДИ ОД ПРОДАЈЕ ДОБАРА И УСЛУГА",{"$f":"D62+D63+D64+D65+D66+D67+D68+D69","v":107701000},4.0388990745869352E-2,{"$f":"F62+F63+F69","v":0},{"$f":"G62+G63+G64+G65+G66+G67+G68+G69","v":107701000},{"$f":"G61/G95*100","v":3.2294152923538233}]
[null,"742151","Приходи од продаје добара и услуга од стране тржишних организација  у корист нивоа општине",39000000,null,0,{"$f":"D62+F62","v":39000000},{"$f":"G62/G95*100","v":1.1694152923538232}]
[null,"742152","Приходи од давања у закуп, односно на коришћење непокретности у државној својини које користе општине и индиректни корисници њиховог буџета",6000000,{"$f":"IFERROR(D63/$D$95,\"-\")","v":2.2500621579671139E-3},0,{"$f":"D63+F63","v":6000000},{"$f":"G63/G95*100","v":0.17991004497751123}]
[null,"742154","Накнада по основу конверзије права коришћења  у право својине у корист нивоа општине",1000,3.7501035966118566E-7,null,{"$f":"D64+F64","v":1000},0]
[null,"742156","Приходи остварени по основу пружања услуга боравка деце у предшколским установама у корист нивоа општине",17000000,6.3751761142401562E-3,null,17000000,{"$f":"G65/G95*100","v":0.50974512743628186}]
[null,742251,"Општинске административне таксе",30000000,1.125031078983557E-2,null,30000000,{"$f":"G66/G95*100","v":0.8995502248875562}]
[null,742253,"Накнада за уређивање грађевинског земљишта",11500000,4.3126191361036346E-3,null,11500000,{"$f":"G67/G95*100","v":0.34482758620689657}]
[null,742255,"Такса за озакоњење објеката у корист нивоа општине",3500000,1.3125362588141498E-3,null,3500000,{"$f":"G68/G95*100","v":0.10494752623688156}]
[null,742351,"Приходи које својом делатношћу остваре органи и организације општине ",700000,"                                                                                                                                                                                                                                                                                                                                                                                                                                 ",0,700000,{"$f":"G69/G95*100","v":2.0989505247376312E-2}]
["743000",null,"НОВЧАНЕ КАЗНЕ И ОДУЗЕТА ИМОВИНСКА КОРИСТ",{"$f":"D71+D72+D73","v":11300000},{"$f":"IFERROR(D70/$D$95,\"-\")","v":4.2376170641713973E-3},{"$f":"SUM(F71:F72)","v":0},11300000,{"$f":"G70/G95*100","v":0.33883058470764615}]
[null,"743324","Приходи од новчаних казни за прекршаје, предвиђене прописима о безбедности саобраћаја на путевима",8500000,3.1875880571200781E-3,null,8500000,{"$f":"G71/G95*100","v":0.25487256371814093}]
[null,"743351","Приходи од новчаних казни изречених у прекршајном поступку за прекршаје прописане актом скупштине општине",2500000,9.3752589915296414E-4,null,2500000,0]
[null,"743353","Приходи од новчаних казни за прекршаје, предвиђене прописима о безбедности саобраћаја на путевима",300000,1.1250310789835569E-4,null,300000,0]
["744000",null,"ДОБРОВОЉНИ ТРАНСФЕРИ ОД ФИЗИЧКИХ И ПРАВНИХ ЛИЦА",{"$f":"SUM(D75:D76)","v":0},0,{"$f":"SUM(F75:F76)","v":150000},150000,0]
[null,"744151","Текући добровољни трансфери од физичких и правних лица у корист нивоа општина",0,0,null,0,0]
[null,"744251","Капитални добровољни трансфери од физичких и правних лица у корист нивоа општина",null,0,150000,150000,0]
["745000",null,"МЕШОВИТИ И НЕОДРЕЂЕНИ ПРИХОДИ",{"$f":"D78+D79+D80","v":9106308},3.414959838265532E-3,{"$f":"SUM(F78:F80)","v":0},9106308,{"$f":"G77/G95*100","v":0.2730527136431784}]
[null,"745151","Остали приходи у корист нивоа општина",9106308,3.414959838265532E-3,0,9106308,0.24]
[null,"745152","Закупнина за стан у државној својини у корист нивоа општина",0,0,null,0,0]
[null,"745153","Део добити јавног предузећа према одлуци управног одбора јавног предузећа у корист нивоа општина",0,0,null,0,0]
["772000",null,"МЕМОРАНДУМСКЕ СТАВКЕ ЗА РЕФУНДАЦИЈУ РАСХОДА",{"$f":"D82+D83","v":2050000},7.6877123730543053E-4,{"$f":"SUM(F82)","v":150000},{"$f":"G82+G83","v":2200000},{"$f":"G81/G95*100","v":6.5967016491754127E-2}]
[null,"772111","Меморандумске ставке за рефундацију расхода буџета Републике из претходне године",50000,1.8750517983059282E-5,150000,200000,0.04]
[null,"772114","Mеморандумске ставке за рефундацију расхода буџета општине из претходне године",2000000,{"$f":"D83/D94*100","v":7.5002071932237124E-2},null,{"$f":"D83","v":2000000},0.04]
["790000",null,"ПРИХОДИ ИЗ БУЏЕТА",{"$f":"SUM(D85)","v":0},{"$f":"IFERROR(D84/$D$95,\"-\")","v":0},{"$f":"SUM(F85)","v":0},0,0]
[null,"791110","Приходи из буџета",null,0,null,0,0]
["800000",null,"ПРИМАЊА ОД ПРОДАЈЕ НЕФИНАНСИЈСКЕ ИМОВИНЕ",{"$f":"D87+D91","v":1500000},5.6251553949177848E-4,{"$f":"F87+F92","v":0},1500000,{"$f":"G86/G95*100","v":4.4977511244377807E-2}]
[810000,null,"ПРИМАЊА ОД ПРОДАЈЕ ОСНОВНИХ СРЕДСТАВА",{"$f":"D88+D89+D90","v":900000},3.3750932369506706E-4,{"$f":"SUM(F88:F89)","v":0},900000,0]
[null,811151,"Примања од продаје непокретности у корист нивоа општине",null,0,null,0,0]
[null,812151,"Примања од продаје покретних ствари у корист нивоа општине ",900000,3.3750932369506706E-4,null,900000,0]
[null,813151,"Примања од продаје осталих основних средстава у корист нивоа општине",0,null,null,0,0]
["820000",null,"ПРИМАЊА ОД ПРОДАЈЕ ЗАЛИХА",600000,null,null,600000,0.02]
[823000,null,"ПРИМАЊА ОД ПРОДАЈЕ РОБЕ ЗА ДАЉУ ПРОДАЈУ",{"$f":"SUM(D93)","v":600000},{"$f":"IFERROR(D92/$D$95,\"-\")","v":2.2500621579671137E-4},{"$f":"SUM(F93)","v":0},600000,{"$f":"G92/G95*100","v":1.7991004497751126E-2}]
[null,823151,"Примања од продаје робе за даљу продају у корист нивоа општине",600000,{"$f":"IFERROR(D93/$D$95,\"-\")","v":2.2500621579671137E-4},0,600000,0.05]
[null,"7+8+9","ТЕКУЋИ ПРИХОДИ И ПРИМАЊА ОД ЗАДУЖИВАЊА И ПРОДАЈЕ ФИН. ИМОВИНЕ",{"$f":"D4+D86","v":2666593000},{"$f":"IFERROR(D94/$D$95,\"-\")","v":1},{"$f":"F42+F45+F74+F81","v":18407000},{"$f":"G4+G86","v":2685000000},{"$f":"G94/G95*100","v":80.50974512743629}]
[null,"3+7+8+9","УКУПНО ПРЕНЕТА СРЕДСТВА, ТЕКУЋИ ПРИХОДИ И ПРИМАЊА",{"$f":"D94","v":2666593000},{"$f":"IFERROR(D95/$D$95,\"-\")","v":1},{"$f":"F3+F94","v":668407000},{"$f":"G3+G4+G86","v":3335000000},100]

{"sheet":"По основ. нам.","index":2,"n_rows":85,"n_cols":7,"rows_kept":85,"cut":false,"hidden":false,"merged":[[0,0,0,4]]}
["       ОПШТИ ДЕО  -    ИЗДАЦИ ПО ОСНОВНИМ НАМЕНАМА"]
[]
["Екон. клас.","ВРСТЕ РАСХОДА И ИЗДАТАКА","Средства из буџета","Структура         %","Средства из осталих извора ","Укупна јавна средства","%"]
["1",2,3,4,5,6,7]
["400","ТЕКУЋИ РАСХОДИ",{"$f":"C6+C13+C26+C31+C37+C44+C46+C53","v":1718463000},{"$f":"IFERROR(C5/$C$84,\"-\")","v":0.64444142769444002},{"$f":"SUM(E6,E13,E20,E26,E31,E37,E44,E46,E53)","v":282850000},{"$f":"F6+F13+F26+F31+F37+F44+F46+F53","v":2001313000},{"$f":"F5/Ukupno_izdaci*100","v":60.009385307346328}]
["410","РАСХОДИ ЗА ЗАПОСЛЕНЕ",{"$f":"C7+C8+C9+C10+C11+C12","v":303687000},0.11388577109442648,{"$f":"SUM(E7:E12)","v":150000},{"$f":"C6+E6","v":303837000},9.11055472263868]
[411,"Плате и додаци запослених",223365000,null,null,{"$f":"C7","v":223365000},{"$f":"F7/Ukupno_izdaci*100","v":6.6976011994002995}]
[412,"Социјални доприноси на терет послодавца",36081000,null,null,{"$f":"C8","v":36081000},1.0818890554722638]
[413,"Накнаде у натури (превоз)",2760000,null,null,{"$f":"C9","v":2760000},8.2758620689655171E-2]
["414","Социјална давања запосленима",27370000,null,150000,{"$f":"C10+E10","v":27520000},0.8251874062968515]
["415","Накнаде за запослене",10961000,null,null,{"$f":"C11","v":10961000},0.32866566716641682]
["416","Награде,бонуси и остали посебни расходи",3150000,null,null,{"$f":"C12","v":3150000},9.4452773613193403E-2]
["420","КОРИШЋЕЊЕ УСЛУГА И РОБА",{"$f":"C14+C15+C16+C17+C18+C19","v":658709000},null,{"$f":"E14+E16+E17+E18+E19","v":281200000},{"$f":"F14+F15+F16+F17+F18+F19","v":939909000},28.1831784107946]
["421","Стални трошкови",95466000,null,40000000,{"$f":"C14+E14","v":135466000},4.0619490254872561]
[422,"Трошкови путовања",3750000,null,null,{"$f":"C15","v":3750000},0.11244377811094453]
[423,"Услуге по уговору",345566000,null,95000000,{"$f":"C16+E16","v":440566000},13.210374812593702]
["424","Специјализоване услуге",64040000,null,30000000,{"$f":"C17+E17","v":94040000},2.819790104947526]
["425","Текуће поправке и одржавање (услуге и мат)",112162000,null,110000000,{"$f":"C18+E18","v":222162000},6.661529235382309]
["426","Материјал",37725000,null,6200000,{"$f":"C19+E19","v":43925000},1.3170914542728636]
["430","УПОТРЕБА ОСНОВНИХ СРЕДСТАВА",{"$f":"SUM(C21:C25)","v":0},0,{"$f":"SUM(E21:E25)","v":0},{"$f":"C20+E20","v":0},0]
[431,"Амортизација некретнина и опреме;",{"$f":"SUMIF('ПО КОРИСНИЦИМА'!$F$4:$F$2858,'По основ. нам.'!A21,'ПО КОРИСНИЦИМА'!$H$4:$H$2858)","v":0},0,{"$f":"SUMIF('ПО КОРИСНИЦИМА'!$F$4:$F$2858,'По основ. нам.'!A21,'ПО КОРИСНИЦИМА'!$I$4:$I$2858)","v":0},0,0]
[432,"Амортизација култивисане имовине;",{"$f":"SUMIF('ПО КОРИСНИЦИМА'!$F$4:$F$2858,'По основ. нам.'!A22,'ПО КОРИСНИЦИМА'!$H$4:$H$2858)","v":0},0,{"$f":"SUMIF('ПО КОРИСНИЦИМА'!$F$4:$F$2858,'По основ. нам.'!A22,'ПО КОРИСНИЦИМА'!$I$4:$I$2858)","v":0},0,0]
[433,"Употреба драгоцености;",{"$f":"SUMIF('ПО КОРИСНИЦИМА'!$F$4:$F$2858,'По основ. нам.'!A23,'ПО КОРИСНИЦИМА'!$H$4:$H$2858)","v":0},0,{"$f":"SUMIF('ПО КОРИСНИЦИМА'!$F$4:$F$2858,'По основ. нам.'!A23,'ПО КОРИСНИЦИМА'!$I$4:$I$2858)","v":0},0,0]
[434,"Употреба природне имовине;",{"$f":"SUMIF('ПО КОРИСНИЦИМА'!$F$4:$F$2858,'По основ. нам.'!A24,'ПО КОРИСНИЦИМА'!$H$4:$H$2858)","v":0},0,{"$f":"SUMIF('ПО КОРИСНИЦИМА'!$F$4:$F$2858,'По основ. нам.'!A24,'ПО КОРИСНИЦИМА'!$I$4:$I$2858)","v":0},0,0]
[435,"Амортизација нематеријалне имовине",{"$f":"SUMIF('ПО КОРИСНИЦИМА'!$F$4:$F$2858,'По основ. нам.'!A25,'ПО КОРИСНИЦИМА'!$H$4:$H$2858)","v":0},0,{"$f":"SUMIF('ПО КОРИСНИЦИМА'!$F$4:$F$2858,'По основ. нам.'!A25,'ПО КОРИСНИЦИМА'!$I$4:$I$2858)","v":0},0,0]
["440","ОТПЛАТА КАМАТА",{"$f":"SUM(C27:C30)","v":4050000},1.518791956627802E-3,{"$f":"SUM(E27:E30)","v":0},4050000,0.12143928035982009]
[441,"Отплата домаћих камата;",4000000,null,null,{"$f":"C27","v":4000000},0.11994002998500748]
[442,"Отплата страних камата;",null,null,null,null,0]
[443,"Отплата камата по гаранцијама",null,null,null,null,0]
[444,"Пратећи трошкови задуживања",50000,null,null,{"$f":"C30","v":50000},1.4992503748125937E-3]
["450","СУБВЕНЦИЈЕ",{"$f":"SUM(C32:C36)","v":376803000},0.14130502855141372,{"$f":"SUM(E32:E36)","v":0},376803000,11.298440779610194]
["4511","Текуће субвенције јавним нефинансијским предузећима и организацијама                                                                ",155003000,null,null,{"$f":"C32","v":155003000},4.6477661169415292]
["4512","Капиталне субвенције јавним нефинансијским предузећима и организацијама                                                                ",201800000,null,null,{"$f":"C33","v":201800000},6.0509745127436281]
["452","Субвенције приватним финансијским институцијама;",null,null,null,null,0]
[453,"Субвенције јавним финансијским институцијама;",null,null,null,null,{"$f":"F35/Ukupno_izdaci*100","v":0}]
[454,"Субвенције приватним предузећима",20000000,null,null,{"$f":"C36","v":20000000},0.59970014992503751]
["460","ДОНАЦИЈЕ И ТРАНСФЕРИ",{"$f":"C40+C41+C42+C43","v":107660000},{"$f":"IFERROR(C37/$C$84,\"-\")","v":4.0373615321123248E-2},{"$f":"SUM(E38:E43)","v":0},107660000,3.2281859070464769]
[461,"Донације страним владама ",{"$f":"SUMIF('ПО КОРИСНИЦИМА'!$F$4:$F$2858,'По основ. нам.'!A38,'ПО КОРИСНИЦИМА'!$H$4:$H$2858)","v":0},0,{"$f":"SUMIF('ПО КОРИСНИЦИМА'!$F$4:$F$2858,'По основ. нам.'!A38,'ПО КОРИСНИЦИМА'!$I$4:$I$2858)","v":0},0,0]
[462,"Донације и дотације међународним организацијама",{"$f":"SUMIF('ПО КОРИСНИЦИМА'!$F$4:$F$2858,'По основ. нам.'!A39,'ПО КОРИСНИЦИМА'!$H$4:$H$2858)","v":0},0,{"$f":"SUMIF('ПО КОРИСНИЦИМА'!$F$4:$F$2858,'По основ. нам.'!A39,'ПО КОРИСНИЦИМА'!$I$4:$I$2858)","v":0},0,0]
[4631,"Текући трансфери осталим нивоима власти",73635000,null,null,{"$f":"C40","v":73635000},2.2079460269865065]
[4632,"Капитални трансфери осталим нивоима власти",16925000,null,null,{"$f":"C41","v":16925000},0.507496251874063]
[464,"Дотације организацијама обавезног социјалног осигурања",17100000,null,null,{"$f":"C42","v":17100000},0.51274362818590713]
[465,"Остале донације, дотације и трансфери ",null,0,0,0,0]
["470","СОЦИЈАЛНА ПОМОЋ",{"$f":"SUM(C45)","v":105900000},3.9713597088119557E-2,{"$f":"SUM(E45)","v":1500000},107400000,3.2203898050974509]
[472,"Накнаде за социјалну заштиту из буџета",105900000,null,1500000,{"$f":"C45+E45","v":107400000},3.2203898050974509]
["480","ОСТАЛИ РАСХОДИ",{"$f":"SUM(C47:C52)","v":126654000},4.7496562092527804E-2,{"$f":"SUM(E47:E52)","v":0},{"$f":"C46+E46","v":126654000},3.7977211394302852]
[481,"Дотације невладиним организацијама;",80180000,null,null,{"$f":"C47","v":80180000},2.4041979010494754]
[482,"Порези, обавезне таксе, казне и пенали;",9224000,null,null,{"$f":"C48","v":9224000},0.27658170914542729]
[483,"Новчане казне и пенали по решењу судова;",5950000,null,null,{"$f":"C49","v":5950000},0.17841079460269865]
[484,"Накнада штете за повреде или штету насталу услед елементарних непогода или других природних узрока;",1550000,null,null,{"$f":"C50","v":1550000},4.6476761619190406E-2]
[485,"Накнада штете за повреде или штету нанету од стране државних органа;",29750000,null,null,{"$f":"C51","v":29750000},0.89205397301349332]
[489,"Расходи који се финансирају из средстава за реализацију националног инвестиционог плана",{"$f":"SUMIF('ПО КОРИСНИЦИМА'!$F$4:$F$2858,'По основ. нам.'!A52,'ПО КОРИСНИЦИМА'!$H$4:$H$2858)","v":0},0,{"$f":"SUMIF('ПО КОРИСНИЦИМА'!$F$4:$F$2858,'По основ. нам.'!A52,'ПО КОРИСНИЦИМА'!$I$4:$I$2858)","v":0},0,0]
[490,"АДМИНИСТРАТИВНИ ТРАНСФЕРИ БУЏЕТА",{"$f":"SUM(C54:C59)","v":35000000},1.3125362588141497E-2,{"$f":"SUM(E58:E59)","v":0},35000000,1.0494752623688157]
[494,"Административни трансфери из буџета - Текући расходи",{"$f":"SUMIF('ПО КОРИСНИЦИМА'!$F$4:$F$2858,'По основ. нам.'!A54,'ПО КОРИСНИЦИМА'!$H$4:$H$2858)","v":0},0,{"$f":"SUMIF('ПО КОРИСНИЦИМА'!$F$4:$F$2858,'По основ. нам.'!A54,'ПО КОРИСНИЦИМА'!$I$4:$I$2858)","v":0},0,0]
[495,"Административни трансфери из буџета - Издаци за нефинансијску имовину",{"$f":"SUMIF('ПО КОРИСНИЦИМА'!$F$4:$F$2858,'По основ. нам.'!A55,'ПО КОРИСНИЦИМА'!$H$4:$H$2858)","v":0},0,{"$f":"SUMIF('ПО КОРИСНИЦИМА'!$F$4:$F$2858,'По основ. нам.'!A55,'ПО КОРИСНИЦИМА'!$I$4:$I$2858)","v":0},0,0]
[496,"Административни трансфери из буџета - Издаци за отплату главнице и набавку финансијске имовине",{"$f":"SUMIF('ПО КОРИСНИЦИМА'!$F$4:$F$2858,'По основ. нам.'!A56,'ПО КОРИСНИЦИМА'!$H$4:$H$2858)","v":0},0,{"$f":"SUMIF('ПО КОРИСНИЦИМА'!$F$4:$F$2858,'По основ. нам.'!A56,'ПО КОРИСНИЦИМА'!$I$4:$I$2858)","v":0},0,0]
[499,"Административни трансфери из буџета - Средства резерве",null,0,{"$f":"SUMIF('ПО КОРИСНИЦИМА'!$F$4:$F$2858,'По основ. нам.'!A57,'ПО КОРИСНИЦИМА'!$I$4:$I$2858)","v":0},0,0]
[49911,"Стална резерва",5000000,null,null,{"$f":"C58","v":5000000},0.14992503748125938]
["49912","Текућа резерва",30000000,null,null,{"$f":"C59","v":30000000},0.8995502248875562]
["500","КАПИТАЛНИ ИЗДАЦИ",{"$f":"C61+C67+C72+C76","v":947130000},0.35518356194589873,{"$f":"SUM(E61,E67,E72,E76)","v":311557000},{"$f":"SUM(C60,E60)","v":1258687000},37.74173913043478]
["510","ОСНОВНА СРЕДСТВА",{"$f":"C62+C63+C64+C65+C66","v":896630000},0.33624553878300889,{"$f":"SUM(E62:E66)","v":311557000},1208187000,36.227496251874065]
[511,"Зграде и грађевински објекти;",789000000,null,301000000,{"$f":"C62+E62","v":1090000000},32.683658170914541]
[512,"Машине и опрема;",55000000,null,10557000,{"$f":"C63+E63","v":65557000},1.9657271364317841]
[513," Остале некретнине и опрема;",null,null,null,null,0]
[514,"Култивисана имовина;",null,null,null,null,0]
[515,"Нематеријална имовина",52630000,null,null,{"$f":"C66","v":52630000},1.5781109445277361]
["520","ЗАЛИХЕ",{"$f":"SUM(C68:C71)","v":500000},1.8750517983059283E-4,{"$f":"SUM(E68:E70)","v":0},500000,{"$f":"F67/Ukupno_izdaci*100","v":1.4992503748125935E-2}]
[521,"Робне резерве;",{"$f":"SUMIF('ПО КОРИСНИЦИМА'!$F$4:$F$2858,'По основ. нам.'!A68,'ПО КОРИСНИЦИМА'!$H$4:$H$2858)","v":0},0,{"$f":"SUMIF('ПО КОРИСНИЦИМА'!$F$4:$F$2858,'По основ. нам.'!A68,'ПО КОРИСНИЦИМА'!$I$4:$I$2858)","v":0},0,0]
[522,"Залихе производње;",{"$f":"SUMIF('ПО КОРИСНИЦИМА'!$F$4:$F$2858,'По основ. нам.'!A69,'ПО КОРИСНИЦИМА'!$H$4:$H$2858)","v":0},{"$f":"IFERROR(C69/$C$84,\"-\")","v":0},{"$f":"SUMIF('ПО КОРИСНИЦИМА'!$F$4:$F$2858,'По основ. нам.'!A69,'ПО КОРИСНИЦИМА'!$I$4:$I$2858)","v":0},0,0]
[523,"Залихе робе за даљу продају",500000,null,null,{"$f":"C70","v":500000},1.4992503748125935E-2]
[531,"Драгоцености",{"$f":"SUMIF('ПО КОРИСНИЦИМА'!$F$4:$F$2858,'По основ. нам.'!A71,'ПО КОРИСНИЦИМА'!$H$4:$H$2858)","v":0},0,null,null,0]
["540","ПРИРОДНА ИМОВИНА",{"$f":"SUM(C73:C75)","v":50000000},1.8750517983059281E-2,{"$f":"SUM(E73:E75)","v":0},50000000,1.4992503748125936]
[541,"Земљиште;",{"$f":"SUMIF('ПО КОРИСНИЦИМА'!$F$4:$F$2858,'По основ. нам.'!A73,'ПО КОРИСНИЦИМА'!$H$4:$H$2858)","v":50000000},1.8750517983059281E-2,{"$f":"SUMIF('ПО КОРИСНИЦИМА'!$F$4:$F$2858,'По основ. нам.'!A73,'ПО КОРИСНИЦИМА'!$I$4:$I$2858)","v":0},50000000,1.4992503748125936]
[542,"Рудна богатства;",{"$f":"SUMIF('ПО КОРИСНИЦИМА'!$F$4:$F$2858,'По основ. нам.'!A74,'ПО КОРИСНИЦИМА'!$H$4:$H$2858)","v":0},0,{"$f":"SUMIF('ПО КОРИСНИЦИМА'!$F$4:$F$2858,'По основ. нам.'!A74,'ПО КОРИСНИЦИМА'!$I$4:$I$2858)","v":0},0,0]
[543,"Шуме и воде",{"$f":"SUMIF('ПО КОРИСНИЦИМА'!$F$4:$F$2858,'По основ. нам.'!A75,'ПО КОРИСНИЦИМА'!$H$4:$H$2858)","v":0},{"$f":"IFERROR(C75/$C$84,\"-\")","v":0},{"$f":"SUMIF('ПО КОРИСНИЦИМА'!$F$4:$F$2858,'По основ. нам.'!A75,'ПО КОРИСНИЦИМА'!$I$4:$I$2858)","v":0},0,0]
[550,"Неф. Имов. која се фин. из сред. за реализ. нип-а",{"$f":"SUM(C77)","v":0},0,{"$f":"SUM(E77)","v":0},{"$f":"C76+E76","v":0},0]
[551,"Неф. имовина која се фин. из сред. за реализ. нип-а",{"$f":"SUMIF('ПО КОРИСНИЦИМА'!$F$4:$F$2858,'По основ. нам.'!A77,'ПО КОРИСНИЦИМА'!$H$4:$H$2858)","v":0},0,{"$f":"SUMIF('ПО КОРИСНИЦИМА'!$F$4:$F$2858,'По основ. нам.'!A77,'ПО КОРИСНИЦИМА'!$I$4:$I$2858)","v":0},{"$f":"C77+E77","v":0},0]
["610","ОТПЛАТА ГЛАВНИЦЕ ",{"$f":"SUM(C79:C81)","v":1000000},3.7501035966118566E-4,{"$f":"SUM(E79:E81)","v":74000000},75000000,2.2488755622188905]
["611","Отплата главнице домаћим кредиторима",1000000,null,74000000,{"$f":"C79+E79","v":75000000},2.2488755622188905]
["612","Отплата главнице страним банкама",{"$f":"SUMIF('ПО КОРИСНИЦИМА'!$F$4:$F$2858,'По основ. нам.'!A80,'ПО КОРИСНИЦИМА'!$H$4:$H$2858)","v":0},0,{"$f":"SUMIF('ПО КОРИСНИЦИМА'!$F$4:$F$2858,'По основ. нам.'!A80,'ПО КОРИСНИЦИМА'!$I$4:$I$2858)","v":0},null,0]
["613","Отплата дуга по гаранцијама",{"$f":"SUMIF('ПО КОРИСНИЦИМА'!$F$4:$F$2858,'По основ. нам.'!A81,'ПО КОРИСНИЦИМА'!$H$4:$H$2858)","v":0},0,{"$f":"SUMIF('ПО КОРИСНИЦИМА'!$F$4:$F$2858,'По основ. нам.'!A81,'ПО КОРИСНИЦИМА'!$I$4:$I$2858)","v":0},null,0]
["620","Набавка финансијске имовине",{"$f":"SUMIF('ПО КОРИСНИЦИМА'!$F$4:$F$2858,'По основ. нам.'!A82,'ПО КОРИСНИЦИМА'!$H$4:$H$2858)","v":0},0,{"$f":"SUM(E83)","v":0},0,0]
["621","Набавка домаће фин. Имовине",{"$f":"SUMIF('ПО КОРИСНИЦИМА'!$F$4:$F$2858,'По основ. нам.'!A83,'ПО КОРИСНИЦИМА'!$H$4:$H$2858)","v":0},0,{"$f":"SUMIF('ПО КОРИСНИЦИМА'!$F$4:$F$2858,'По основ. нам.'!A83,'ПО КОРИСНИЦИМА'!$I$4:$I$2858)","v":0},0,0]
[null,"УКУПНИ ЈАВНИ РАСХОДИ ",{"$f":"C6+C13+C26+C31+C37+C44+C46+C53+C61+C67+C72+C78","v":2666593000},1,{"$f":"SUM(E6,E13,E20,E26,E31,E37,E46,E44,E53,E61,E67,E72,E76,E78,E82)","v":668407000},{"$f":"F5+F60+F78","v":3335000000},100]
[null,null," ",null," "," "]

{"sheet":"ПО КОРИСНИЦИМА","index":3,"n_rows":2857,"n_cols":19,"rows_kept":2857,"cut":false,"hidden":false,"merged":[[0,12,0,21],[2,12,4,24],[6,12,9,24]]}
["Раздео","Глава","Програм-ска Класиф.","Функција","Позиција","Економ. Класиф.","Организациона класификација","Средства из буџета-извор 01","Средства из осталих извора","Укупна јавна средства"]
[1,2,"3",4,5,6,7,8,9,10]
[1," ",null,null,null,null,"СКУПШТИНА ОПШТИНЕ"]
[null,null,"2101",null,null,null,"ПРОГРАМ 16: ПОЛИТИЧКИ СИСТЕМ ЛОКАЛНЕ САМОУПРАВЕ"]
[null,null,"2101-0001",null,null,null,"ПА: Функционисање скупштине"]
[null,null,null,110,null,null,"Извршни и законодавни органи, финансијски и фискални послови"]
[null,null,null,null,1,411,"Плате, додаци и накнаде запослених (зараде)",4097000,null,{"$f":"H7","v":4097000}]
[null,null,null,null,2,412,"Социјални доприноси на терет послодавца",662000,null,{"$f":"H8","v":662000}]
[null,null,null,null,3,413,"Накнаде у натури",70000,null,70000]
[null,null,null,null,4,414,"Социјална давања запосленима",500000,null,500000]
[null,null,null,null,5,415,"Накнаде трошкова за запослене",80000,null,80000]
[null,null,null,null,6,421,"Стални трошкови",11000,null,11000]
[null,null,null,null,7,422,"Трошкови путовања",300000,null,300000]
[null,null,null,null,8,423,"Услуге по уговору - накнаде за одборнике, репрезентација, дан општине, угоститељске услуге",21000000,null,21000000]
[null,null,null,null,9,425,"Текуће поправке и одржавање",250000,null,250000]
[null,null,null,null,10,426,"Материјал",900000,null,900000]
[null,null,null,null,null,431,"Амортизација некретнина и опреме",null,null,0]
[null,null,null,null,null,432,"Амортизација култивисане имовине",null,null,0]
[null,null,null,null,null,433,"Употреба драгоцености",null,null,0]
[null,null,null,null,null,434,"Употреба природне имовине",null,null,0]
[null,null,null,null,null,435,"Амортизација нематеријалне имовине",null,null,0]
[null,null,null,null,null,441,"Отплата домаћих камата",null,null,0]
[null,null,null,null,null,442,"Отплата страних камата",null,null,0]
[null,null,null,null,null,443,"Отплата камата по гаранцијама",null,null,0]
[null,null,null,null,null,444,"Пратећи трошкови задуживања",null,null,0]
[null,null,null,null,null,4511,"Текуће субвенције јавним нефинансијским предузећима и организацијама                                                                ",null,null,0]
[null,null,null,null,null,4512,"Капиталне субвенције јавним нефинансијским предузећима и организацијама                                                                ",null,null,0]
[null,null,null,null,null,452,"Субвенције приватним финансијским институцијама",null,null,0]
[null,null,null,null,null,453,"Субвенције јавним финансијским институцијама",null,null,0]
[null,null,null,null,null,454,"Субвенције приватним предузећима",null,null,0]
[null,null,null,null,null,461,"Донације страним владама",null,null,0]
[null,null,null,null,null,462,"Донације и дотације међународним организацијама",null,null,0]
[null,null,null,null,null,4631,"Текући трансфери осталим нивоима власти",null,null,0]
[null,null,null,null,null,4632,"Капитални трансфери осталим нивоима власти",null,null,0]
[null,null,null,null,null,464,"Дотације организацијама обавезног социјалног осигурања",null,null,0]
[null,null,null,null,null,465,"Остале донације, дотације и трансфери",null,null,0]
[null,null,null,null,11,481,"Дотације невладиним организацијама-средства за финансирање редовног рада политичких странки",970000,null,970000]
[null,null,null,null,12,482,"Порези, обавезне таксе, казне и пенали",10000,null,10000]
[null,null,null,null,null,482,"Порези, обавезне таксе, казне и пенали",null,null,{"$f":"SUM(H39:I39)","v":0}]
[null,null,null,null,null,483,"Новчане казне и пенали по решењу судова",null,null,0]
[null,null,null,null,null,484,"Накнада штете за повреде или штету насталу услед елементарних непогода или других природних узрока",null,null,0]
[null,null,null,null,null,485,"Накнада штете за повреде или штету нанету од стране државних органа",null,null,0]
[null,null,null,null,null,489,"Расходи који се финансирају из средстава за реализацију националног инвестиционог плана",null,null,0]
[null,null,null,null,null,494,"Административни трансфери из буџета - Текући расходи",null,null,0]
[null,null,null,null,null,495,"Административни трансфери из буџета - Издаци за нефинансијску имовину",null,null,0]
[null,null,null,null,null,496,"Административни трансфери из буџета - Издаци за отплату главнице и набавку финансијске имовине",null,null,0]
[null,null,null,null,null,499,"Административни трансфери из буџета - Средства резерве",null,null,0]
[null,null,null,null,null,511,"Зграде и грађевински објекти",null,null,0]
[null,null,null,null,null,512,"Машине и опрема",null,null,0]
[null,null,null,null,null,513,"Остале некретнине и опрема",null,null,0]
[null,null,null,null,null,514,"Култивисана имовина",null,null,0]
[null,null,null,null,null,515,"Нематеријална имовина",null,null,0]
[null,null,null,null,null,521,"Робне резерве",null,null,0]
[null,null,null,null,null,522,"Залихе производње",null,null,0]
[null,null,null,null,null,523,"Залихе робе за даљу продају",null,null,0]
[null,null,null,null,null,531,"Драгоцености",null,null,0]
[null,null,null,null,null,541,"Земљиште",null,null,0]
[null,null,null,null,null,542,"Рудна богатства",null,null,0]
[null,null,null,null,null,543,"Шуме и воде",null,null,0]
[null,null,null,null,null,551,"Нефинансијска имовина која се финансира из средстава за реализацију националног инвестиционог плана",null,null,0]
[null,null,null,null,null,611,"Отплата главнице домаћим кредиторима",null,null,0]
[null,null,null,null,null,620,"Набавка финансијске имовине",null,null,0]
[null,null,null,null,null,null,"Извори финансирања за ПА: 2101-0001"]
[null,null,null,null,null,null,"01 - Приходи буџета",{"$f":"H7+H8+H9+H10+H11+H12+H13+H14+H15+H16+H37+H38","v":28850000},null,{"$f":"J7+J8+J9+J10+J11+J12+J13+J14+J15+J16+J37+J38","v":28850000}]
[null,null,null,null,null,null,"Укупно за ПА: 2101-0001",{"$f":"H64","v":28850000},null,{"$f":"J64","v":28850000}]
[null,null,null,null,null,null,"Извор финансирања за функцију: 110"]
[null,null,null,null,null,null,"01 - Приходи буџета",{"$f":"H65","v":28850000},null,{"$f":"H67","v":28850000}]
[null,null,null,null,null,null,"Укупно за функцију: 110",{"$f":"H65","v":28850000},null,{"$f":"J65","v":28850000}]
[null,null,null,null,null,null,"Извори финансирања за раздео 1. - СКУПШТИНА ОПШТИНЕ:"]
[null,null,null,null,null,null,"01 - Приходи из буџета",{"$f":"H64","v":28850000},null,{"$f":"SUM(H70:I70)","v":28850000}]
[null,null,null,null,null,"02","Трансфери између корисника на истом нивоу",null,null,{"$f":"SUM(H71:I71)","v":0}]
[null,null,null,null,null,"03","Социјални доприноси",null,null,0]
[null,null,null,null,null,"04","Сопствени приходи буџетских корисника",null,null,0]
[null,null,null,null,null,"05","Донације од иностраних земаља",null,null,0]
[null,null,null,null,null,"06","Донације од међународних организација",null,null,0]
[null,null,null,null,null,"07","Трансфери од других нивоа власти",null,null,0]
[null,null,null,null,null,"08","Добровољни трансфери од физичких и правних лица",null,null,0]
[null,null,null,null,null,"09","Примања од продаје нефинансијске имовине",null,null,0]
[null,null,null,null,null,"10","Примања од домаћих задуживања",null,null,0]
[null,null,null,null,null,"11","Примања од иностраних задуживања",null,null,0]
[null,null,null,null,null,"12","Примања од отплате датих кредита и продаје финансијске имовине",null,null,0]
[null,null,null,null,null,"13","Нераспоређени вишак прихода из ранијих година",null,null,0]
[null,null,null,null,null,"14","Неутрошена средства од приватизације из претходних година",null,null,0]
[null,null,null,null,null,"15","Неутрошена средства донација из претходних година",null,null,0]
[null,null,null,null,null,"16","Родитељски динар за ваннаставне активности",null,null,0]
[null,null,null,null,null,null,"Укупно за раздео 1. - СКУПШТИНА ОПШТИНЕ",{"$f":"SUM(H70:H85)","v":28850000}," ",{"$f":"SUM(J70:J85)","v":28850000}]
[]
[2," ",null,null,null,null,"ПРЕДСЕДНИК ОПШТИНЕ "]
[null,null,"2101",null,null,null,"ПРОГРАМ 16 : ПОЛИТИЧКИ СИСТЕМ ЛОКАЛНЕ САМОУПРАВЕ"]
[null,null,"2101-0002",null,null,null,"ПА:Функционисање извршних органа"]
[null,null,null,111,null,null,"Извршни и законодавни органи"]
[null,null,null,null,13,411,"Плате, додаци и накнаде запослених (зараде)",3707000,null,{"$f":"H92+I92","v":3707000}]
[null,null,null,null,14,412,"Социјални доприноси на терет послодавца",600000,null,{"$f":"H93+I93","v":600000}]
[null,null,null,null,null,413,"Накнаде у натури",null,null,0]
[null,null,null,null,15,413,"Накнада у натури",70000,null,70000]
[null,null,null,null,16,414,"Социјална давања запосленима",250000,null,250000]
[null,null,null,null,null,415,"Накнаде трошкова за запослене",null,null,0]
[null,null,null,null,null,416,"Награде запосленима и остали посебни расходи",null,null,0]
[null,null,null,null,null,417,"Посланички додатак",null,null,0]
[null,null,null,null,null,418,"Судијски додатак.",null,null,0]
[null,null,null,null,17,415,"Накнада трошкова за запослене - превоз",5000,null,5000]
[null,null,null,null,18,421,"Стални трошкови",10000,null,10000]
[null,null,null,null,19,422,"Трошкови путовања",350000,null,350000]
[null,null,null,null,20,423,"Услуге по уговору",7000000,null,7000000]
[null,null,null,null,null,424,"Специјализоване услуге",null,null,0]
[null,null,null,null,21,425,"Текуће поправке и одржавање",300000,null,300000]
[null,null,null,null,22,426,"Материјал",1500000,null,1500000]
[null,null,null,null,null,431,"Амортизација некретнина и опреме",null,null,0]
[null,null,null,null,null,432,"Амортизација култивисане имовине",null,null,0]
[null,null,null,null,null,433,"Употреба драгоцености",null,null,0]
[null,null,null,null,null,434,"Употреба природне имовине",null,null,0]
[null,null,null,null,null,435,"Амортизација нематеријалне имовине",null,null,0]
[null,null,null,null,null,441,"Отплата домаћих камата",null,null,0]
[null,null,null,null,null,442,"Отплата страних камата",null,null,0]
[null,null,null,null,null,443,"Отплата камата по гаранцијама",null,null,0]
[null,null,null,null,null,444,"Пратећи трошкови задуживања",null,null,0]
[null,null,null,null,null,4511,"Текуће субвенције јавним нефинансијским предузећима и организацијама                                                                ",null,null,0]
[null,null,null,null,null,4512,"Капиталне субвенције јавним нефинансијским предузећима и организацијама                                                                ",null,null,0]
[null,null,null,null,null,452,"Субвенције приватним финансијским институцијама",null,null,0]
[null,null,null,null,null,453,"Субвенције јавним финансијским институцијама",null,null,0]
[null,null,null,null,null,454,"Субвенције приватним предузећима",null,null,0]
[null,null,null,null,null,461,"Донације страним владама",null,null,0]
[null,null,null,null,null,462,"Донације и дотације међународним организацијама",null,null,0]
[null,null,null,null,null,4631,"Текући трансфери осталим нивоима власти",null,null,0]
[null,null,null,null,null,4632,"Капитални трансфери осталим нивоима власти",null,null,0]
[null,null,null,null,null,464,"Дотације организацијама обавезног социјалног осигурања",null,null,0]
[null,null,null,null,null,465,"Остале донације, дотације и трансфери",null,null,0]
[null,null,null,null,null,472,"Накнаде за социјалну заштиту из буџета",null,null,0]
[null,null,null,null,null,481,"Дотације невладиним организацијама",null,null,0]
[null,null,null,null,null,482,"Порези, обавезне таксе, казне и пенали",null,null,0]
[null,null,null,null,null,483,"Новчане казне и пенали по решењу судова",null,null,0]
[null,null,null,null,null,484,"Накнада штете за повреде или штету насталу услед елементарних непогода или других природних узрока",null,null,0]
[null,null,null,null,null,485,"Накнада штете за повреде или штету нанету од стране државних органа",null,null,0]
[null,null,null,null,null,489,"Расходи који се финансирају из средстава за реализацију националног инвестиционог плана",null,null,0]
[null,null,null,null,null,494,"Административни трансфери из буџета - Текући расходи",null,null,0]
[null,null,null,null,null,495,"Административни трансфери из буџета - Издаци за нефинансијску имовину",null,null,0]
[null,null,null,null,null,496,"Административни трансфери из буџета - Издаци за отплату главнице и набавку финансијске имовине",null,null,0]
[null,null,null,null,null,499,"Административни трансфери из буџета - Средства резерве",null,null,0]
[null,null,null,null,null,511,"Зграде и грађевински објекти",null,null,0]
[null,null,null,null,null,512,"Машине и опрема",null,null,0]
[null,null,null,null,null,513,"Остале некретнине и опрема",null,null,0]
[null,null,null,null,null,514,"Култивисана имовина",null,null,0]
[null,null,null,null,null,515,"Нематеријална имовина",null,null,0]
[null,null,null,null,null,521,"Робне резерве",null,null,0]
[null,null,null,null,null,522,"Залихе производње",null,null,0]
[null,null,null,null,null,523,"Залихе робе за даљу продају",null,null,0]
[null,null,null,null,null,531,"Драгоцености",null,null,0]
[null,null,null,null,null,541,"Земљиште",null,null,0]
[null,null,null,null,null,542,"Рудна богатства",null,null,0]
[null,null,null,null,null,543,"Шуме и воде",null,null,0]
[null,null,null,null,null,551,"Нефинансијска имовина која се финансира из средстава за реализацију националног инвестиционог плана",null,null,0]
[null,null,null,null,null,611,"Отплата главнице домаћим кредиторима",null,null,0]
[null,null,null,null,23,482,"Порези, обавезне таксе, казне и пенали",100000,null,100000]
[null,null,null,null,null,null,"Извор финансирања за ПА: 2101-0002"]
[null,null,null,null,null,null,"01 - Приходи из буџета",{"$f":"H92+H93+H95+H96+H101+H102+H103+H104+H106+H107+H153","v":13892000},null,{"$f":"H155","v":13892000}]
[null,null,null,null,null,null,"Трансфери између корисника на истом нивоу",null,null,{"$f":"SUM(H156:I156)","v":0}]
[null,null,null,null,null,null,"Социјални доприноси",null,null,0]
[null,null,null,null,null,null,"Сопствени приходи буџетских корисника",null,null,0]
[null,null,null,null,null,null,"Донације од иностраних земаља",null,null,0]
[null,null,null,null,null,null,"Донације од међународних организација",null,null,0]
[null,null,null,null,null,null,"Трансфери од других нивоа власти",null,null,0]
[null,null,null,null,null,null,"Добровољни трансфери од физичких и правних лица",null,null,0]
[null,null,null,null,null,null,"Примања од продаје нефинансијске имовине",null,null,0]
[null,null,null,null,null,null,"Примања од домаћих задуживања",null,null,0]
[null,null,null,null,null,null,"Примања од иностраних задуживања",null,null,0]
[null,null,null,null,null,null,"Примања од отплате датих кредита и продаје финансијске имовине",null,null,0]
[null,null,null,null,null,null,"Нераспоређени вишак прихода из ранијих година",null,null,0]
[null,null,null,null,null,null,"Неутрошена средства од приватизације из претходних година",null,null,0]
[null,null,null,null,null,null,"Неутрошена средства донација из претходних година",null,null,0]
[null,null,null,null,null,null,"Родитељски динар за ваннаставне активности",null,null,0]
[null,null,null,null,null,null,"Укупно за ПА: 2101-0002",{"$f":"H155","v":13892000},null,{"$f":"J155","v":13892000}]
[null,null,null,null,null,null,"Извор финансирања за раздео 2.  - ПРЕДСЕДНИК ОПШТИНЕ"]
[null,null,null,null,null,null,"01 -Приходи из буџета",{"$f":"H189","v":13892000},null,{"$f":"SUM(H173:I173)","v":13892000}]
[null,null,null,null,null,"02","Трансфери између корисника на истом нивоу",null,null,{"$f":"SUM(H174:I174)","v":0}]
[null,null,null,null,null,"03","Социјални доприноси",null,null,0]
[null,null,null,null,null,"04","Сопствени приходи буџетских корисника",null,null,0]
[null,null,null,null,null,"05","Донације од иностраних земаља",null,null,0]
[null,null,null,null,null,"06","Донације од међународних организација",null,null,0]
[null,null,null,null,null,"07","Трансфери од других нивоа власти",null,null,0]
[null,null,null,null,null,"08","Добровољни трансфери од физичких и правних лица",null,null,0]
[null,null,null,null,null,"09","Примања од продаје нефинансијске имовине",null,null,0]
[null,null,null,null,null,"10","Примања од домаћих задуживања",null,null,0]
[null,null,null,null,null,"11","Примања од иностраних задуживања",null,null,0]
[null,null,null,null,null,"12","Примања од отплате датих кредита и продаје финансијске имовине",null,null,0]
[null,null,null,null,null,"13","Нераспоређени вишак прихода из ранијих година",null,null,0]
[null,null,null,null,null,"14","Неутрошена средства од приватизације из претходних година",null,null,0]
[null,null,null,null,null,"15","Неутрошена средства донација из претходних година",null,null,0]
[null,null,null,null,null,"16","Родитељски динар за ваннаставне активности",null,null,0]
[null,null,null,null,null,null,"Укупно за раздео 2. - ПРЕДСЕДНИК ОПШТИНЕ",{"$f":"H171","v":13892000},null,{"$f":"J171","v":13892000}]
[]
[3," ",null,null,null,null,"ОПШТИНСКО ВЕЋЕ"]
[null,null,"2101",null,null,null,"ПРОГРАМ 16: ПОЛИТИЧКИ СИСТЕМ ЛОКАЛНЕ САМОУПРАВЕ"]
[null,null,"2101-0002",null,null,null,"ПА: Функционисање извршних органа"]
[null,null,null,111,null,null,"Извршни и законодавни органи"]
[null,null,null,null,24,411,"Плате, додаци и накнаде запослених (зараде)",1200000,null,{"$f":"H195","v":1200000}]
[null,null,null,null,25,412,"Социјални доприноси на терет послодавца",194000,null,{"$f":"H196","v":194000}]
[null,null,null,null,"26",414,"Социјална давања запосленима",120000,null,{"$f":"H197","v":120000}]
[null,null,null,null,"27",415,"Накнада трошкова за запослене - превоз",86000,null,86000]
[null,null,null,null,28,423,"Услуге по уговору - накнада члановима општинског већа, репрезентација",3500000,null,{"$f":"H199","v":3500000}]
[null,null,null,null,29,426,"Материјал",300000,null,{"$f":"H200+I200","v":300000}]
[null,null,null,null,null,null,"Извори финансирања за ПА: 2101-0002"]
[null,null,null,null,null,null,"01 - Приходи буџета",{"$f":"H195+H196+H197+H198+H199+H200","v":5400000},null,{"$f":"J195+J196+J197+J198+J199+J200","v":5400000}]
[null,null,null,null,null,null,"Укупно за ПА: 2101-0002",{"$f":"H202","v":5400000},null,{"$f":"J202","v":5400000}]
[null,null,null,null,null,null,"Извор финансирања за раздео -3 - ОПШТИНСКО ВЕЋЕ"]
[null,null,null,null,null,null,"01 - Приходи буџета",{"$f":"H202","v":5400000},null,{"$f":"J202","v":5400000}]
[null,null,null,null,null,null,"Укупно за раздео- 3 - ОПШТИНСКО ВЕЋЕ",{"$f":"H205","v":5400000},null,{"$f":"J205","v":5400000}]
[null,null,null,null,null,null,"Извор финансирања за функцију: 111"]
[null,null,null,null,null,null,"01 - Приходи буџета",{"$f":"H189+H206","v":19292000},null,{"$f":"J189+J206","v":19292000}]
[null,null,null,null,null,null,"Укупно за функцију: 111",{"$f":"H208","v":19292000},null,{"$f":"J189+J206","v":19292000}]
[]
[4," ",null,null,null,null,"ОПШТИНСКО  ПРАВОБРАНИЛАШТВО"]
[null,null,"0602",null,null,null,"ПРОГРАМ 15 - ЛОКАЛНА САМОУПРАВА"]
[null,null,"0602-0004",null,null,null,"Општинско  правобранилаштво"]
[null,null,null,330,null,null,"Судови"]
[null,null,null,null,30,411,"Плате, додаци и накнаде запослених (зараде)",2170000,null,{"$f":"H215+I215","v":2170000}]
[null,null,null,null,31,412,"Социјални доприноси на терет послодавца",351000,null,{"$f":"H216+I216","v":351000}]
[null,null,null,null,32,413,"Накнаде у натури",30000,null,{"$f":"H217","v":30000}]
[null,null,null,null,33,414,"Социјална давања запосленима",350000,null,350000,null,null,null,null,null,null,null,null," "]
[null,null,null,null,34,415,"Накнаде трошкова за запослене - превоз",90000,null,90000]
[null,null,null,null,null,415,"Накнаде трошкова за запослене",null,null,0]
[null,null,null,null,null,416,"Награде запосленима и остали посебни расходи",null,null,0]
[null,null,null,null,null,417,"Посланички додатак",null,null,0]
[null,null,null,null,null,418,"Судијски додатак.",null,null,0]
[null,null,null,null,35,421,"Стални трошкови",10000,null,10000]
[null,null,null,null,36,422,"Трошкови путовања",50000,null,50000]
[null,null,null,null,37,423,"Услуге по уговору",400000,null,400000]
[null,null,null,null,38,424,"Специјализоване услуге",200000,null,200000]
[null,null,null,null,39,425,"Текуће поправке и одржавање",100000,null,100000]
[null,null,null,null,40,426,"Материјал",500000,null,500000]
[null,null,null,null,null,431,"Амортизација некретнина и опреме",null,null,0]
[null,null,null,null,null,432,"Амортизација култивисане имовине",null,null,0]
[null,null,null,null,null,433,"Употреба драгоцености",null,null,0]
[null,null,null,null,null,434,"Употреба природне имовине",null,null,0]
[null,null,null,null,null,435,"Амортизација нематеријалне имовине",null,null,0]
[null,null,null,null,null,441,"Отплата домаћих камата",null,null,0]
[null,null,null,null,null,442,"Отплата страних камата",null,null,0]
[null,null,null,null,null,443,"Отплата камата по гаранцијама",null,null,0]
[null,null,null,null,null,444,"Пратећи трошкови задуживања",null,null,0]
[null,null,null,null,null,4511,"Текуће субвенције јавним нефинансијским предузећима и организацијама                                                                ",null,null,0]
[null,null,null,null,null,4512,"Капиталне субвенције јавним нефинансијским предузећима и организацијама                                                                ",null,null,0]
[null,null,null,null,null,452,"Субвенције приватним финансијским институцијама",null,null,0]
[null,null,null,null,null,453,"Субвенције јавним финансијским институцијама",null,null,0]
[null,null,null,null,null,454,"Субвенције приватним предузећима",null,null,0]
[null,null,null,null,null,461,"Донације страним владама",null,null,0]
[null,null,null,null,null,462,"Донације и дотације међународним организацијама",null,null,0]
[null,null,null,null,null,4631,"Текући трансфери осталим нивоима власти",null,null,0]
[null,null,null,null,null,4632,"Капитални трансфери осталим нивоима власти",null,null,0]
[null,null,null,null,null,464,"Дотације организацијама обавезног социјалног осигурања",null,null,0]
[null,null,null,null,null,465,"Остале донације, дотације и трансфери",null,null,0]
[null,null,null,null,41,482,"Порези, обавезне таксе, казне и пенали",14000,null,14000]
[null,null,null,null,null,482,"Порези, обавезне таксе, казне и пенали",null,null,0]
[null,null,null,null,null,483,"Новчане казне и пенали по решењу судова",null,null,0]
[null,null,null,null,null,484,"Накнада штете за повреде или штету насталу услед елементарних непогода или других природних узрока",null,null,0]
[null,null,null,null,null,485,"Накнада штете за повреде или штету нанету од стране државних органа",null,null,0]
[null,null,null,null,null,489,"Расходи који се финансирају из средстава за реализацију националног инвестиционог плана",null,null,0]
[null,null,null,null,null,494,"Административни трансфери из буџета - Текући расходи",null,null,0]
[null,null,null,null,null,495,"Административни трансфери из буџета - Издаци за нефинансијску имовину",null,null,0]
[null,null,null,null,null,496,"Административни трансфери из буџета - Издаци за отплату главнице и набавку финансијске имовине",null,null,0]
[null,null,null,null,null,499,"Административни трансфери из буџета - Средства резерве",null,null,0]
[null,null,null,null,null,511,"Зграде и грађевински објекти",null,null,0]
[null,null,null,null,null,512,"Машине и опрема",null,null,0]
[null,null,null,null,null,513,"Остале некретнине и опрема",null,null,0]
[null,null,null,null,null,514,"Култивисана имовина",null,null,0]
[null,null,null,null,null,515,"Нематеријална имовина",null,null,0]
[null,null,null,null,null,521,"Робне резерве",null,null,0]
[null,null,null,null,null,522,"Залихе производње",null,null,0]
[null,null,null,null,null,523,"Залихе робе за даљу продају",null,null,0]
[null,null,null,null,null,531,"Драгоцености",null,null,0]
[null,null,null,null,null,541,"Земљиште",null,null,0]
[null,null,null,null,null,542,"Рудна богатства",null,null,0]
[null,null,null,null,null,543,"Шуме и воде",null,null,0]
[null,null,null,null,null,551,"Нефинансијска имовина која се финансира из средстава за реализацију националног инвестиционог плана",null,null,0]
[null,null,null,null,null,null,"Извор финансирања за ПА: 0602-0004"]
[null,null,null,null,null,null,"01 - Приходи из буџета",{"$f":"H215+H216+H217+H218+H219+H224+H225+H226+H227+H228+H229+H250","v":4265000},null,{"$f":"J215+J216+J217+J218+J219+J224+J225+J226+J227+J228+J229+J250","v":4265000}]
[null,null,null,null,null,null,"Укупно за ПА: 0602-0004",{"$f":"H274","v":4265000},null,{"$f":"J274","v":4265000}]
[null,null,null,null,null,null,"Извори финансирања за функцију 330:"]
[null,null,null,null,null,null,"01 - Приходи из буџета",{"$f":"H215+H216+H217+H218+H219+H224+H225+H226+H227+H228+H229+H250","v":4265000},null,{"$f":"H277","v":4265000}]
[null,null,null,null,null,"02","Трансфери између корисника на истом нивоу",null,null,{"$f":"SUM(H278:I278)","v":0}]
[null,null,null,null,null,"03","Социјални доприноси",null,null,0]
[null,null,null,null,null,"04","Сопствени приходи буџетских корисника",null,null,0]
[null,null,null,null,null,"05","Донације од иностраних земаља",null,null,0]
[null,null,null,null,null,"06","Донације од међународних организација",null,null,0]
[null,null,null,null,null,"07","Трансфери од других нивоа власти",null,null,0]
[null,null,null,null,null,"08","Добровољни трансфери од физичких и правних лица",null,null,0]
[null,null,null,null,null,"09","Примања од продаје нефинансијске имовине",null,null,0]
[null,null,null,null,null,"10","Примања од домаћих задуживања",null,null,0]
[null,null,null,null,null,"11","Примања од иностраних задуживања",null,null,0]
[null,null,null,null,null,"12","Примања од отплате датих кредита и продаје финансијске имовине",null,null,0]
[null,null,null,null,null,"13","Нераспоређени вишак прихода из ранијих година",null,null,0]
[null,null,null,null,null,"14","Неутрошена средства од приватизације из претходних година",null,null,0]
[null,null,null,null,null,"15","Неутрошена средства донација из претходних година",null,null,0]
[null,null,null,null,null,"16","Родитељски динар за ваннаставне активности",null,null,0]
[null,null,null,null,null,null,"Укупно за функција 330:",{"$f":"H277","v":4265000},null,{"$f":"SUM(J277:J292)","v":4265000}]
[null,null,null,null,null,null,"Извори финансирања за  раздео 4."]
[null,null,null,null,null,null,"01 - Приходи из буџета",{"$f":"H277","v":4265000},null,{"$f":"SUM(H295:I295)","v":4265000}]
[null,null,null,null,null,"02","Трансфери између корисника на истом нивоу",null,null,{"$f":"SUM(H296:I296)","v":0}]
[null,null,null,null,null,"03","Социјални доприноси",null,null,0]
[null,null,null,null,null,"04","Сопствени приходи буџетских корисника",null,null,0]
[null,null,null,null,null,"05","Донације од иностраних земаља",null,null,0]
[null,null,null,null,null,"06","Донације од међународних организација",null,null,0]
[null,null,null,null,null,"07","Трансфери од других нивоа власти",null,null,0]
[null,null,null,null,null,"08","Добровољни трансфери од физичких и правних лица",null,null,0]
[null,null,null,null,null,"09","Примања од продаје нефинансијске имовине",null,null,0]
[null,null,null,null,null,"10","Примања од домаћих задуживања",null,null,0]
[null,null,null,null,null,"11","Примања од иностраних задуживања",null,null,0]
[null,null,null,null,null,"12","Примања од отплате датих кредита и продаје финансијске имовине",null,null,0]
[null,null,null,null,null,"13","Нераспоређени вишак прихода из ранијих година",null,null,0]
[null,null,null,null,null,"14","Неутрошена средства од приватизације из претходних година",null,null,0]
[null,null,null,null,null,null,"Укупно за   раздео- 4-ОПШТИНСКИ ПРАВОБРАНИЛАЦ",{"$f":"SUM(H295:H308)","v":4265000},null,{"$f":"SUM(J295:J308)","v":4265000}]
[]
[5,"5.00",null,null,null,null,"ОПШТИНСКА УПРАВА"]
[null,null,"0602",null,null,null,"ПРОГРАМ 15: ЛОКАЛНА САМОУПРАВА"]
[null,null,"0602-0001",null,null,null,"ПА: Функционисање локалне самоуправе и градских општина"]
[null,null,null,130,null,null,"Опште јавне услуге"]
[null,null,null,null,55,411,"Плате, додаци и накнаде запослених (зараде)",73200000,null,{"$f":"H315+I315","v":73200000}]
[null,null,null,null,56,412,"Социјални доприноси на терет послодавца",11822000,null,{"$f":"H316+I316","v":11822000}]
[null,null,null,null,57,413,"Накнаде у натури",1000000,null,1000000]
[null,null,null,null,58,414,"Социјална давања запосленима-исплата боловања, солидарних помоћи",10500000,null,10500000]
[null,null,null,null,59,415,"Накнаде трошкова за запослене",3700000,null,3700000]
[null,null,null,null,60,416,"Награде запосленима и остали посебни расходи - јубиларне награде",700000,null,700000]
[null,null,null,null,null,417,"Посланички додатак",null,null,0]
[null,null,null,null,null,418,"Судијски додатак.",null,null,0]
[null,null,null,null,61,421,"Стални трошкови",32000000,null,{"$f":"H323+I323","v":32000000}]
[null,null,null,null,62,422,"Трошкови путовања",500000,null,500000]
[null,null,null,null,63,423,"Услуге по уговору",35000000,null,35000000]
[null,null,null,null,64,424,"Специјализоване услуге",1000000,null,1000000]
[null,null,null,null,65,425,"Текуће поправке и одржавање",4312000,null,4312000]
[null,null,null,null,66,426,"Материјал",10000000,null,10000000]
[null,null,null,null,null,431,"Амортизација некретнина и опреме",null,null,0]
[null,null,null,null,null,432,"Амортизација култивисане имовине",null,null,0]
[null,null,null,null,null,433,"Употреба драгоцености",null,null,0]
[null,null,null,null,null,434,"Употреба природне имовине",null,null,0]
[null,null,null,null,null,435,"Амортизација нематеријалне имовине",null,null,0]
[null,null,null,null,null,441,"Отплата домаћих камата",null,null,0]
[null,null,null,null,null,442,"Отплата страних камата",null,null,0]
[null,null,null,null,null,443,"Отплата камата по гаранцијама",null,null,0]
[null,null,null,null,null,444,"Пратећи трошкови задуживања",null,null,0]
[null,null,null,null,null,4511,"Текуће субвенције јавним нефинансијским предузећима и организацијама                                                                ",null,null,0]
[null,null,null,null,null,4512,"Капиталне субвенције јавним нефинансијским предузећима и организацијама                                                                ",null,null,0]
[null,null,null,null,null,452,"Субвенције приватним финансијским институцијама",null,null,0]
[null,null,null,null,null,453,"Субвенције јавним финансијским институцијама",null,null,0]
[null,null,null,null,null,454,"Субвенције приватним предузећима",null,null,0]
[null,null,null,null,null,461,"Донације страним владама",null,null,0]
[null,null,null,null,null,462,"Донације и дотације међународним организацијама",null,null,0]
[null,null,null,null,null,4631,"Текући трансфери осталим нивоима власти",null,null,0]
[null,null,null,null,null,4632,"Капитални трансфери осталим нивоима власти",null,null,0]
[null,null,null,null,null,464,"Дотације организацијама обавезног социјалног осигурања",null,null,0]
[null,null,null,null,null,465,"Остале донације, дотације и трансфери",null,null,0]
[null,null,null,null,null,472,"Накнаде за социјалну заштиту из буџета",null,null,0]
[null,null,null,null,null,481,"Дотације невладиним организацијама",null,null,0]
[null,null,null,null,67,482,"Порези, обавезне таксе, казне и пенали",2500000,null,2500000]
[null,null,null,null,68,483,"Новчане казне и пенали по решењу судова",4500000," ",{"$f":"H352","v":4500000}]
[null,null,null,null,null,484,"Накнада штете за повреде или штету насталу услед елементарних непогода или других природних узрока",null,null,0]
[null,null,null,null,null,485,"Накнада штете за повреде или штету нанету од стране државних органа",null,null,0]
[null,null,null,null,null,489,"Расходи који се финансирају из средстава за реализацију националног инвестиционог плана",null,null,0]
[null,null,null,null,null,494,"Административни трансфери из буџета - Текући расходи",null,null,0]
[null,null,null,null,null,495,"Административни трансфери из буџета - Издаци за нефинансијску имовину",null,null,0]
[null,null,null,null,null,496,"Административни трансфери из буџета - Издаци за отплату главнице и набавку финансијске имовине",null,null,0]
[null,null,null,null,69,484,"Накнада штете настале услед елементарних непогода",1500000,null,1500000]
[null,null,null,null,null,511,"Зграде и грађевински објекти",null,null,0]
[null,null,null,null,70,485,"Накнада штете за повреду или штету нанету од стране државних органа",27000000,null,27000000]
[null,null,null,null,71,511,"Зграде и грађевински објекти - капитално одржавање пословних просторија",20000000,null,20000000]
[null,null,null,null,72,512,"Машине и опрема ",9000000,null,9000000]
[null,null,null,null,null,513,"Остале некретнине и опрема",null,null,0]
[null,null,null,null,null,514,"Култивисана имовина",null,null,0]
[null,null,null,null,null,515,"Нематеријална имовина",null,null,0]
[null,null,null,null,null,521,"Робне резерве",null,null,0]
[null,null,null,null,null,522,"Залихе производње",null,null,0]
[null,null,null,null,null,523,"Залихе робе за даљу продају",null,null,0]
[null,null,null,null,null,531,"Драгоцености",null,null,0]
[null,null,null,null,null,541,"Земљиште",null,null,0]
[null,null,null,null,null,542,"Рудна богатства",null,null,{"$f":"H372+I372","v":0}]
[null,null,null,null,null,543,"Шуме и воде",null,null,0]
[null,null,null,null,null,551,"Нефинансијска имовина која се финансира из средстава за реализацију националног инвестиционог плана",null,null,0]
[null,null,null,null,null,611,"Отплата главнице домаћим кредиторима",null,null,0]
[null,null,null,null,null,620,"Набавка финансијске имовине",null,null,0]
[null,null,null,null,73,515,"Остала нематеријална имовина - софтвери",1000000,null,1000000]
[null,null,null,null,null,null,"Извор финансирања за ПА: 0602-0001"]
[null,null,null,null,null,null,"01 - Приходи из буџета",{"$f":"H315+H316+H317+H318+H319+H320+H323+H324+H325+H326+H327+H328+H351+H352+H359+H361+H362+H363+H377","v":249234000},null,{"$f":"H379","v":249234000}]
[null,null,null,null,null,null,"Укупно за ПА: 0602-0001",{"$f":"H379","v":249234000},null,{"$f":"J315+J316+J317+J318+J319+J320+J323+J324+J325+J326+J327+J328+J351+J352+J359+J361+J362+J363+J377","v":249234000}]
[null,null,null,null,null,null,"Извори финансирања за функцију 130 - ОПШТИНСКА УПРАВА"]
[null,null,null,null,null,null,"01 - Приходи из буџета",{"$f":"H315+H316+H317+H318+H319+H320+H323+H324+H325+H326+H327+H328+H351+H352+H359+H361+H362+H363+H377","v":249234000},null,{"$f":"H382+I382","v":249234000}]
[null,null,null,null,null,null,"Укупно за функција: 130 - ОПШТИНСКА УПРАВА",{"$f":"H382","v":249234000},null,{"$f":"SUM(H383:I383)","v":249234000}]
[]
[5,null,null,null,null,null,"НАКНАДА ЗА СОЦИЈАЛНУ ЗАШТИТУ ИЗ БУЏЕТА"]
[null,null,"0902",null,null,null,"ПРОГРАМ 11: СОЦИЈАЛНА И ДЕЧЈА ЗАШТИТА"]
[null,null,"0902-0001",null,null,null,"ПА: Једнократне помоћи и други облици помоћи"]
[null,null,null,"020",null,null,"Старост"]
[null,null,null,null,42,472,"Накнада за услуге превоза пензионера и социјално угрожених категорија становништва (инвалида)",9000000,null,{"$f":"H389","v":9000000}]
[null,null,null,null,null,null,"Извори финансирања за ПА: 0901-0001"]
[null,null,null,null,null,null,"01 - Приходи из буџета",{"$f":"H389","v":9000000},null,{"$f":"J389","v":9000000}]
[null,null,null,null,null,null,"Укупно за ПА: 0901-0001",{"$f":"H391","v":9000000},null,{"$f":"J391","v":9000000}]
[]
[null,null,"0902",null,null,null,"ПРОГРАМ 11: СОЦИЈАЛНА И ДЕЧЈА ЗАШТИТА"]
[null,null,"0902-4001",null,null,null,"Пројекат: Помоћ у кући"]
[null,null,null,"020",null,null,"Старост"]
[null,null,null,null,43,472,"Новчана накнада за реализацију пројекта \"Помоћ у кући\"- за стара лица-геренто домаћице",13000000,null,{"$f":"H397","v":13000000}]
[null,null,null,null,null,null,"Извори финансирања за пројекат: 0902-4001"]
[null,null,null,null,null,null,"01 - Приходи из буџета",{"$f":"H397","v":13000000},null,{"$f":"J397","v":13000000}]
[null,null,null,null,null,null,"Укупно за пројекат: 0902-4001",{"$f":"H399","v":13000000},null,{"$f":"J399","v":13000000}]
[null,null,null,null,null,null,"Извори финансирања за функцију: 020"]
[null,null,null,null,null,null,"01 - Приходи из буџета",{"$f":"H392+H400","v":22000000},null,{"$f":"J392+J400","v":22000000}]
[null,null,null,null,null,null,"Укупно за функцију: 020",{"$f":"H402","v":22000000},null,{"$f":"J392+J400","v":22000000}]
[]
[null,null,"0902",null,null,null,"ПРОГРАМ 11: СОЦИЈАЛНА И ДЕЧЈА ЗАШТИТА"]
[null,null,"0902-0002",null,null,null,"ПА: Породични и домски смештај, прихватилишта и друге врсте смештаја"]
[null,null,null,"040",null,null,"Породица и деца"]
[null,null,null,null,44,472,"Накнада за социјалну заштиту из буџета - смештај деце ометене у развоју у дом",700000,null,700000]
[null,null,null,null,null,null,"Извори финансирања за ПА: 0902-0002"]
[null,null,null,null,null,null,"01 - Приходи из буџета",{"$f":"H408","v":700000},null,{"$f":"H410","v":700000}]
[null,null,null,null,null,null,"Укупно за ПА: 0902-0002",{"$f":"H410","v":700000},null,{"$f":"J410","v":700000}]
[]
[null,null,"0902-0016",null,null,null,"ПА: Дневне услуге заједнице"]
[null,null,null,"040",null,null,"Породица и деца"]
[null,null,null,null,45,472,"Накнада за социјалну заштиту из буџета - Дневне услуге боравка деце ометене у развоју \"Зрачак\"",4600000,1500000,{"$f":"H415+I415","v":6100000}]
[null,null,null,null,46,481,"Дотације невладиним организацијама - по конкурсу",4000000,null,{"$f":"H416+I416","v":4000000}]
[null,null,null,null,null,null,"Извори финансирања за ПА: 0902-0016"]
[null,null,null,null,null,null,"01 - Приходи из буџета",{"$f":"H415+H416","v":8600000},null,{"$f":"H418","v":8600000}]
[null,null,null,null,null,null,"07 - Приходи од Републике",null,{"$f":"I415","v":1500000},{"$f":"I419","v":1500000}]
[null,null,null,null,null,null,"Укупно за ПА: 0902-0016",{"$f":"H418","v":8600000},{"$f":"I419","v":1500000},{"$f":"J415+J416","v":10100000}]
[]
[null,null,"0902",null,null,null,"ПРОГРАМ 11: СОЦИЈАЛНА И ДЕЧЈА ЗАШТИТА"]
[null,null,"0902-0017",null,null,null,"ПА: Саветодавно-терапијске и социјално-едукативне услуге"]
[null,null,null,"040",null,null,"Породица и деца"," ",null," "]
[null,null,null,null,47,472,"Новчана накнада за СОС телефон за жртве насиља у породици",300000,null,{"$f":"H425","v":300000}]
[null,null,null,null,null,null,"Извори финансирања за ПА: 0902-0017"]
[null,null,null,null,null,null,"01 - Приходи из буџета",{"$f":"H425","v":300000},null,{"$f":"H427","v":300000}]
[null,null,null,null,null,null,"Укупно за ПА: 0902-0017",{"$f":"H427","v":300000},null,{"$f":"J427","v":300000}]
[]
[null,null,"0902",null,null,null,"ПРОГРАМ 11: СОЦИЈАЛНА И ДЕЧЈА ЗАШТИТА"]
[null,null,"0902-0019",null,null,null,"ПА: Подршка деци и породици са децом"]
[null,null,null,"040",null,null,"Породица и деца"]
[null,null,null,null,48,472,"Накнада за социјалну заштиту из буџета - лични пратилац за децу са посебним потребама (8.500.000) и помоћ у кући деци са сметњама у развоју (2.500.000)",11000000,null,{"$f":"H433+I433","v":11000000}]
[null,null,null,null,null,null,"Извори финансирања за ПА: 0902-0019"]
[null,null,null,null,null,null,"01 - Приходи из буџета",{"$f":"H433","v":11000000},null,{"$f":"H435","v":11000000}]
[null,null,null,null,null,null,"Укупно за ПА: 0902-0019",{"$f":"H435","v":11000000},null,{"$f":"J435","v":11000000}]
[]
[null,null,"0902",null,null,null,"ПРОГРАМ 11: СОЦИЈАЛНА И ДЕЧЈА ЗАШТИТА"]
[null,null,"0902-0020",null,null,null,"ПА: Подршка рађању и родитељству"]
[null,null,null,"040",null,null," Породица и деца"," ",null," "]
[null,null,null,null,49,472,"Накнада за социјалну заштиту из буџета - прворођено, другорођено, трећерођено и свако наредно дете  и накнада за вантелесну оплодњу ",22000000,null,{"$f":"H441","v":22000000}]
[null,null,null,null,null,null,"Извори финансирања за ПА: 0902-0020"]
[null,null,null,null,null,null,"01 - Приходи из буџета",{"$f":"H441","v":22000000},null,{"$f":"H443","v":22000000}]
[null,null,null,null,null,null,"Укупно за ПА: 0902-0020",{"$f":"H443","v":22000000}," ",{"$f":"J443","v":22000000}]
[null,null,null,null,null,null,"Извор финансирања за функцију: 040"]
[null,null,null,null,null,null,"01 - Приходи из буџета",{"$f":"H411+H420+H428+H436+H444","v":42600000},null,{"$f":"H446","v":42600000}]
[null,null,null,null,null,null,"07 - Приходи од Републике",null,{"$f":"I420","v":1500000},{"$f":"I447","v":1500000}]
[null,null,null,null,null,null,"Укупно за функцију: 040",{"$f":"H446","v":42600000},{"$f":"I447","v":1500000},{"$f":"J446+J447","v":44100000}]
[]
[null,null,"0902",null,null,null,"ПРОГРАМ 11: СОЦИЈАЛНА И ДЕЧЈА ЗАШТИТА"]
[null,null,"0902-0018",null,null,null,"ПА: Подршка реализацији програма Црвеног крста"]
[null,null,null,"070",null,null,"Социјална помоћ угроженом становништву"]
[null,null,null,null,52,"481","Дотације невладиним организацијама",4150000,null,{"$f":"H453","v":4150000}]
[null,null,null,null,null,null,"Извор финансирања за ПА: 0902-0018"]
[null,null,null,null,null,null,"01 - Приходи из буџета",{"$f":"H453","v":4150000},null,{"$f":"H455","v":4150000}]
[null,null,null,null,null,null,"Укупно за ПА: 0902-0018",{"$f":"H455","v":4150000},null,{"$f":"J455","v":4150000}]
[null,null,null,null,null,null,"Извор финансирања за функцију: 070"]
[null,null,null,null,null,null,"01 - Приходи из буџета",{"$f":"H455","v":4150000},null,{"$f":"J455","v":4150000}]
[null,null,null,null,null,null,"Укупно за функцију: 070",{"$f":"H455","v":4150000},null,{"$f":"J455","v":4150000}]
[]
[null,null,"0902",null,null,null,"ПРОГРАМ 11: СОЦИЈАЛНА И ДЕЧЈА ЗАШТИТА"]
[null,null,"0902-0001",null,null,null,"ПА: Једнократне помоћи и други облици помоћи"]
[null,null,null,"090",null,null,"Социјална заштита некласификована на другом месту"]
[null,null,null,null,53,463,"Једнократне помоћи по решењу  председника за социјално угрожене категорије становништва које се реализују преко центра за социјални рад",13000000,null,{"$f":"H464","v":13000000}]
[null,null,null,null,54,472,"Накнада трошкова за комуналне услуге социјално угроженим категоријама становништва, помоћ у лечењу, материјално обезбеђење социјално угрожених и друге помоћи и давања социјалним категоријама",4000000,null,{"$f":"H465","v":4000000}]
[null,null,null,null,null,null,"Извор финансирања за ПА: 0901-0001"]
[null,null,null,null,null,null,"01 - Приходи из буџета",{"$f":"H464+H465","v":17000000},null,{"$f":"J464+J465","v":17000000}]
[null,null,null,null,null,null,"Свега за ПА: 0901-0001",{"$f":"H467","v":17000000},null,{"$f":"J467","v":17000000}]
[null,null,null,null,null,null,"Извор финансирања за функцију: 090"]
[null,null,null,null,null,null,"01 - Приходи из буџета",{"$f":"H467","v":17000000},null,{"$f":"J467","v":17000000}]
[null,null,null,null,null,null,"Свега за функцију: 090",{"$f":"H470","v":17000000},null,{"$f":"J470","v":17000000}]
[]
[5," ",null,null,null,null,"РЕЗЕРВА"]
[null,null,"0602",null,null,null,"ПРОГРАМ 15: ЛОКАЛНА САМОУПРАВА"]
[null,null,"0602-0009",null,null,null,"ПА: ТЕКУЋА БУЏЕТСКА РЕЗЕРВА"]
[null,null,null,160,null,null,"Опште јавне услуге некласификоване на другом месту"]
[null,null,null,null,74,499,"Средства текуће буџетске резерве",30000000,null,{"$f":"H477+I477","v":30000000}]
[null,null,null,null,null,null,"Извори финансирања за ПА: 0602-0009 "]
[null,null,null,null,null,null,"01 - Приходи из буџета",{"$f":"H475+H476+H477","v":30000000},null,{"$f":"J475+J476+J477","v":30000000}]
[null,null,null,null,null,null,"Укупно за ПА: 0602-0009",{"$f":"H479","v":30000000},null,{"$f":"SUM(H480:I480)","v":30000000}]
[]
[" "," ","0602",null,null,null,"ПРОГРАМ 15: ЛОКАЛНА САМОУПРАВА"]
[null,null,"0602-0010",null,null,null,"ПА: СТАЛНА БУЏЕТСКА РЕЗЕРВА"]
[null,null,null,160,null,null,"Опште јавне услуге некласификоване на другом месту "]
[null,null,null,null,75,499,"Средства сталне буџетске резерве",5000000,null,{"$f":"H485+I485","v":5000000}]
[null,null,null,null,null,null,"Извори финансирања за ПА: 0602-0010 "]
[null,null,null,null,null,null,"01 - Приходи из буџета",{"$f":"H483+H484+H485","v":5000000},null,{"$f":"J483+J484+J485","v":5000000}]
[null,null,null,null,null,null,"Укупно за ПА: 0602-0010",{"$f":"H487","v":5000000},null,{"$f":"SUM(H488:I488)","v":5000000}]
[null,null,null,null,null,null,"Извори финансирања за функцију: 160"]
[null,null,null,null,null,null,"01 - Приходи из буџета",{"$f":"H480+H488","v":35000000},null,{"$f":"H490","v":35000000}]
[null,null,null,null,null,null,"Укупно за функцију: 160",{"$f":"H490","v":35000000},null,{"$f":"J490","v":35000000}]
[]
[5," ",null," ",null,null,"ТРАНСАКЦИЈЕ ВЕЗАНЕ ЗА ЈАВНИ ДУГ"]
[null,null,"0602",null,null,null,"ПРОГРАМ 15: ЛОКАЛНА САМОУПРАВА"]
[" "," ","0602-0003",null,null,null,"ПА: Сервисирање јавног  дуга"]
[null,null,null,170,null,null,"Трансакције јавног дуга"]
[null,null,null,null,null,411,"Плате, додаци и накнаде запослених (зараде)",null,null,{"$f":"SUM(H497:I497)","v":0}]
[null,null,null,null,null,412,"Социјални доприноси на терет послодавца",null,null,{"$f":"SUM(H498:I498)","v":0}]
[null,null,null,null,null,413,"Накнаде у натури",null,null,0]
[null,null,null,null,null,414,"Социјална давања запосленима",null,null,0]
[null,null,null,null,null,415,"Накнаде трошкова за запослене",null,null,0]
[null,null,null,null,null,416,"Награде запосленима и остали посебни расходи",null,null,0]
[null,null,null,null,null,417,"Посланички додатак",null,null,0]
[null,null,null,null,null,418,"Судијски додатак.",null,null,0]
[null,null,null,null,null,421,"Стални трошкови",null,null,0]
[null,null,null,null,null,422,"Трошкови путовања",null,null,0]
[null,null,null,null,null,423,"Услуге по уговору",null,null,0]
[null,null,null,null,null,424,"Специјализоване услуге",null,null,0]
[null,null,null,null,null,425,"Текуће поправке и одржавање",null,null,0]
[null,null,null,null,null,426,"Материјал",null,null,0]
[null,null,null,null,null,431,"Амортизација некретнина и опреме",null,null,0]
[null,null,null,null,null,432,"Амортизација култивисане имовине",null,null,0]
[null,null,null,null,null,433,"Употреба драгоцености",null,null,0]
[null,null,null,null,null,434,"Употреба природне имовине",null,null,0]
[null,null,null,null,null,435,"Амортизација нематеријалне имовине",null,null,0]
[null,null,null,null,76,441,"Отплата домаћих камата",4000000,null,4000000]
[null,null,null,null,null,442,"Отплата страних камата",null,null,0]
[null,null,null,null,null,443,"Отплата камата по гаранцијама",null,null,0]
[null,null,null,null,null,444,"Пратећи трошкови задуживања",null,null,0]
[null,null,null,null,null,4511,"Текуће субвенције јавним нефинансијским предузећима и организацијама                                                                ",null,null,0]
[null,null,null,null,null,4512,"Капиталне субвенције јавним нефинансијским предузећима и организацијама                                                                ",null,null,0]
[null,null,null,null,null,452,"Субвенције приватним финансијским институцијама",null,null,0]
[null,null,null,null,null,453,"Субвенције јавним финансијским институцијама",null,null,0]
[null,null,null,null,null,454,"Субвенције приватним предузећима",null,null,0]
[null,null,null,null,null,461,"Донације страним владама",null,null,0]
[null,null,null,null,null,462,"Донације и дотације међународним организацијама",null,null,0]
[null,null,null,null,null,4631,"Текући трансфери осталим нивоима власти",null,null,0]
[null,null,null,null,null,4632,"Капитални трансфери осталим нивоима власти",null,null,0]
[null,null,null,null,null,464,"Дотације организацијама обавезног социјалног осигурања",null,null,0]
[null,null,null,null,null,465,"Остале донације, дотације и трансфери",null,null,0]
[null,null,null,null,null,472,"Накнаде за социјалну заштиту из буџета",null,null,0]
[null,null,null,null,null,481,"Дотације невладиним организацијама",null,null,0]
[null,null,null,null,null,482,"Порези, обавезне таксе, казне и пенали",null,null,0]
[null,null,null,null,null,483,"Новчане казне и пенали по решењу судова",null,null,0]
[null,null,null,null,null,484,"Накнада штете за повреде или штету насталу услед елементарних непогода или других природних узрока",null,null,0]
[null,null,null,null,null,485,"Накнада штете за повреде или штету нанету од стране државних органа",null,null,0]
[null,null,null,null,null,489,"Расходи који се финансирају из средстава за реализацију националног инвестиционог плана",null,null,0]
[null,null,null,null,null,494,"Административни трансфери из буџета - Текући расходи",null,null,0]
[null,null,null,null,null,495,"Административни трансфери из буџета - Издаци за нефинансијску имовину",null,null,0]
[null,null,null,null,null,496,"Административни трансфери из буџета - Издаци за отплату главнице и набавку финансијске имовине",null,null,0]
[null,null,null,null,null,499,"Административни трансфери из буџета - Средства резерве",null,null,0]
[null,null,null,null,null,511,"Зграде и грађевински објекти",null,null,0]
[null,null,null,null,null,512,"Машине и опрема",null,null,0]
[null,null,null,null,null,513,"Остале некретнине и опрема",null,null,0]
[null,null,null,null,null,514,"Култивисана имовина",null,null,0]
[null,null,null,null,null,515,"Нематеријална имовина",null,null,0]
[null,null,null,null,null,521,"Робне резерве",null,null,0]
[null,null,null,null,null,522,"Залихе производње",null,null,0]
[null,null,null,null,null,523,"Залихе робе за даљу продају",null,null,0]
[null,null,null,null,null,531,"Драгоцености",null,null,0]
[null,null,null,null,null,541,"Земљиште",null,null,0]
[null,null,null,null,null,542,"Рудна богатства",null,null,0]
[null,null,null,null,null,543,"Шуме и воде",null,null,0]
[null,null,null,null,null,551,"Нефинансијска имовина која се финансира из средстава за реализацију националног инвестиционог плана",null,null,0]
[null,null,null,null,77,444,"Пратећи трошкови задуживања",50000,null,50000]
[null,null,null,null,null,620,"Набавка финансијске имовине",null,null,0]
[null,null,null,null,78,611,"Отплата главнице домаћим кредиторима",1000000,74000000,{"$f":"H557+I557","v":75000000}]
[null,null,null,null,null,null,"Извор финансирања за ПА: 0602-0003"]
[null,null,null,null,null,null,"01 - Приходи из буџета",{"$f":"H516+H555+H557","v":5050000},null,{"$f":"H559","v":5050000}]
[null,null,null,null,null,null,"13 - Из средстава суфицита",null,74000000,74000000]
[null,null,null,null,null,null,"Укупно за ПА: 0602-0003",{"$f":"H516+H555+H557","v":5050000},74000000,{"$f":"J516+J555+J557","v":79050000}]
[null,null,null,null,null,null,"Извори финансирања за функцију: 170 "]
[null,null,null,null,null,null,"01 - Приходи из буџета",{"$f":"H516+H555+H557","v":5050000},null,{"$f":"H563","v":5050000}]
[null,null,null,null,null,"02","Трансфери између корисника на истом нивоу",null,null,{"$f":"SUM(H564:I564)","v":0}]
[null,null,null,null,null,"03","Социјални доприноси",null,null,0]
[null,null,null,null,null,"04","Сопствени приходи буџетских корисника",null,null,0]
[null,null,null,null,null,"05","Донације од иностраних земаља",null,null,0]
[null,null,null,null,null,"06","Донације од међународних организација",null,null,0]
[null,null,null,null,null,"07","Трансфери од других нивоа власти",null,null,0]
[null,null,null,null,null,"08","Добровољни трансфери од физичких и правних лица",null,null,0]
[null,null,null,null,null,"09","Примања од продаје нефинансијске имовине",null,null,0]
[null,null,null,null,null,"10","Примања од домаћих задуживања",null,null,0]
[null,null,null,null,null,"11","Примања од иностраних задуживања",null,null,0]
[null,null,null,null,null,"12","Примања од отплате датих кредита и продаје финансијске имовине",null,null,0]
[null,null,null,null,null,"13","Нераспоређени вишак прихода из ранијих година",null,null,0]
[null,null,null,null,null,"14","Неутрошена средства од приватизације из претходних година",null,null,0]
[null,null,null,null,null,"15","Неутрошена средства донација из претходних година",null,null,0]
[null,null,null,null,null,"16","Родитељски динар за ваннаставне активности",null,null,0]
[null,null,null,null,null,null,"13 - Из средстава суфицита",null,74000000,74000000]
[null,null,null,null,null,null,"Укупно за функцију: 170 ",{"$f":"H516+H555+H557","v":5050000},74000000,{"$f":"J516+J555+J557","v":79050000}]
[]
[5," ",null,null,null,null,"СЕКТОР ЗА ВАНРЕДНЕ СИТУАЦИЈЕ"]
[" "," ","0602",null,null,null,"ПРОГРАМ 15: ЛОКАЛНА САМОУПРАВА"]
[null,null,"0602-0014",null,null,null,"ПА: ВАНРЕДНЕ СИТУАЦИЈЕ"]
[null,null,null,320,null,null,"Услуге противпожарне заштите"]
[null,null,null,null,79,481,"Дотације невладиним организацијама-ватрогасно друштво",1860000,null,{"$f":"H586","v":1860000}]
[null,null,null,null,null,null,"Извори финансирања за ПА: 0602-0014"]
[null,null,null,null,null,null,"01 - Приходи из буџета",{"$f":"H586","v":1860000},null,{"$f":"J586","v":1860000}]
[null,null,null,null,null,null,"Укупно за ПА: 0602-0014",{"$f":"H588","v":1860000},null,{"$f":"SUM(H589:I589)","v":1860000}]
[null,null,null,null,null,null,"Извори финансирања за функцију: 320"]
[null,null,null,null,null,null,"01 - Приходи из буџета",{"$f":"H586","v":1860000},null,{"$f":"J589","v":1860000}]
[null,null,null,null,null,null,"Укупно за функцију: 320",{"$f":"H589","v":1860000},null,{"$f":"J589","v":1860000}]
[]
[" "," ","0602",null,null,null,"ПРОГРАМ 15: ЛОКАЛНА САМОУПРАВА"]
[null,null,"0602-0014",null,null,null,"ПА: ВАНРЕДНЕ СИТУАЦИЈЕ"]
[null,null,null,360,null,null,"Јавни ред и безбедност некласификована на другом месту"]
[null,null,null,null,80,423,"Услуге по уговору",300000,null,{"$f":"H597","v":300000}]
[null,null,null,null,81,424,"Специјализоване услуге",500000,null,{"$f":"H598","v":500000}]
[null,null,null,null,82,426,"Материјал",500000,null,500000]
[null,null,null,null,83,472,"Накнада за социјалну заштиту из буџета- социјално угрожене",300000,null,{"$f":"H600","v":300000}]
[null,null,null,null,84,484,"Накнада штете за повреде или штету насталу услед елементарних непо. ",50000,null,50000]
[null,null,null,null,85,485,"Накнада штете за повреде или штету насталу кривицом државних орга. ",50000,null,50000]
[null,null,null,null,86,512,"Машине и опрема",150000,null,150000]
[null,null,null,null,null,null,"Извори финансирања за ПА: 0602-0014"]
[null,null,null,null,null,null,"01 - Приходи из буџета",{"$f":"H597+H598+H599+H600+H601+H602+H603","v":1850000},null,{"$f":"J597+J598+J599+J600+J601+J602+J603","v":1850000}]
[null,null,null,null,null,null,"Укупно за ПА: 0602-0014",{"$f":"H605","v":1850000},null,{"$f":"SUM(H606:I606)","v":1850000}]
[]
[null,null,"0701",null,null,null,"ПРОГРАМ 7: ОРГАНИЗАЦИЈА САОБРАЋАЈА И САОБРАЋАЈНА ИНФРАСТРУКТУРА"]
[null,null,"0701-0005",null,null,null,"ПА: Унапређење безбедности саобраћаја"]
[null,null,null,360,null,null,"Јавни ред и безбедност некласификована на другом месту"]
[null,null,null,null,87,423,"Услуге по уговору",5050000,null,{"$f":"H611","v":5050000}]
[null,null,null,null,88,426,"Maтеријал",100000,null,{"$f":"H612","v":100000}]
[null,null,null,null,89,472,"Накнада из буџета за децу и породицу-набавка ауто-седишта ",1000000,null,{"$f":"H613","v":1000000}]
[null,null,null,null,90,512,"Машине и опрема",950000,null,{"$f":"H614","v":950000}]
[null,null,null,null,null,null,"Извори финансирања за ПА: 0701-0005"]
[null,null,null,null,null,null,"01 - Приходи из буџета",{"$f":"H611+H612+H613+H614","v":7100000},null,{"$f":"J611+J612+J613+J614","v":7100000}]
[null,null,null,null,null,null,"Укупно за ПА: 0701-0005",{"$f":"H616","v":7100000},null,{"$f":"J616","v":7100000}]
[null,null,null,null,null,null,"Извори финансирања за функцију: 360"]
[null,null,null,null,null,null,"01 - Приходи из буџета",{"$f":"H606+H617","v":8950000},null,{"$f":"J606+J617","v":8950000}]
[null,null,null,null,null,null,"Укупно за функцију: 360",{"$f":"H619","v":8950000},null,{"$f":"J619","v":8950000}]
[]
[null,null,"1501",null,null,null,"ПРОГРАМ 3: ЛОКАЛНИ ЕКОНОМСКИ РАЗВОЈ"]
[null,null,"1501-0003",null,null,null,"ПА: Подршка економском развоју и промоцији предузетништва"]
[null,null,null,411,null,null,"Општи економски и комерцијални послови"]
[null,null,null,null,91,451,"Текуће субвенције осталим јавним предузећима и организацијама-РРАЗ (2.353.000) и ПД за иновациону делатност \"Инo бизнис центар\" (19.850.000)",22203000,null,{"$f":"H625+I625","v":22203000}]
[null,null,null,null,92,481,"Дотације невладиним организацијама - СКГО",800000,null,{"$f":"H626","v":800000}]
[null,null,null,null,93,511,"Изградња привремених објеката на Златибору за издавање",5000000,null,{"$f":"H627","v":5000000}]
[null,null,null,null,null,null,"Извори финансирања за ПА: 1501-0003"]
[null,null,null,null,null,null,"01 - Приходи из буџета",{"$f":"H625+H626+H627","v":28003000},null,{"$f":"J625+J626+J627","v":28003000}]
[null,null,null,null,null,null,"Укупно за ПА: 1501-0003",{"$f":"H629","v":28003000},null,{"$f":"J625+J626+J627","v":28003000}]
[null,null,null,null,null,null,"Извори финансирања за функцију: 411"]
[null,null,null,null,null,null,"01 - Приходи из буџета",{"$f":"H630","v":28003000},null,{"$f":"J630","v":28003000}]
[null,null,null,null,null,null,"Укупно за функцију: 411",{"$f":"H630","v":28003000},null,{"$f":"J630","v":28003000}]
[]
[null,null,"1501-0002",null,null,null,"ПА: Мере активне политике запошљавања"]
[null,null,null,412,null,null,"Општи послови по питању рада"]
[null,null,null,null,94,464,"Текуће дотације националној служби за запошљавање",7000000,null,{"$f":"H637","v":7000000}]
[null,null,null,null,null,null,"Извори финансирања за ПА: 1501-0002"]
[null,null,null,null,null,null,"01 - Приходи из буџета",{"$f":"H637","v":7000000},null,{"$f":"SUM(H639:I639)","v":7000000}]
[null,null,null,null,null,null,"Укупно за ПА: 1501-0002",{"$f":"H639","v":7000000},null,{"$f":"J639","v":7000000}]
[null,null,null,null,null,null,"Извори финансирања за функцију: 412"]
[null,null,null,null,null,null,"01 - Приходи из буџета",{"$f":"H640","v":7000000},null,{"$f":"J640","v":7000000}]
[null,null,null,null,null,null,"Укупно за функцију: 412",{"$f":"H642","v":7000000},null,{"$f":"J642","v":7000000}]
[]
[null,null,null,null,null,null,"ПОЉОПРИВРЕДА, ШУМАРСТВО, ЛОВ И РИБОЛОВ"]
[null,null,"0101",null,null,null,"ПРОГРАМ 5: РАЗВОЈ ПОЉОПРИВРЕДЕ"]
[null,null,"0101-0001",null,null,null,"ПА: Подршка за спровођење пољопривредне политике у локалној заједници"]
[null,null,null,421,null,null," Пољопривреда"]
[null,null,null,null,95,"423","Услуге по уговору ",2000000,null,{"$f":"H649","v":2000000}]
[null,null,null,null,96,"424","Специјализоване услуге (накнада за противградну заштиту)",1500000,null,{"$f":"H650+I650","v":1500000}]
[null,null,null,null,97,451,"Текуће субвенције за наканду штете за угинућа домаћих животиња",5000000,null,{"$f":"H651","v":5000000}]
[null,null,null,null,98,481,"Дотације невладиним организацијама - пољопривредним удружењима на основу конкурса",1700000,null,{"$f":"H652","v":1700000}]
[null,null,null,null,null,null,"Извор финансирања за ПА: 0101-0001"]
[null,null,null,null,null,null,"01 - Приходи из буџета",{"$f":"H649+H650+H651+H652","v":10200000},null,{"$f":"H654+I654","v":10200000}]
[null,null,null,null,null,null,"Свега за функцију 0ПА: 0101-0001",{"$f":"H649+H650+H651+H652","v":10200000},null,{"$f":"J649+J650+J651+J652","v":10200000}]
[null,null,null,null,null,null,null," ",null," "]
[null,null,"0101-0002",null,null,null,"ПА: Мере подршке руралном развоју"]
[null,null,null,421,null,null,"Пољопривреда"]
[null,null,null,null,99,423,"Услуге по уговору",27300000,null,{"$f":"H659+I659","v":27300000}]
[null,null,null,null,100,451,"Текуће  субвенције пољопривредним газдинствима, откуп млека",229600000,null,{"$f":"H660+I660","v":229600000}]
[null,null,null,null,null,null,"Извор финансирања за ПА: 0101-0002"]
[null,null,null,null,null,null,"01 - Приходи из буџета",{"$f":"H659+H660","v":256900000},null,{"$f":"H662","v":256900000}]
[null,null,null,null,null,null,"Укупно за ПА:  0101-0002",{"$f":"H662","v":256900000},null,{"$f":"J659+J660","v":256900000}]
[]
[null,null,"0101-5001",null,null,null,"Пројекат: Изградња агро-бизнис центра"]
[null,null,null,421,null,null,"Пољопривреда"]
[null,null,null,null,101,423,"Услуге по уговору",1000000,null,1000000]
[null,null,null,null,102,511,"Зграде и грађевински објекти",14000000,30000000,{"$f":"H668+I668","v":44000000}]
[null,null,null,null,null,null,"Извор финансирања за Пројекат: 0101-5001"]
[null,null,null,null,null,null,"01 - Приходи из буџета",{"$f":"H667+H668","v":15000000},null,15000000]
[null,null,null,null,null,null,"13 - Из средстава суфицита",null,30000000,30000000]
[null,null,null,null,null,null,"Укупно за Пројекат:  0101-5001",{"$f":"H670","v":15000000},{"$f":"I671","v":30000000},{"$f":"J667+J668","v":45000000}]
[null,null,null,null,null,null,"Извор финансирања  за функцију: 421"]
[null,null,null,null,null,null,"01 - Приходи из буџета",{"$f":"H654+H662+H670","v":282100000},null,{"$f":"H674","v":282100000}]
[null,null,null,null,null,null,"13 - Из средстава суфицита",null,30000000,30000000]
[null,null,null,null,null,null,"Укупно за функцију: 421",{"$f":"H674","v":282100000},{"$f":"I663+I672","v":30000000},{"$f":"J655+J663+J672","v":312100000}]
[]
[null,null,"0501",null,null,null,"ПРОГРАМ 17: ЕНЕРГЕТСКА ЕФИКАСНОСТ И ОБНОВЉИВИ ИЗВОРИ ЕНЕРГИЈЕ"]
[null,null,"0501-0001",null,null,null,"ПА: Енергетски менаџмент"]
[null,null,null,430,null,null,"Гориво и енергија"]
[null,null,null,null,103,"512","Машине и опрема - соларни панели",15000000,null,15000000]
[null,null,null,null,null,null,"Извор финансирања за ПА: 0501-0001"]
[null,null,null,null,null,null,"01 - Приходи из буџета",{"$f":"H681","v":15000000},null,{"$f":"H683","v":15000000}]
[null,null,null,null,null,null,"Укупно за ПА: 0501-0001",{"$f":"H683","v":15000000},null,{"$f":"J683","v":15000000}]
[null,null,null,null,null,null,"Извор финансирања за функцију: 430"]
[null,null,null,null,null,null,"01 - Приходи из буџета",{"$f":"H684","v":15000000},null,{"$f":"J684","v":15000000}]
[null,null,null,null,null,null,"Укупно за функцију: 430",{"$f":"H686","v":15000000},null,{"$f":"J686","v":15000000}]
[]
[null,null,"1101",null,null,null,"ПРОГРАМ 1: ЛОКАЛНИ РАЗВОЈ И ПРОСТОРНО ПЛАНИРАЊЕ"]
[null,null,"1101-0001",null,null,null,"ПА:  Просторно и урбанистичко планирање"]
[null,null,null,443,null,null,"Изградња"]
[null,null,null,null,104,423,"Услуге по уговору - рад комисије за планове",7000000,null,{"$f":"H692+I692","v":7000000}]
[null,null,null,null,105,424,"Специјализоване услуге - геодетске услуге, снимање, укњижба, препарцелизација",15000000,null,{"$f":"H693+I693","v":15000000}]
[null,null,null,null,106,483,"Новчане казне и пенали по решењу судова",800000,null,{"$f":"H694","v":800000}]
[null,null,null,null,107,511,"Зграде и грађевински објекти - израда пројектне документације (плана детаљне и генералне регулације, пројекта за заштиту пијаће воде језера Рибница, пројекта за Сушичко врело, Доброселичка река, просторни план)",30000000,null,30000000]
[null,null,null,null,108,541,"Набавка земљишта",50000000,null,{"$f":"H696","v":50000000}]
[null,null,null,null,null,null,"Извор финансирања за ПА: 1101-0001"]
[null,null,null,null,null,null,"01 - Приходи из буџета",{"$f":"H692+H693+H694+H695+H696","v":102800000},null,{"$f":"H698","v":102800000}]
[null,null,null,null,null,null,"Укупно за ПА: 1101-0001  ",{"$f":"H698","v":102800000},null,{"$f":"J692+J693+J694+J695+J696","v":102800000}]
[]
[null,null,"1101-0006",null,null,null,"ПА: Означавање назива улица, тргова и зграда кућним бројевима"]
[null,null,null,443,null,null,"Изградња"]
[null,null,null,null,109,423,"Услуге по уговору",500000,null,{"$f":"H703","v":500000}]
[null,null,null,null,null,null,"Извор финансирања за ПА: 1101-0006"]
[null,null,null,null,null,null,"01 - Приходи из буџета",{"$f":"H703","v":500000},null,{"$f":"J703","v":500000}]
[null,null,null,null,null,null,"Укупно за ПА: 1101-0006 ",{"$f":"H705","v":500000},null,{"$f":"J705","v":500000}]
[null,null,null,null,null,null,"Извор финансирања за функцију:443"]
[null,null,null,null,null,null,"01 - Приходи из буџета",{"$f":"H699+H706","v":103300000},null,{"$f":"H708","v":103300000}]
[null,null,null,null,null,null,"Укупно за функцију: 443 ",{"$f":"H699+H706","v":103300000},null,{"$f":"J699+J706","v":103300000}]
[]
[null,null,"0701",null,null,null,"ПРОГРАМ: 7 - ОРГАНИЗАЦИЈА САОБРАЋАЈА И  САОБРАЋАЈНА ИНФРАСТРУКТУРА"]
[null,null,"0701-0002 ",null,null,null,"ПА: Управљање и одржавање саобраћајне инфраструктуре"]
[null,null,null,451,null,null,"Друмски саобраћај"]
[null,null,null,null,110,425,"Текуће поправке и одржавање путева",70000000,100000000,{"$f":"H714+I714","v":170000000}]
[null,null,null,null,111,511,"Зграде и грађевински објекти - изградња путева, мостова, уређење пешачких стаза у Чајетини ",169000000,126000000,{"$f":"SUM(H715:I715)","v":295000000}]
[null,null,null,null,null,null,"Извори финансирања за ПА: 0701-0002"]
[null,null,null,null,null,null,"01 - Приходи из буџета",{"$f":"H714+H715","v":239000000},null,{"$f":"SUM(H717:I717)","v":239000000}]
[null,null,null,null,null,null,"13 - Из средстава суфицита",null,{"$f":"I714+I715","v":226000000},226000000]
[null,null,null,null,null,null,"Укупно за ПА:0701-0002",{"$f":"H717","v":239000000},{"$f":"I718","v":226000000},{"$f":"J714+J715","v":465000000}]
[]
[" "," ","0701-0004",null,null,null,"ПА: Јавни градски и приградски превоз"]
[null,null,null,451,null,null,"Друмски саобраћај"]
[null,null,null,null,112,423,"Услуге по уговору",4000000,null,{"$f":"H723","v":4000000}]
[null,null,null,null,null,null,"Извори финансирања за ПА: 0701-0004"]
[null,null,null,null,null,null,"01 - Приходи из буџета",{"$f":"H723","v":4000000},null,{"$f":"H725","v":4000000}]
[null,null,null,null,null,null,"Укупно за ПА: 0701-0004",{"$f":"H725","v":4000000},null,{"$f":"J725","v":4000000}]
[null,null,null,null,null,null,"Извори финансирања за Функцију 451:  "]
[null,null,null,null,null,null,"01 - Приходи из буџета",{"$f":"H719+H726","v":243000000},null,{"$f":"J717+J725","v":243000000}]
[null,null,null,null,null,null,"13 - Из средстава суфицита",null,{"$f":"I719","v":226000000},226000000]
[null,null,null,null,null,null,"Укупно за Функцију 451:  ",{"$f":"H728","v":243000000},{"$f":"I719","v":226000000},{"$f":"J719+J726","v":469000000}]
[]
[5," ","1502",null,null,null,"ПРОГРАМ 4: РАЗВОЈ ТУРИЗМА"]
[null,null,"1502-0002",null,null,null,"ПА: ПРОМОЦИЈА ТУРИСТИЧКЕ ПОНУДЕ"]
[null,null,null,473,null,null,"Туризам"]
[null,null,null,null,113,451,"Капиталне   субвенције јавним нефинансијским предузећима - ЈП \"Gold Gondola Zlatibor\"- набавка 20 кабина ",60000000,null,60000000]
[null,null,null,null,114,481,"Дотације невладиним организацијама-расподела средстава по конкурсу туристичким удружењима",1700000,null,{"$f":"H736","v":1700000}]
[null,null,null,null,null,null,"Извори финансирања за ПА: 1502-0002"]
[null,null,null,null,null,null,"01 - Приходи из буџета",{"$f":"H735+H736","v":61700000},null,{"$f":"J735+J736","v":61700000}]
[null,null,null,null,null,null,"Укупно  за Пројекат: 2101-ПР001",{"$f":"H738","v":61700000},null,{"$f":"J738","v":61700000}]
[]
[null,null,"1502",null,null,null,"ПРОГРАМ 4: РАЗВОЈ ТУРИЗМА"]
[null,null,"1502-4001"," ",null,null,"Пројекат: Канцеларија за сарадњу са Руском федерацијом и Грчком"]
[null,null,null,473,null,null,"Туризам"]
[null,null,null,null,115,422,"Трошкови путовања",100000,null,{"$f":"H744","v":100000}]
[null,null,null,null,116,423,"Услуге по уговору",200000,null,{"$f":"H745","v":200000}]
[null,null,null,null,117,426,"Материјал",30000,null,{"$f":"H746","v":30000}]
[null,null,null,null,null,null,"Извори финансирања за Пројекат: 2101-ПР001"]
[null,null,null,null,null,null,"01 - Приходи буџета",{"$f":"H744+H745+H746","v":330000},null,{"$f":"SUM(H748:I748)","v":330000}]
[null,null,null,null,null,null,"Укупно за Пројекат: 2101-ПР001",{"$f":"H748","v":330000},null,{"$f":"J748","v":330000}]
[null,null,null,null,null,null,"Социјални доприноси",null,null,{"$f":"SUM(H750:I750)","v":0}]
[null,null,null,null,null,null,"Сопствени приходи буџетских корисника",null,null,0]
[null,null,null,null,null,null,"Донације од иностраних земаља",null,null,0]
[null,null,null,null,null,null,"Донације од међународних организација",null,null,0]
[null,null,null,null,null,null,"Трансфери од других нивоа власти",null,null,0]
[null,null,null,null,null,null,"Добровољни трансфери од физичких и правних лица",null,null,0]
[null,null,null,null,null,null,"Примања од продаје нефинансијске имовине",null,null,0]
[null,null,null,null,null,null,"Примања од домаћих задуживања",null,null,0]
[null,null,null,null,null,null,"Примања од иностраних задуживања",null,null,0]
[null,null,null,null,null,null,"Примања од отплате датих кредита и продаје финансијске имовине",null,null,0]
[null,null,null,null,null,null,"Нераспоређени вишак прихода из ранијих година",null,null,0]
[null,null,null,null,null,null,"Неутрошена средства од приватизације из претходних година",null,null,0]
[null,null,null,null,null,null,"Неутрошена средства донација из претходних година",null,null,0]
[null,null,null,null,null,null,"01 - Приходи из буџета",{"$f":"H744+H745+H746","v":330000},null,330000]
[null,null,null,null,null,null,"Укупно  за Пројекат: 2101-ПР001",{"$f":"H744+H745+H746","v":330000},null,{"$f":"J744+J745+J746","v":330000}]
[]
[null,null,"1502",null,null,null,"ПРОГРАМ 4: РАЗВОЈ ТУРИЗМА"]
[null,null,"1502-5002",null,null,null,"Пројекат: ИЗГРАДЊА ГОНДОЛЕ"]
[null,null,null,473,null,null,"Туризам"]
[null,null,null,null,118,423,"Услуге по уговору",200000,null,200000]
[null,null,null,null,119,511,"Зграде и грађевински објекти - изградња управне зграде",60000000,null,{"$f":"H770","v":60000000}]
[null,null,null,null,null,null,"Извори финансирања за Пројекат: 1502-5002"]
[null,null,null,null,null,null,"01 - Приходи из буџета",{"$f":"H769+H770","v":60200000},null,{"$f":"SUM(H772:I772)","v":60200000}]
[null,null,null,null,null,null,"Укупно  за Пројекат: 1502-5002",{"$f":"H772","v":60200000},null,{"$f":"SUM(H773:I773)","v":60200000}]
[null,null,null,null,null,"03","Социјални доприноси",null,null,0]
[null,null,null,null,null,"04","Сопствени приходи буџетских корисника",null,null,0]
[null,null,null,null,null,"05","Донације од иностраних земаља",null,null,0]
[null,null,null,null,null,"06","Донације од међународних организација",null,null,0]
[null,null,null,null,null,"07","Трансфери од других нивоа власти",null,null,0]
[null,null,null,null,null,"08","Добровољни трансфери од физичких и правних лица",null,null,0]
[null,null,null,null,null,"09","Примања од продаје нефинансијске имовине",null,null,0]
[null,null,null,null,null,"10","Примања од домаћих задуживања",null,null,0]
[null,null,null,null,null,"11","Примања од иностраних задуживања",null,null,0]
[null,null,null,null,null,"12","Примања од отплате датих кредита и продаје финансијске имовине",null,null,0]
[null,null,null,null,null,"13","Нераспоређени вишак прихода из ранијих година",null,null,0]
[null,null,null,null,null,"14","Неутрошена средства од приватизације из претходних година",null,null,0]
[null,null,null,null,null,"15","Неутрошена средства донација из претходних година",null,null,0]
[null,null,null,null,null,null,"01 - Приходи из буџета",{"$f":"H769+H770","v":60200000},null,60200000]
[null,null,null,null,null,null,"Свега за Пројекат: 1502-5002",{"$f":"H772","v":60200000},null,{"$f":"J772","v":60200000}]
[]
[null,null,"1502",null,null,null,"ПРОГРАМ 4: РАЗВОЈ ТУРИЗМА"]
[null,null,"1502-5003",null,null,null,"Пројекат: Уређење трга на Зларибору"]
[null,null,null,473,null,null,"Туризам"]
[null,null,null,null,120,511,"Зграде и грађевински објекти-уређење трга и језера",15000000,null,{"$f":"H793+I793","v":15000000}]
[null,null,null,null,null,null,"Извори финансирања за Пројекат: 1502-5003"]
[null,null,null,null,null,null,"01 - Приходи из буџета",{"$f":"H793","v":15000000},null,{"$f":"J793","v":15000000}]
[null,null,null,null,null,null,"Свега за Пројекат: 1502-5003",{"$f":"H795","v":15000000},null,{"$f":"J795","v":15000000}]
[null,null,null,null,null,null,"Извори финансирања за функцију: 473"]
[null,null,null,null,null,null,"01 - Приходи из буџета",{"$f":"H739+H749+H773+H796","v":137230000},null,{"$f":"H798","v":137230000}]
[null,null,null,null,null,null,"Укупно за функцију: 473",{"$f":"H739+H749+H773+H796","v":137230000},null,{"$f":"SUM(H799:I799)","v":137230000}]
[]
[null,null,null,null,null,"03","Социјални доприноси",null,null,{"$f":"SUM(H801:I801)","v":0}]
[null,null,null,null,null,"04","Сопствени приходи буџетских корисника",null,null,0]
[null,null,null,null,null,"05","Донације од иностраних земаља",null,null,0]
[null,null,null,null,null,"06","Донације од међународних организација",null,null,0]
[null,null,null,null,null,"07","Трансфери од других нивоа власти",null,null,0]
[null,null,null,null,null,"08","Добровољни трансфери од физичких и правних лица",null,null,0]
[null,null,null,null,null,"09","Примања од продаје нефинансијске имовине",null,null,0]
[null,null,null,null,null,"10","Примања од домаћих задуживања",null,null,0]
[null,null,null,null,null,"11","Примања од иностраних задуживања",null,null,0]
[null,null,null,null,null,"12","Примања од отплате датих кредита и продаје финансијске имовине",null,null,0]
[null,null,null,null,null,"13","Нераспоређени вишак прихода из ранијих година",null,null,0]
[null,null,null,null,null,"14","Неутрошена средства од приватизације из претходних година",null,null,0]
[null,null,null,null,null,"15","Неутрошена средства донација из претходних година",null,null,0]
[null,null,null,null,null,"16","Родитељски динар за ваннаставне активности",null,null,0]
[]
[]
[]
[]
[]
[]
[null,null,"1102",null,null,null,"ПРОГРАМ 2: КОМУНАЛНА ДЕЛАТНОСТ"]
[null,null,"1102-0003",null,null,null,"ПА: Одржавање чистоће на површинама јавне намене "]
[null,null,null,510,null,null,"Управљање отпадом"," "]
[null,null,null,null,121,421,"Стални трошкови - КЈП \"Златибор\"- изношење смећа по сеоским МЗ,  прикупљање кабастог отпада)",9000000,20000000,{"$f":"H824+I824","v":29000000}]
[null,null,null,null,122,423,"Услуге по уговору - одржавање и уређење јавних површина (купљење папира, прање улица, поправка парковског мобилијара)",17000000,30000000,{"$f":"H825+I825","v":47000000}]
[null,null,null,null,null,null,"Извори финансирања за ПА: 1102-0003"]
[null,null,null,null,null,null,"01 - Приходи из буџета",{"$f":"H824+H825","v":26000000},null,{"$f":"SUM(H827:I827)","v":26000000}]
[null,null,null,null,null,"03","Социјални доприноси",null,null,{"$f":"SUM(H828:I828)","v":0}]
[null,null,null,null,null,"04","Сопствени приходи буџетских корисника",null,null,0]
[null,null,null,null,null,"05","Донације од иностраних земаља",null,null,0]
[null,null,null,null,null,"06","Донације од међународних организација",null,null,0]
[null,null,null,null,null,"07","Трансфери од других нивоа власти",null,null,0]
[null,null,null,null,null,"08","Добровољни трансфери од физичких и правних лица",null,null,0]
[null,null,null,null,null,"09","Примања од продаје нефинансијске имовине",null,null,0]
[null,null,null,null,null,"10","Примања од домаћих задуживања",null,null,0]
[null,null,null,null,null,"11","Примања од иностраних задуживања",null,null,0]
[null,null,null,null,null,"12","Примања од отплате датих кредита и продаје финансијске имовине",null,null,0]
[null,null,null,null,null,"13","Нераспоређени вишак прихода из ранијих година",null,null,0]
[null,null,null,null,null,"14","Неутрошена средства од приватизације из претходних година",null,null,0]
[null,null,null,null,null,"15","Неутрошена средства донација из претходних година",null,null,0]
[null,null,null,null,null,null,"01 - Приходи из буџета",{"$f":"H824+H825+#REF!","v":{"$error":"#REF!"}},null,{"$error":"#REF!"}]
[null,null,null,null,null,null,"13 - Из средстава суфицита",null,null,20000000]
[null,null,null,null,null,null,"13 - Из средстава суфицита",null,50000000,50000000]
[null,null,null,null,null,null,"Укупно за ПА: 1102-0003",{"$f":"H827","v":26000000},50000000,{"$f":"J827+J843","v":76000000}]
[]
[null,null,"1102-5001",null,null,null,"Пројекат: Изградња рециклажног дворишта \"Широка бара\" на Златибору"]
[null,null,null,510,null,null,"Управљање отпадом"]
[null,null,null,null,123,511,"Зграде и грађевински објекти - изградња рециклажног дворишта (пословног објекта са претоварном станицом и пратећим садржајем)",35000000,null,{"$f":"H848+I848","v":35000000}]
[null,null,null,null,null,null,"Извор финансирања за Пројекат: 1102-001"]
[null,null,null,null,null,null,"01 - Приходи буџета",{"$f":"H848","v":35000000},null,{"$f":"H850","v":35000000}]
[null,null,null,null,null,null,"Укупно за Пројекат: 1102-001",{"$f":"H850","v":35000000},null,{"$f":"J850","v":35000000}]
[null,null,null,null,null,null,"Извор финансирања за функцију: 510"]
[null,null,null,null,null,null,"01 - Приходи буџета",{"$f":"H844+H851","v":61000000},null,{"$f":"H853","v":61000000}]
[null,null,null,null,null,null,"13 - Из средстава суфицита",null,50000000,50000000]
[null,null,null,null,null,null,"Укупно за функцију: 510",{"$f":"H853","v":61000000},50000000,{"$f":"J844+J851","v":111000000}]
[]
[null,null,"1102-5002",null,null,null,"Пројекат: Изградња Постројења за пречишћавање отпадних вода"]
[null,null,null,520,null,null,"Упорављање отпадним водама"]
[null,null,null,null,124,511,"Зграде и грађевински објекти - изградња постројења",2000000,null,{"$f":"H859","v":2000000}]
[null,null,null,null,null,null,"Извори финансирања за пројекат : 1102-002"," ",null," "]
[null,null,null,null,null,null,"01 - Приходи из буџета",{"$f":"H859","v":2000000},null,{"$f":"SUM(H861:I861)","v":2000000}]
[null,null,null,null,null,null,"Укупно за пројекат: 1102-002",{"$f":"SUM(H861:H861)","v":2000000},null,{"$f":"SUM(J861:J861)","v":2000000}]
[null,null,null,null,null,null,"Извори финансирања за Функцију 520:"]
[null,null,null,null,null,null,"01 - Приходи из буџета",{"$f":"H862","v":2000000},null,{"$f":"SUM(H864:I864)","v":2000000}]
[null,null,null,null,null,null,"Укупно за Функцију 520:",{"$f":"H864","v":2000000},null,{"$f":"SUM(J864:J864)","v":2000000}]
[]
[null,null,"1102-0002"," ",null,null,"ПА: Одржавање јавних зелених површина"]
[null,null,null,540,null,null,"Заштита биљног и животињског света и крајолика"]
[null,null,null,null,125,"423","Услуге по уговору",100000,null,100000]
[null,null,null,null,126,"424","Специјализоване услуге - одржавање паркова и зелених површина  и постављање урбаног мобилијара, постављање заштитне подлоге у парковима ",29000000,30000000,{"$f":"H870+I870","v":59000000}]
[null,null,null,null,null,null,"Извори финансирања за ПА: 1102-0002"," ",null," "]
[null,null,null,null,null,null,"01 - Приходи из буџета",{"$f":"H869+H870","v":29100000},null,29100000]
[null,null,null,null,null,"03","Социјални доприноси",null,null,{"$f":"SUM(H873:I873)","v":0}]
[null,null,null,null,null,"04","Сопствени приходи буџетских корисника",null,null,0]
[null,null,null,null,null,"05","Донације од иностраних земаља",null,null,0]
[null,null,null,null,null,"06","Донације од међународних организација",null,null,0]
[null,null,null,null,null,"07","Трансфери од других нивоа власти",null,null,0]
[null,null,null,null,null,"08","Добровољни трансфери од физичких и правних лица",null,null,0]
[null,null,null,null,null,"09","Примања од продаје нефинансијске имовине",null,null,0]
[null,null,null,null,null,"10","Примања од домаћих задуживања",null,null,0]
[null,null,null,null,null,"11","Примања од иностраних задуживања",null,null,0]
[null,null,null,null,null,"12","Примања од отплате датих кредита и продаје финансијске имовине",null,null,0]
[null,null,null,null,null,"13","Нераспоређени вишак прихода из ранијих година",null,null,0]
[null,null,null,null,null,"14","Неутрошена средства од приватизације из претходних година",null,null,0]
[null,null,null,null,null,"15","Неутрошена средства донација из претходних година",null,null,0]
[null,null,null,null,null,null,"01 - Приходи из буџета",{"$f":"H869+H870","v":29100000},null,29100000]
[null,null,null,null,null,null,"13 - Из средстава суфицита",null,15000000,{"$f":"I887","v":15000000}]
[null,null,null,null,null,null,"13 - Из средстава суфицита",null,30000000,30000000]
[null,null,null,null,null,null,"Укупно за ПА:1102-0002",{"$f":"H886","v":29100000},30000000,{"$f":"J869+J870","v":59100000}]
[null,null,null,null,null,null,"Извори финансирања за функцију: 540"]
[null,null,null,null,null,null,"01 - Приходи из буџета",{"$f":"H886","v":29100000},null,{"$f":"H891","v":29100000}]
[null,null,null,null,null,null,"13 - Из средстава суфицита",null,30000000,30000000]
[null,null,null,null,null,null,"Укупно за функцију: 540",{"$f":"H891","v":29100000},30000000,{"$f":"J889","v":59100000}]
[]
[5,null,null,null,null,null,"ФОНД ЗА ЗАШТИТУ ЖИВОТНЕ СРЕДИНЕ"]
[null,null,"0401",null,null,null,"ПРОГРАМ 6: ЗАШТИТА ЖИВОТНЕ СРЕДИНЕ"]
[null,null,"0401-0001",null,null,null,"ПА: Управљање заштитом животне средине"]
[null,null,null,560,null,null,"Заштита животне средине , истраживање и развој"]
[null,null,null,null,127,"423","Услуге по уговору",500000,null,{"$f":"H899","v":500000}]
[null,null,null,null,128,424,"Специјализоване услуге ",2050000,null,{"$f":"H900","v":2050000}]
[null,null,null,null,129,426,"Материјал",100000,null,{"$f":"H901","v":100000}]
[null,null,null,null,null,null,"Извор финансирања за ПА: 0401-0001"]
[null,null,null,null,null,null,"01 - Приходи из буџета",{"$f":"H899+H900+H901","v":2650000},null,{"$f":"J899+J900+J901","v":2650000}]
[null,null,null,null,null,null,"Свега за ПА: 0401-0001",{"$f":"H903","v":2650000},null,{"$f":"J903","v":2650000}]
[null,null,null,null,null,null,"Извор финансирања за функцију: 560"]
[null,null,null,null,null,null,"01 - Приходи из буџета",{"$f":"H904","v":2650000},null,{"$f":"J904","v":2650000}]
[null,null,null,null,null,null,"Свега за функцију: 560",{"$f":"H906","v":2650000},null,{"$f":"J906","v":2650000}]
[]
[null,null,"1102",null,null,null,"ПРОГРАМ 2: КОМУНАЛНА ДЕЛАТНОСТ"]
[null,null,"1102-0003",null,null,null,"ПА: Одржавање чистоће на површинама јавне намене"]
[null,null,null,620,null,null,"Развој заједнице"]
[null,null,null,null,130,"423","Услуге по уговору -зимско и летње одржавање путева ",40000000,50000000,{"$f":"H912+I912","v":90000000}]
[null,null,null,null,131,426,"Материјал - набавка горива",3500000,null,{"$f":"H913","v":3500000}]
[null,null,null,null,null,null,"Извори финансирања за ПА: 1102-0003"," ",null," "]
[null,null,null,null,null,null,"01 - Приходи из буџета",{"$f":"H912+H913","v":43500000},null,{"$f":"H915","v":43500000}]
[null,null,null,null,null,null,"13 - Из средстава суфицита",null,50000000,50000000]
[null,null,null,null,null,null,"Укупно  за ПА: 1102-0003",{"$f":"SUM(H915:H915)","v":43500000},50000000,{"$f":"J912+J913","v":93500000}]
[]
[null,null,"1102-0004",null,null,null,"ПА: Зоохигијена"]
[null,null,null,620,null,null,"Развој заједнице"]
[null,null,null,null,132,"424","Специјализоване услуге - плаћање за смештај паса у азил",4000000,null,{"$f":"H921+I921","v":4000000}]
[null,null,null,null,133,"483","Новчане казне и пенали по решењу судова",500000,null,{"$f":"H922","v":500000}]
[null,null,null,null,134,"485","Накнада штете за уједе паса и мачака",2700000,null,{"$f":"H923","v":2700000}]
[null,null,null,null,null,null,"Извори финансирања за ПА: 1102-0004"," ",null," "]
[null,null,null,null,null,null,"01 - Приходи из буџета",{"$f":"H921+H922+H923","v":7200000},null,{"$f":"J921+J922+J923","v":7200000}]
[null,null,null,null,null,null,"Укупно за ПА: 1102-0004",{"$f":"H925","v":7200000},null,{"$f":"SUM(H926:I926)","v":7200000}]
[null,null,null,null,null,"03","Социјални доприноси",null,null,0]
[null,null,null,null,null,"04","Сопствени приходи буџетских корисника",null,null,0]
[null,null,null,null,null,"05","Донације од иностраних земаља",null,null,0]
[null,null,null,null,null,"06","Донације од међународних организација",null,null,0]
[null,null,null,null,null,"07","Трансфери од других нивоа власти",null,null,0]
[null,null,null,null,null,"08","Добровољни трансфери од физичких и правних лица",null,null,0]
[null,null,null,null,null,"09","Примања од продаје нефинансијске имовине",null,null,0]
[null,null,null,null,null,"10","Примања од домаћих задуживања",null,null,0]
[null,null,null,null,null,"11","Примања од иностраних задуживања",null,null,0]
[null,null,null,null,null,"12","Примања од отплате датих кредита и продаје финансијске имовине",null,null,0]
[null,null,null,null,null,"13","Нераспоређени вишак прихода из ранијих година",null,null,0]
[null,null,null,null,null,"14","Неутрошена средства од приватизације из претходних година",null,null,0]
[null,null,null,null,null,"15","Неутрошена средства донација из претходних година",null,null,0]
[null,null,null,null,null,null,"01 - Приходи из буџета",{"$f":"H921+H922+H923","v":7200000},null,7200000]
[null,null,null,null,null,null,"Укупно  за ПА: 1102-0004",{"$f":"H940","v":7200000},null,{"$f":"J940","v":7200000}]
[]
[null,null,"1102-0006",null,null,null,"ПА: Одржавање гробаља и погребне услуге"]
[null,null,null,620,null,null,"Развој заједнице"]
[null,null,null,null,135,423,"Услуге по уговору",200000,null,{"$f":"H945","v":200000}]
[null,null,null,null,136,424,"Специјализоване услуге",200000,null,{"$f":"H946","v":200000}]
[null,null,null,null,137,511,"Зграде и грађевински објекти",15000000,null,{"$f":"H947+I947","v":15000000}]
[null,null,null,null,null,null,"Извори финансирања за ПА: 1102-0006"]
[null,null,null,null,null,null,"01 - Приходи из буџета",{"$f":"H945+H946+H947","v":15400000},null,{"$f":"H949","v":15400000}]
[null,null,null,null,null,null,"Укупно  за ПА: 1102-0006",{"$f":"H949","v":15400000},null,{"$f":"H950+I950","v":15400000}]
[null,null,null,null,null,null,"Извори финансирања за функцију: 620"]
[null,null,null,null,null,null,"01 - Приходи из буџета",{"$f":"H917+H941+H950","v":66100000},null,{"$f":"J915+J925+J949","v":66100000}]
[null,null,null,null,null,null,"13 - Из средстава суфицита",null,50000000,50000000]
[null,null,null,null,null,null,"Укупно  за функцију: 620",{"$f":"H952","v":66100000},50000000,{"$f":"J917+J926+J950","v":116100000}]
[null,null,"1102",null,null,null,"ПРОГРАМ 2: КОМУНАЛНА ДЕЛАТНОСТ"]
[null,null,"1102-0008",null,null,null,"ПА: Управљање и снадбевање водом за пиће"]
[]
[]
[]
[]
[]
[]
[]
[]
[]
[]
[]
[]
[]
[]
[]
[]
[]
[]
[]
[]
[]
[]
[]
[]
[]
[]
[]
[]
[]
[]
[]
[]
[]
[]
[]
[null,null,"1102-0008",null,null,null,"ПА: Управљање и снадбевање водом за пиће"]
[null,null,null,630,null,null,"Водоснадбевање"]
[null,null,null,null,138,423,"Услуге по уговору",2000000,null,{"$f":"H994","v":2000000}]
[null,null,null,null,139,425,"Одржавање примарне и секундарне  водоводне мреже ",1200000,null,{"$f":"H995+I995","v":1200000}]
[null,null,null,null,140,511,"Зграде и грађевински објекти-изградња примарних водовода и канализације",100000000,100000000,200000000]
[]
[]
[]
[]
[]
[]
[]
[]
[]
[]
[]
[]
[]
[null,null,null,null,146,425,"Текуће поправке и одржавање - примарне и секундарне водоводне мреже и канализације",4200000,null,{"$f":"H1010","v":4200000}]
[null,null,null,null,147,511,"Изградња примарних  и секундарних  водовода и канализације- за пројектовање, реконструкцију и доградњу постројења за прераду вода  - 120.000.000, уређење реке Обудовице (зацевљени део реке и фекална и кишна канализација) - 50.000.000",200000000,null,{"$f":"H1011+I1011","v":200000000}]
[null,null,null,null,null,null,"Извори финансирања за ПА: 1102-0008"," ",null," "]
[null,null,null,null,null,null,"01 - Приходи из буџета",{"$f":"H994+H995+H996","v":103200000},null,{"$f":"SUM(H1013:I1013)","v":103200000}]
[null,null,null,null,null,null,"13 - Из средстава суфицита",null,100000000,100000000]
[null,null,null,null,null,null,"Укупно за ПА: 01102-0008",{"$f":"H994+H995+H996","v":103200000},100000000,{"$f":"SUM(H1015:I1015)","v":203200000}]
[null,null,null,null,null,"03","Социјални доприноси",null,null,0]
[null,null,null,null,null,"04","Сопствени приходи буџетских корисника",null,null,0]
[null,null,null,null,null,"05","Донације од иностраних земаља",null,null,0]
[null,null,null,null,null,"06","Донације од међународних организација",null,null,0]
[null,null,null,null,null,"07","Трансфери од других нивоа власти",null,null,0]
[null,null,null,null,null,"08","Добровољни трансфери од физичких и правних лица",null,null,0]
[null,null,null,null,null,"09","Примања од продаје нефинансијске имовине",null,null,0]
[null,null,null,null,null,"10","Примања од домаћих задуживања",null,null,0]
[null,null,null,null,null,"11","Примања од иностраних задуживања",null,null,0]
[null,null,null,null,null,"12","Примања од отплате датих кредита и продаје финансијске имовине",null,null,0]
[null,null,null,null,null,"13","Нераспоређени вишак прихода из ранијих година",null,null,0]
[null,null,null,null,null,"14","Неутрошена средства од приватизације из претходних година",null,null,0]
[null,null,null,null,null,null,"01 - Приходи из буџета ",{"$f":"H994+H1010+H1011","v":206200000},null,206200000]
[null,null,null,null,null,null,"13 - Из средстава суфицита"]
[]
[null,null,"1102-5003",null,null,null,"Пројекат: Изградња водовода \"Сушичко врело\""]
[null,null,null,630,null,null,"Водоснадбевање"]
[null,null,null,null,141,511,"Зграде и грађевински објекти - изградња водовода",75000000,25000000,{"$f":"H1033+I1033","v":100000000}]
[null,null,null,null,null,null,"Извори финансирања за пројекат 0601-005:"," ",null," "]
[null,null,null,null,null,null,"01 - Приходи из буџета ",{"$f":"H1033","v":75000000},null,{"$f":"SUM(H1035:I1035)","v":75000000}]
[null,null,null,null,null,"03","Социјални доприноси",null,null,{"$f":"SUM(H1036:I1036)","v":0}]
[null,null,null,null,null,"04","Сопствени приходи буџетских корисника",null,null,0]
[null,null,null,null,null,"05","Донације од иностраних земаља",null,null,0]
[null,null,null,null,null,"06","Донације од међународних организација",null,null,0]
[null,null,null,null,null,"07","Трансфери од других нивоа власти",null,null,0]
[null,null,null,null,null,"08","Добровољни трансфери од физичких и правних лица",null,null,0]
[null,null,null,null,null,"09","Примања од продаје нефинансијске имовине",null,null,0]
[null,null,null,null,null,"10","Примања од домаћих задуживања",null,null,0]
[null,null,null,null,null,"11","Примања од иностраних задуживања",null,null,0]
[null,null,null,null,null,"12","Примања од отплате датих кредита и продаје финансијске имовине",null,null,0]
[null,null,null,null,null,"13","Нераспоређени вишак прихода из ранијих година",null,null,0]
[null,null,null,null,null,"14","Неутрошена средства од приватизације из претходних година",null,null,0]
[null,null,null,null,null,"15","Неутрошена средства донација из претходних година",null,null,0]
[null,null,null,null,null,null,"01 - Приходи из буџета",{"$f":"H1033","v":75000000},null,75000000]
[null,null,null,null,null,null,"13 - Из средстава суфицита"]
[null,null,null,null,null,null,"13 - Из средстава суфицита",null,25000000,25000000]
[null,null,null,null,null,null,"Укупно за пројекат: 1102-001",{"$f":"H1049","v":75000000},25000000,100000000]
[null,null,null,null,null,null,"Извори финансирања за функцију: 630"]
[null,null,null,null,null,null,"01 - Приходи из буџета ",{"$f":"H1015+H1052","v":178200000},null,{"$f":"J1013+J1035","v":178200000}]
[null,null,null,null,null,null,"13 - Из средстава суфицита",null,125000000,125000000]
[null,null,null,null,null,null,"Укупно за функцију: 630",{"$f":"H1054","v":178200000},125000000,{"$f":"J1015+J1052","v":303200000}]
[]
[" "," ",null,null,null,null,"ЈАВНА РАСВЕТА"]
[null,null,"1102",null,null,null,"ПРОГРАМ 2: КОМУНАЛНА ДЕЛАТНОСТ"]
[null,null,"1102-0001",null,null,null,"ПА: Управљање, одржавање јавним осветљењем"]
[null,null,null,640,null,null,"Улична расвета"]
[null,null,null,null,null,423,"Услуге по уговору",null,null,{"$f":"SUM(H1062:I1062)","v":0}]
[null,null,null,null,149,421,"Стални трошкови",33000000,null,33000000]
[null,null,null,null,150,423,"Услуге по уговору -  измештање далековода, каблирање, измештање трафостанице и новогодишња расвета ",30000000,null,{"$f":"H1064","v":30000000}]
[null,null,null,null,142,421,"Стални трошкови",13000000,20000000,{"$f":"H1065+I1065","v":33000000}]
[null,null,null,null,143,423,"Услуге по уговору",15000000,15000000,{"$f":"H1066+I1066","v":30000000}]
[null,null,null,null,144,425,"Текуће поправке и одржавање јавне расвете",10000000,10000000,20000000]
[null,null,null,null,145,511,"Изградња јавне расвете ",20000000,20000000,40000000]
[null,null,null,null,null,432,"Амортизација култивисане имовине",null,null,0]
[null,null,null,null,null,433,"Употреба драгоцености",null,null,0]
[null,null,null,null,null,434,"Употреба природне имовине",null,null,0]
[null,null,null,null,null,435,"Амортизација нематеријалне имовине",null,null,0]
[null,null,null,null,null,441,"Отплата домаћих камата",null,null,0]
[null,null,null,null,null,442,"Отплата страних камата",null,null,0]
[null,null,null,null,null,443,"Отплата камата по гаранцијама",null,null,0]
[null,null,null,null,null,444,"Пратећи трошкови задуживања",null,null,0]
[null,null,null,null,null,4511,"Текуће субвенције јавним нефинансијским предузећима и организацијама                                                                ",null,null,0]
[null,null,null,null,null,4512,"Капиталне субвенције јавним нефинансијским предузећима и организацијама                                                                ",null,null,0]
[null,null,null,null,null,452,"Субвенције приватним финансијским институцијама",null,null,0]
[null,null,null,null,null,453,"Субвенције јавним финансијским институцијама",null,null,0]
[null,null,null,null,null,454,"Субвенције приватним предузећима",null,null,0]
[null,null,null,null,null,461,"Донације страним владама",null,null,0]
[null,null,null,null,null,462,"Донације и дотације међународним организацијама",null,null,0]
[null,null,null,null,null,4631,"Текући трансфери осталим нивоима власти",null,null,0]
[null,null,null,null,null,4632,"Капитални трансфери осталим нивоима власти",null,null,0]
[null,null,null,null,null,464,"Дотације организацијама обавезног социјалног осигурања",null,null,0]
[null,null,null,null,null,465,"Остале донације, дотације и трансфери",null,null,0]
[null,null,null,null,null,472,"Накнаде за социјалну заштиту из буџета",null,null,0]
[null,null,null,null,null,481,"Дотације невладиним организацијама",null,null,0]
[null,null,null,null,null,482,"Порези, обавезне таксе, казне и пенали",null,null,0]
[null,null,null,null,null,483,"Новчане казне и пенали по решењу судова",null,null,0]
[null,null,null,null,null,484,"Накнада штете за повреде или штету насталу услед елементарних непогода или других природних узрока",null,null,0]
[null,null,null,null,null,485,"Накнада штете за повреде или штету нанету од стране државних органа",null,null,0]
[null,null,null,null,null,489,"Расходи који се финансирају из средстава за реализацију националног инвестиционог плана",null,null,0]
[null,null,null,null,null,494,"Административни трансфери из буџета - Текући расходи",null,null,0]
[null,null,null,null,null,495,"Административни трансфери из буџета - Издаци за нефинансијску имовину",null,null,0]
[null,null,null,null,null,496,"Административни трансфери из буџета - Издаци за отплату главнице и набавку финансијске имовине",null,null,0]
[null,null,null,null,null,499,"Административни трансфери из буџета - Средства резерве",null,null,0]
[null,null,null,null,null,511,"Зграде и грађевински објекти",null,null,0]
[null,null,null,null,null,512,"Машине и опрема",null,null,0]
[null,null,null,null,null,513,"Остале некретнине и опрема",null,null,0]
[null,null,null,null,null,514,"Култивисана имовина",null,null,0]
[null,null,null,null,null,515,"Нематеријална имовина",null,null,0]
[null,null,null,null,null,521,"Робне резерве",null,null,0]
[null,null,null,null,null,522,"Залихе производње",null,null,0]
[null,null,null,null,null,523,"Залихе робе за даљу продају",null,null,0]
[null,null,null,null,null,531,"Драгоцености",null,null,0]
[null,null,null,null,null,541,"Земљиште",null,null,0]
[null,null,null,null,null,542,"Рудна богатства",null,null,0]
[null,null,null,null,null,543,"Шуме и воде",null,null,0]
[null,null,null,null,null,551,"Нефинансијска имовина која се финансира из средстава за реализацију националног инвестиционог плана",null,null,0]
[null,null,null,null,null,611,"Отплата главнице домаћим кредиторима",null,null,0]
[null,null,null,null,151,425,"Текуће поправке и одржавање јавне расвете",20000000,null,20000000]
[null,null,null,null,152,511,"Изградња јавне расвете 30.000.000+3.600.000",40000000,null,{"$f":"H1114","v":40000000}]
[null,null,null,null,null,null,"Извори финансирања за ПА: 1102-0001"]
[null,null,null,null,null,null,"01 - Приходи из буџета",{"$f":"H1065+H1066+H1067+H1068","v":58000000},null,{"$f":"H1116","v":58000000}]
[null,null,null,null,null,null,"13 - Из средстава суфицита",null,{"$f":"I1065+I1066+I1067+I1068","v":65000000},{"$f":"I1117","v":65000000}]
[null,null,null,null,null,null,"Укупно за ПА: 01102-0001",{"$f":"H1116","v":58000000},{"$f":"I1117","v":65000000},{"$f":"J1065+J1066+J1067+J1068","v":123000000}]
[null,null,null,null,null,null,"Извори финансирања за Функцију: 640"]
[null,null,null,null,null,null,"01 - Приходи из буџета",{"$f":"H1118","v":58000000},null,{"$f":"SUM(H1120:I1120)","v":58000000}]
[null,null,null,null,null,"03","Социјални доприноси",null,null,{"$f":"SUM(H1121:I1121)","v":0}]
[null,null,null,null,null,"04","Сопствени приходи буџетских корисника",null,null,0]
[null,null,null,null,null,"05","Донације од иностраних земаља",null,null,0]
[null,null,null,null,null,"06","Донације од међународних организација",null,null,0]
[null,null,null,null,null,"07","Трансфери од других нивоа власти",null,null,0]
[null,null,null,null,null,"08","Добровољни трансфери од физичких и правних лица",null,null,0]
[null,null,null,null,null,"09","Примања од продаје нефинансијске имовине",null,null,0]
[null,null,null,null,null,"10","Примања од домаћих задуживања",null,null,0]
[null,null,null,null,null,"11","Примања од иностраних задуживања",null,null,0]
[null,null,null,null,null,"12","Примања од отплате датих кредита и продаје финансијске имовине",null,null,0]
[null,null,null,null,null,"13","Нераспоређени вишак прихода из ранијих година",null,null,0]
[null,null,null,null,null,"14","Неутрошена средства од приватизације из претходних година",null,null,0]
[null,null,null,null,null,"15","Неутрошена средства донација из претходних година",null,null,0]
[null,null,null,null,null,null,"01 - Приходи из буџета",{"$f":"H1118","v":58000000},null,58000000]
[null,null,null,null,null,null,"Укупно за Функцију: 640",{"$f":"H1118","v":58000000},null,{"$f":"J1118","v":123000000}]
[null,null,null,null,null,null,"13 - Из средстава суфицита",null,{"$f":"I1117","v":65000000},{"$f":"I1136","v":65000000}]
[null,null,null,null,null,null,"Извори финансирања за Функцију: 640",{"$f":"H1118","v":58000000},{"$f":"I1136","v":65000000},{"$f":"J1118","v":123000000}]
[]
[null,null,"1801",null,null,null,"ПРОГРАМ 12: ПРИМАРНА ЗДРАВСТВЕНА ЗАШТИТА"]
[null,null,"1801-0002",null,null,null,"ПА: Мртвозорство"]
[null,null,null,740,null,null,"Услуге јавног здравства"]
[null,null,null,null,146,424,"Специјализоване услуге",1200000,null,{"$f":"H1142","v":1200000}]
[null,null,null,null,null,null,"Извор финансирања за ПА: 1801-0002"]
[null,null,null,null,null,null,"01 - Приходи из буџета",{"$f":"H1142","v":1200000},null,{"$f":"J1142","v":1200000}]
[null,null,null,null,null,null,"Свега за ПА: 1801-0002",{"$f":"H1144","v":1200000},null,{"$f":"J1144","v":1200000}]
[]
[null,null,"1801-0003",null,null,null,"ПА: Спровођење активности из области друштвене бриге за јавно здравље"]
[null,null,null,740,null,null,"Услуге јавног здравства"]
[null,null,null,null,147,423,"Услуге по уговору, накнада за чланове савета за здравље ",200000,null,{"$f":"H1149","v":200000}]
[null,null,null,null,148,424,"Специјализоване услуге - организовање специјалистичких прегледа за жене",1200000,null,{"$f":"H1150","v":1200000}]
[null,null,null,null,null,null,"Извор финансирања за ПА: 1801-0003"]
[null,null,null,null,null,null,"01 - Приходи из буџета",{"$f":"H1149+H1150","v":1400000},null,{"$f":"J1149+J1150","v":1400000}]
[null,null,null,null,null,null,"Свега за ПА: 1801-0003",{"$f":"H1152","v":1400000},null,{"$f":"J1152","v":1400000}]
[null,null,null,null,null,null,"Извор финансирања за функцију: 740"]
[null,null,null,null,null,null,"01 - Приходи из буџета",{"$f":"H1144+H1152","v":2600000},null,{"$f":"J1144+J1152","v":2600000}]
[null,null,null,null,null,null,"Укупно за функцију: 740",{"$f":"H1145+H1153","v":2600000},null,{"$f":"J1155","v":2600000}]
[]
[" "," ","1301",null,null,null,"ПРОГРАМ 14: РАЗВОЈ СПОРТА И ОМЛАДИНЕ"]
[null,null,"1301-0001",null,null,null,"ПА: Подршка локалним спортским организацијама, удружењима и савезима"]
[null,null," ",810,null,null,"Услуге рекреације и спорта"]
[null,null,null,null,150,451,"Субвенције осталим јавним нефинансијским предузећима и организацијама",40000000,null,{"$f":"H1161","v":40000000}]
[null,null,null,null,151,"481","Дотације невладиним организацијама - спортским удружењима, спортском савезу",50000000,null,{"$f":"H1162","v":50000000}]
[null,null,null,null,152,"511","Зграде и грађевински објекти-изградња објекта за потребе спортских клубова, изградња спортског парка са пратећим садржајима",40000000,null,{"$f":"H1163+I1163","v":40000000}]
[null,null,null,null,null,null,"Извор финансирања за ПА: 1301-0001"]
[null,null,null,null,null,null,"01 - Приходи из буџета",{"$f":"H1161+H1162+H1163","v":130000000},null,{"$f":"H1165","v":130000000}]
[null,null,null,null,null,null,"Укупно за ПА: 1301-0001",{"$f":"H1165","v":130000000},null,{"$f":"J1161+J1162+J1163","v":130000000}]
[null,null,null,null,null,null,null," ",null," "]
[null,null,"1301-0002",null,null,null,"ПА: Подршка предшколском и школском спорту"]
[null,null,null,810,null,null,"Услуге рекреације и спорта"]
[null,null,null,null,153,481,"Дотације за спорт - школским, предшколским и рекреативним активностима ",1000000,null,{"$f":"H1170","v":1000000}]
[null,null,null,null,null,null,"Извор финансирања за ПА: 1301-0002"]
[null,null,null,null,null,null,"01 - Приходи из буџета",{"$f":"H1170","v":1000000},null,{"$f":"J1170","v":1000000}]
[null,null,null,null,null,null,"Укупно за ПА:  1301-0002",{"$f":"H1172","v":1000000},null,{"$f":"J1172","v":1000000}]
[]
[null,null,"1301-5001",null,null,null,"Пројекат: Изградња фискултуре сале са затвореним базеном - У склопу ОШ \"Димитрије Туцовић\" Златибор"]
[null,null,null,810,null,null,"Услуге рекреације и спорта"]
[null,null,null,null,154,511,"Зграде и грађевински објекти",25000000,null,{"$f":"H1177","v":25000000}]
[null,null,null,null,null,null,"Извор финансирања за Пројекат: 1301-5001"]
[null,null,null,null,null,null,"01 - Приходи из буџета",{"$f":"H1177","v":25000000},null,{"$f":"J1177","v":25000000}]
[null,null,null,null,null,null,"Укупно за Пројекат: 1301-5001",{"$f":"H1179","v":25000000},null,{"$f":"J1179","v":25000000}]
[null,null,null,null,null,null,"Извор финансирања за функцију: 810"]
[null,null,null,null,null,null,"01 - Приходи из буџета",{"$f":"H1165+H1172+H1179","v":156000000},null,{"$f":"H1182","v":156000000}]
[null,null,null,null,null,null,"Укупно за функцију: 810",{"$f":"H1182","v":156000000},null,{"$f":"J1166+J1173+J1180","v":156000000}]
[]
[null,null,"1201",null,null,null,"ПРОГРАМ 13: РАЗВОЈ КУЛТУРЕ"," ",null," "]
[null,null,"1201-0001",null,null,null,"ПА: Функционисање локалних установа културе"]
[null,null,null,820,null,null,"Услуге културе"]
[null,null,null,null,155,463,"Текући трансфери другом нивоу власти - Историјски архив",550000,null,{"$f":"H1188","v":550000}]
[null,null,null,null,156,511,"Зграде и грађевински објекти - Mузеј у кући Милића од Мачве",50000000,null,{"$f":"H1189","v":50000000}]
[null,null,null,null,null,null,"Извор финансирања за ПА: 1201-0001"]
[null,null,null,null,null,null,"01 - Приходи из буџета",{"$f":"H1188+H1189","v":50550000},null,{"$f":"J1188+J1189","v":50550000}]
[null,null,null,null,null,null,"Укупно за ПА:  1201-0001",{"$f":"H1191","v":50550000},null,{"$f":"H1192","v":50550000}]
[]
[null,null,"1201-0002",null,null,null,"ПА: Јачање културне продукције и уметничког стваралаштва"]
[null,null,null,820,null,null,"Услуге културе "]
[null,null,null,null,157,423,"Услуге по уговору - организовање културно-спортских манифестација за 2022. годину  ",20000000,null,{"$f":"H1196+I1196","v":20000000}]
[null,null,null,null,158,481,"Дотације удружењима културе по конкурсу",4000000,null,{"$f":"H1197","v":4000000}]
[null,null,null,null,null,null,"Извор финансирања за ПА: 1201-0002"]
[null,null,null,null,null,null,"01 - Приходи из буџета",{"$f":"H1196+H1197","v":24000000},null,{"$f":"H1199","v":24000000}]
[null,null,null,null,null,null,"Укупно за ПА:  1201-0002",{"$f":"H1199","v":24000000},null,{"$f":"J1199","v":24000000}]
[]
[null,null,"1201-0003",null,null,null,"ПА: Унапређење система очувања и представљања културно-историјског наслеђа"]
[null,null,null,820,null,null,"Услуге културе "]
[null,null,null,null,159,423,"Услуге по уговору",200000,null,200000]
[null,null,null,null,160,515,"Нематеријална имовина - уређење, изградња и подизање споменика жртвама нато бомбардовања",50000000,null,50000000]
[null,null,null,null,null,null,"Извор финансирања за ПА: 1201-0003"]
[null,null,null,null,null,null,"01 - Приходи из буџета",{"$f":"H1204+H1205","v":50200000},null,{"$f":"J1204+J1205","v":50200000}]
[null,null,null,null,null,null,"Укупно за ПА:  1201-0003",{"$f":"H1207","v":50200000},null,{"$f":"J1207","v":50200000}]
[null,null,null,null,null,null,"Извор финансирања за функцију: 820"]
[null,null,null,null,null,null,"01 - Приходи из буџета",{"$f":"H1192+H1200+H1208","v":124750000},null,{"$f":"H1210","v":124750000}]
[null,null,null,null,null,null,"Укупно за функцију: 820",{"$f":"H1210","v":124750000},null,{"$f":"J1210","v":124750000}]
[]
[" "," ",null,null,null,null,"УСЛУГЕ ЕМИТОВАЊА И ИЗДАВАШТВА"]
[null,null,"1201",null,null,null,"ПРОГРАМ 13: РАЗВОЈ КУЛТУРЕ"]
[null,null,"1201-0004",null,null,null,"ПА: Остваривање и унапређење јавног интереса у области јавног информисања"]
[null,null,null,830,null,null,"Услуге емитовања и издаваштва"]
[null,null,null,null,161,423,"Услуге по уговору",5000000,null,{"$f":"H1217","v":5000000}]
[null,null,null,null,162,454,"Субвенције за приватна предузећа - расподела по конкурсу за информисање",20000000,null,{"$f":"H1218","v":20000000}]
[null,null,null,null,null,null,"Извор финансирања за ПА: 1201-0004"]
[null,null,null,null,null,null,"01 - Приходи из буџета",{"$f":"H1217+H1218","v":25000000},null,{"$f":"J1217+J1218","v":25000000}]
[null,null,null,null,null,null,"Укупно за ПА:  1201-0004",{"$f":"H1220","v":25000000},null,{"$f":"J1220","v":25000000}]
[null,null,null,null,null,null,"Извор финансирања за функцију: 830"]
[null,null,null,null,null,null,"01 - Приходи из буџета",{"$f":"H1220","v":25000000},null,{"$f":"H1223","v":25000000}]
[null,null,null,null,null,null,"Укупно за функцију: 830",{"$f":"H1223","v":25000000},null,{"$f":"J1217+J1218","v":25000000}]
[]
[5,null,null,null,null,null,"ВЕРСКЕ ОРГАНИЗАЦИЈЕ И ЗАЈЕДНИЦЕ"]
[null,null,"1201",null,null,null,"ПРОГРАМ 13: РАЗВОЈ КУЛТУРЕ"]
[null,null,"1201-0003",null,null,null,"ПА: Унапређење система очувања и представљања културно-историјског наслеђа"]
[null,null,null,840,null,null,"Верске и остале услуге заједнице"]
[null,null,null,null,163,481,"Дотације верским заједницама",10000000,null,{"$f":"H1230","v":10000000}]
[null,null,null,null,null,null,"Извор финансирања за ПА: 1201-0003 "]
[null,null,null,null,null,null,"01 - Приходи из буџета",{"$f":"H1230","v":10000000},null,{"$f":"J1230","v":10000000}]
[null,null,null,null,null,null,"Укупно за ПА: 1201-0003",{"$f":"H1232","v":10000000},null,{"$f":"J1232","v":10000000}]
[]
[" "," ","1201-4001",null,null,null,"Пројекат: Будимо равноправни"]
[null,null,null,840,null,null,"  Верске и остале услуге заједнице"]
[null,null,null,null,164,423,"Услуге по уговору",450000,null,{"$f":"H1237+I1237","v":450000}]
[null,null,null,null,165,426,"Материјал",50000,null,{"$f":"H1238+I1238","v":50000}]
[null,null,null,null,null,null,"Извори финансирања за Пројекат: 001"]
[null,null,null,null,null,null,"01 - Приходи буџета",{"$f":"H1237+H1238","v":500000},null,{"$f":"H1240","v":500000}]
[null,null,null,null,null,null,"Укупно за Пројекат: 001",{"$f":"H1240","v":500000},null,{"$f":"SUM(H1241:I1241)","v":500000}]
[null,null,null,null,null,null,"Извор финансирања за функцију: 840"]
[null,null,null,null,null,null,"01 - Приходи из буџета",{"$f":"H1232+H1240","v":10500000},null,{"$f":"J1232+J1240","v":10500000}]
[null,null,null,null,null,null,"Укупно за функцију: 840",{"$f":"H1243","v":10500000},null,{"$f":"J1243","v":10500000}]
[]
[5," ",null,null,null,null,"КАНЦЕЛАРИЈА ЗА МЛАДЕ"]
[null,null,"1301",null,null,null,"ПРОГРАМ 14: РАЗВОЈ СПОРТА И ОМЛАДИНЕ"]
[null,null,"1301-0005",null,null,null,"ПА: Спровођење омладинске политике"]
[null,null,null,860,null,null,"Рекреација, спорт, култура и вере, некласификована на другом месту "]
[null,null,null,null,166,423,"Услуге по уговору",100000,null,{"$f":"H1250+I1250","v":100000}]
[null,null,null,null,167,426,"Материјал",50000,null,{"$f":"H1251+I1251","v":50000}]
[null,null,null,null,null,null,"Извори финансирања за ПА: 1301-0005:"]
[null,null,null,null,null,null,"01 - Приходи из буџета",{"$f":"H1250+H1251","v":150000},null,{"$f":"H1253","v":150000}]
[null,null,null,null,null,null,"Свега за ПА: 1301-0005:",{"$f":"H1253","v":150000},null,{"$f":"J1253","v":150000}]
[null,null,null,null,null,null,"Извори финансирања за функцију: 860"]
[null,null,null,null,null,null,"01 - Приходи буџета",{"$f":"H1254","v":150000},null,{"$f":"H1256","v":150000}]
[null,null,null,null,null,null,"Укупно за функцију: 860 ",{"$f":"H1254","v":150000},null,{"$f":"J1254","v":150000}]
[]
[null,null,"0602",null,null,null,"ПРОГРАМ: 15 - ОПШТЕ УСЛУГЕ ЛОКАЛНЕ САМОУПРАВЕ"]
[null,null,"0602-0001",null,null,null,"ПА: Функционисање локалне самоуправе и градских општина"]
[null,null,null,950,null,null,"Образовање које није дефинисано нивоом"]
[null,null,null,null,170,472,"Накнаде за социјалну заштиту из буџета - стипендије",10000000,null,{"$f":"H1262","v":10000000}]
[null,null,null,null,null,null,"Извор финансирања за ПА: 0602-0001"]
[null,null,null,null,null,null,"01 - Приходи из буџета",{"$f":"H1262","v":10000000},null,{"$f":"J1262","v":10000000}]
[null,null,null,null,null,null,"Укупно за ПА: 0602-0001",{"$f":"H1264","v":10000000},null,{"$f":"J1264","v":10000000}]
[null,null,null,null,null,null,"Извор финансирања за функцију: 950"]
[null,null,null,null,null,null,"01 - Приходи из буџета",{"$f":"H1265","v":10000000},null,{"$f":"J1265","v":10000000}]
[null,null,null,null,null,null,"Укупно за функцију: 950",{"$f":"H1267","v":10000000},null,{"$f":"J1267","v":10000000}]
[]
[null,null,"0602",null,null,null,"ПРОГРАМ: 15 - ОПШТЕ УСЛУГЕ ЛОКАЛНЕ САМОУПРАВЕ"]
[null,null,"0602-0001",null,null,null,"ПА: Функционисање локалне самоуправе и градских општина"]
[null,null,null,960,null,null,"Помоћне услуге образовању"]
[null,null,null,null,171,472,"Накнаде за социјалну заштиту из буџета - превоз ђака",30000000,null,{"$f":"H1273","v":30000000}]
[null,null,null,null,null,null,"Извор финансирања за ПА: 0602-0001"]
[null,null,null,null,null,null,"01 - Приходи из буџета",{"$f":"H1273","v":30000000},null,{"$f":"J1273","v":30000000}]
[null,null,null,null,null,null,"Укупно за ПА: 0602-0001",{"$f":"H1275","v":30000000},null,{"$f":"J1275","v":30000000}]
[null,null,null,null,null,null,"Извор финансирања за функцију: 960"]
[null,null,null,null,null,null,"01 - Приходи из буџета",{"$f":"H1276","v":30000000},null,{"$f":"J1276","v":30000000}]
[null,null,null,null,null,null,"Укупно за функцију 960:",{"$f":"H1278","v":30000000},null,{"$f":"J1278","v":30000000}]
[]
[]
[]
[]
[]
[]
[]
[]
[]
[]
[]
[]
[]
[]
[]
[]
[]
[]
[]
[]
[]
[]
[]
[]
[]
[]
[]
[]
[null,null,null,null,null,null,"01 - Приходи из буџета",{"$f":"H1276","v":30000000},null,{"$f":"J1276","v":30000000}]
[null,null,null,null,null,null,"Укупно за функцију: 960",{"$f":"H1275","v":30000000},null,{"$f":"J1275","v":30000000}]
[]
[null,null,null,null,null,null,"ОСНОВНЕ ШКОЛЕ"]
["5. ","5.00.01",null,null,null,null,"ОШ \"ДИМИТРИЈЕ ТУЦОВИЋ\""]
[null,null,"2003",null,null,null,"ПРОГРАМ 9: ОСНОВНО ОБРАЗОВАЊЕ"]
[null,null,"2003-0001",null,null,null,"ПА: Реализација делатности основног образовања"]
[null,null,null,912,null,null,"Основно образовање"]
[null,null,null,null,168,463,"Текући трансфери осталим нивоима власти",{"$f":"H1317+H1318+H1319+H1320+H1347+H1348+H1349+H1350+H1351+H1367+H1368","v":15970000},null,{"$f":"H1316","v":15970000}]
[null,null,null,null,null,null,"414-Социјална давања запосленима",200000,null,{"$f":"H1317","v":200000}]
[null,null,null,null,null,null,"415-Накнаде за запослене-превоз",4050000,null,4050000]
[null,null,null,null,null,null,"416-Награде за запослене-јубиларне",1200000,null,1200000]
[null,null,null,null,null,null,"421-Стални трошкови",6190000,null,6190000]
[null,null,null,null,null,null,"422-Трошкови службених путовања",300000,null,300000]
[null,null,null,null,null,null,"423-Услуге по уговору",840000,null,840000]
[null,null,null,null,null,null,"424-Специјализоване услуге",30000,null,30000]
[null,null,null,null,null,464,null,null,null,0]
[null,null,null,null,null,465,null,null,null,0]
[null,null,null,null,null,472,null,null,null,0]
[null,null,null,null,null,481,null,null,null,0]
[null,null,null,null,null,482,null,null,null,0]
[null,null,null,null,null,483,null,null,null,0]
[null,null,null,null,null,484,null,null,null,0]
[null,null,null,null,null,485,null,null,null,0]
[null,null,null,null,null,489,null,null,null,0]
[null,null,null,null,null,494,null,null,null,0]
[null,null,null,null,null,495,null,null,null,0]
[null,null,null,null,null,496,null,null,null,0]
[null,null,null,null,null,499,null,null,null,0]
[null,null,null,null,null,511,null,null,null,0]
[null,null,null,null,null,512,null,null,null,0]
[null,null,null,null,null,513,null,null,null,0]
[null,null,null,null,null,514,null,null,null,0]
[null,null,null,null,null,515,null,null,null,0]
[null,null,null,null,null,521,null,null,null,0]
[null,null,null,null,null,522,null,null,null,0]
[null,null,null,null,null,523,null,null,null,0]
[null,null,null,null,null,531,null,null,null,0]
[null,null,null,null,null,541,null,null,null,0]
[null,null,null,null,null,null,"422-Трошкови службених путовања",300000,null,300000]
[null,null,null,null,null,null,"423-Услуге по уговору",840000,null,840000]
[null,null,null,null,null,null,"424-Специјализоване услуге",40000,null,40000]
[null,null,null,null,null,null,"425-Текуће поправке и одржавање",800000,null,800000]
[null,null,null,null,null,null,"426-Материјал",2050000,null,2050000]
[null,null,null,null,null,null,"472-Накнада за образовање и такмичење",250000,null,250000]
[null,null,null,null,null,null,"482-Порези, обавезне таксе, пенали и казне",50000,null,50000]
[null,null,null,null,164,463,"Капитални трансфери осталим нивоима власти",{"$f":"H1370+H1371","v":2030000},null,2030000]
[null,null,null,null,null,null,null,null,null,0]
[null,null,null,null,null,null,null,null,null,0]
[null,null,null,null,null,null,null,null,null,0]
[null,null,null,null,null,null,null,null,null,0]
[null,null,null,null,null,null,null,null,null,0]
[null,null,null,null,null,null,null,null,null,0]
[null,null,null,null,null,null,null,null,null,0]
[null,null,null,null,null,null,null,null,null,0]
[null,null,null,null,null,null,null,null,null,0]
[null,null,null,null,null,null,null,null,null,0]
[null,null,null,null,null,null,null,null,null,0]
[null,null,null,null,null,null,null,null,null,0]
[null,null,null,null,null,null,"472-Накнада за образовање и такмичење",250000,null,250000]
[null,null,null,null,null,null,"482-Порези, обавезне таксе, пенали и казне",50000,null,50000]
[null,null,null,null,null,463,"Капитални трансфери осталим нивоима власти",{"$f":"H1385+H1386","v":2030000},null,2030000]
[null,null,null,null,null,null,"511-Зграде и грађевински објекти",700000,null,700000]
[null,null,null,null,null,null,"512-Машине и опрема",1330000,null,1330000]
[]
[null,null,null,null,null,"02",null,null,null,{"$f":"SUM(H1373:I1373)","v":0}]
[null,null,null,null,null,"03",null,null,null,0]
[null,null,null,null,null,"04",null,null,null,0]
[null,null,null,null,null,"05",null,null,null,0]
[null,null,null,null,null,"06",null,null,null,0]
[null,null,null,null,null,"07",null,null,null,0]
[null,null,null,null,null,"08",null,null,null,0]
[null,null,null,null,null,"09",null,null,null,0]
[null,null,null,null,null,"10",null,null,null,0]
[null,null,null,null,null,"11",null,null,null,0]
[null,null,null,null,null,"12",null,null,null,0]
[null,null,null,null,null,"13",null,null,null,0]
[null,null,null,null,null,null,"511-Зграде и грађевински објекти",700000,null,700000]
[null,null,null,null,null,null,"512-Машина и опрема",1330000,null,1330000]
[null,null,null,null,null,null,"Извор финансирања за ПА: 2002-0001"]
[null,null,null,null,null,null,"01 - Приходи из буџета",{"$f":"H1316+H1369","v":18000000},null,{"$f":"J1316+J1369","v":18000000}]
[null,null,null,null,null,null,"Укупно за ПА: 2002-0001",{"$f":"H1388","v":18000000},null,{"$f":"J1388","v":18000000}]
[null,null,null,null,null,null,"Извор финансирања за функцију: 912"]
[null,null,null,null,null,null,"01 - Приходи из буџета",{"$f":"H1388","v":18000000},null,{"$f":"J1388","v":18000000}]
[null,null,null,null,null,null,"Укупно за функцију: 912",{"$f":"H1391","v":18000000},null,{"$f":"J1388","v":18000000}]
[]
["5. ","5.00.02",null,null,null,null,"ОШ \"САВО ЈОВАНОВИЋ\""]
[null,null,"2003",null,null,null,"ПРОГРАМ 9: ОСНОВНО ОБРАЗОВАЊЕ"]
[null,null,"2003-0001",null,null,null,"ПА: Реализација делатности основног образовања"]
[null,null,null,912,null,null,"Основно образовање"]
[null,null,null,null,168,463,"Текући трансфери осталим нивоима власти",{"$f":"H1399+H1400+H1401+H1402+H1403+H1404+H1431+H1432+H1433+H1434+H1435","v":13050000},null,{"$f":"J1399+J1400+J1401+J1402+J1403+J1430+J1431+J1432+J1433+J1434+J1450","v":13050000}]
[null,null,null,null,null,null,"414-Социјална давања запосленима",350000,null,{"$f":"H1399","v":350000}]
[null,null,null,null,null,null,"415-Накнаде за запослене-превоз",3300000,null,3300000]
[null,null,null,null,null,null,"416-Награде за запослене-јубиларне",400000,null,400000]
[null,null,null,null,null,null,"421-Стални трошкови",3120000,null,3120000]
[null,null,null,null,null,null,"422-Трошкови службених путовања",40000,null,40000]
[null,null,null,null,null,null,"423-Услуге по уговору",2910000,null,2910000]
[null,null,null,null,null,null,"424-Специјализоване услуге",70000,null,70000]
[null,null,null,null,null,464,null,null,null,0]
[null,null,null,null,null,465,null,null,null,0]
[null,null,null,null,null,472,null,null,null,0]
[null,null,null,null,null,481,null,null,null,0]
[null,null,null,null,null,482,null,null,null,0]
[null,null,null,null,null,483,null,null,null,0]
[null,null,null,null,null,484,null,null,null,0]
[null,null,null,null,null,485,null,null,null,0]
[null,null,null,null,null,489,null,null,null,0]
[null,null,null,null,null,494,null,null,null,0]
[null,null,null,null,null,495,null,null,null,0]
[null,null,null,null,null,496,null,null,null,0]
[null,null,null,null,null,499,null,null,null,0]
[null,null,null,null,null,511,null,null,null,0]
[null,null,null,null,null,512,null,null,null,0]
[null,null,null,null,null,513,null,null,null,0]
[null,null,null,null,null,514,null,null,null,0]
[null,null,null,null,null,515,null,null,null,0]
[null,null,null,null,null,521,null,null,null,0]
[null,null,null,null,null,522,null,null,null,0]
[null,null,null,null,null,523,null,null,null,0]
[null,null,null,null,null,531,null,null,null,0]
[null,null,null,null,null,541,null,null,null,0]
[null,null,null,null,null,null,"422-Трошкови службених путовања",40000,null,40000]
[null,null,null,null,null,null,"423-Услуге по уговору",2910000,null,2910000]
[null,null,null,null,null,null,"424-Специјализоване услуге",40000,null,40000]
[null,null,null,null,null,null,"425-Текуће поправке и одржавање",700000,null,700000]
[null,null,null,null,null,null,"426-Материјал",2030000,null,2030000]
[null,null,null,null,null,null,"472-Накнада за образовање и такмичење",50000,null,50000]
[null,null,null,null,null,null,"482-Порези, обавезне таксе, пенали и казне",110000,null,110000]
[null,null,null,null,164,463,"Капитални трансфери осталим нивоима власти",{"$f":"H1452+H1453","v":8950000},null,8950000]
[null,null,null,null,null,null,null,null,null,0]
[null,null,null,null,null,null,null,null,null,0]
[null,null,null,null,null,null,null,null,null,0]
[null,null,null,null,null,null,null,null,null,0]
[null,null,null,null,null,null,null,null,null,0]
[null,null,null,null,null,null,null,null,null,0]
[null,null,null,null,null,null,null,null,null,0]
[null,null,null,null,null,null,null,null,null,0]
[null,null,null,null,null,null,null,null,null,0]
[null,null,null,null,null,null,null,null,null,0]
[null,null,null,null,null,null,null,null,null,0]
[null,null,null,null,null,null,null,null,null,0]
[null,null,null,null,null,null,"472-Накнада за образовање и такмичење",50000,null,50000]
[null,null,null,null,null,null,"482-Порези, обавезне таксе, пенали и казне",110000,null,110000]
[null,null,null,null,null,463,"Капитални трансфери осталим нивоима власти",{"$f":"H1467+H1468","v":8950000},null,8950000]
[null,null,null,null,null,null,"511-Зграде и грађевински објекти",8000000,null,{"$f":"H1452","v":8000000}]
[null,null,null,null,null,null,"512-Машине и опрема",950000,null,950000]
[]
[null,null,null,null,null,"02",null,null,null,{"$f":"SUM(H1455:I1455)","v":0}]
[null,null,null,null,null,"03",null,null,null,0]
[null,null,null,null,null,"04",null,null,null,0]
[null,null,null,null,null,"05",null,null,null,0]
[null,null,null,null,null,"06",null,null,null,0]
[null,null,null,null,null,"07",null,null,null,0]
[null,null,null,null,null,"08",null,null,null,0]
[null,null,null,null,null,"09",null,null,null,0]
[null,null,null,null,null,"10",null,null,null,0]
[null,null,null,null,null,"11",null,null,null,0]
[null,null,null,null,null,"12",null,null,null,0]
[null,null,null,null,null,"13",null,null,null,0]
[null,null,null,null,null,null,"511-Зграде и грађевински објекти",8000000,null,8000000]
[null,null,null,null,null,null,"512-Машина и опрема",950000,null,950000]
[null,null,null,null,null,null,"Извор финансирања за ПА: 2002-0001"]
[null,null,null,null,null,null,"01 - Приходи из буџета",{"$f":"H1398+H1451","v":22000000},null,{"$f":"J1398+J1451","v":22000000}]
[null,null,null,null,null,null,"Укупно за ПА: 2002-0001",{"$f":"H1470","v":22000000},null,{"$f":"J1470","v":22000000}]
[null,null,null,null,null,null,"Извор финансирања за функцију: 912"]
[null,null,null,null,null,null,"01 - Приходи из буџета",{"$f":"H1470","v":22000000},null,{"$f":"J1470","v":22000000}]
[null,null,null,null,null,null,"Укупно за функцију: 912",{"$f":"H1473","v":22000000},null,{"$f":"J1473","v":22000000}]
[]
["5. ","5.00.03",null,null,null,null,"ОШ \"МИЛИВОЈЕ БОРОВИЋ\""]
[null,null,"2003",null,null,null,"ПРОГРАМ 9: ОСНОВНО ОБРАЗОВАЊЕ"]
[null,null,"2003-0001",null,null,null,"ПА: Реализација делатности основног образовања"]
[null,null,null,912,null,null,"Основно образовање"]
[null,null,null,null,168,463,"Текући трансфери осталим нивоима власти",{"$f":"H1481+H1482+H1483+H1484+H1485+H1486+H1513+H1514+H1515+H1516+H1517","v":11740000},null,{"$f":"H1480","v":11740000}]
[null,null,null,null,null,null,"414-Социјална давања запосленима",210000,null,{"$f":"H1481","v":210000}]
[null,null,null,null,null,null,"415-Накнаде за запослене-превоз",2100000,null,2100000]
[null,null,null,null,null,null,"416-Награде за запослене-јубиларне",300000,null,300000]
[null,null,null,null,null,null,"421-Стални трошкови",5155000,null,5155000]
[null,null,null,null,null,null,"422-Трошкови службених путовања",30000,null,30000]
[null,null,null,null,null,null,"423-Услуге по уговору",825000,null,825000]
[null,null,null,null,null,null,"424-Специјализоване услуге",70000,null,70000]
[null,null,null,null,null,464,null,null,null,0]
[null,null,null,null,null,465,null,null,null,0]
[null,null,null,null,null,472,null,null,null,0]
[null,null,null,null,null,481,null,null,null,0]
[null,null,null,null,null,482,null,null,null,0]
[null,null,null,null,null,483,null,null,null,0]
[null,null,null,null,null,484,null,null,null,0]
[null,null,null,null,null,485,null,null,null,0]
[null,null,null,null,null,489,null,null,null,0]
[null,null,null,null,null,494,null,null,null,0]
[null,null,null,null,null,495,null,null,null,0]
[null,null,null,null,null,496,null,null,null,0]
[null,null,null,null,null,499,null,null,null,0]
[null,null,null,null,null,511,null,null,null,0]
[null,null,null,null,null,512,null,null,null,0]
[null,null,null,null,null,513,null,null,null,0]
[null,null,null,null,null,514,null,null,null,0]
[null,null,null,null,null,515,null,null,null,0]
[null,null,null,null,null,521,null,null,null,0]
[null,null,null,null,null,522,null,null,null,0]
[null,null,null,null,null,523,null,null,null,0]
[null,null,null,null,null,531,null,null,null,0]
[null,null,null,null,null,541,null,null,null,0]
[null,null,null,null,null,null,"422-Трошкови службених путовања",30000,null,30000]
[null,null,null,null,null,null,"423-Услуге по уговору",825000,null,825000]
[null,null,null,null,null,null,"424-Специјализоване услуге",65000,null,65000]
[null,null,null,null,null,null,"425-Текуће поправке и одржавање",1350000,null,{"$f":"H1514+I1514","v":1350000}]
[null,null,null,null,null,null,"426-Материјал",1515000,null,1515000]
[null,null,null,null,null,null,"472-Накнада за образовање и такмичење",120000,null,{"$f":"H1516","v":120000}]
[null,null,null,null,null,null,"482-Порези, обавезне таксе, пенали и казне",70000,null,70000]
[null,null,null,null,164,463,"Капитални трансфери осталим нивоима власти",{"$f":"H1534+H1535+H1536","v":2260000},null,2260000]
[null,null,null,null,null,null,null,null,null,0]
[null,null,null,null,null,null,null,null,null,0]
[null,null,null,null,null,null,null,null,null,0]
[null,null,null,null,null,null,null,null,null,0]
[null,null,null,null,null,null,null,null,null,0]
[null,null,null,null,null,null,null,null,null,0]
[null,null,null,null,null,null,null,null,null,0]
[null,null,null,null,null,null,null,null,null,0]
[null,null,null,null,null,null,null,null,null,0]
[null,null,null,null,null,null,null,null,null,0]
[null,null,null,null,null,null,null,null,null,0]
[null,null,null,null,null,null,null,null,null,0]
[null,null,null,null,null,null,"472-Накнада за образовање и такмичење",120000,null,120000]
[null,null,null,null,null,null,"482-Порези, обавезне таксе, пенали и казне",70000,null,70000]
[null,null,null,null,null,463,"Капитални трансфери осталим нивоима власти",{"$f":"H1534+H1535+H1551","v":2260000},null,2260000]
[null,null,null,null,null,null,"511-Зграде и грађевински објекти",2000000,null,2000000]
[null,null,null,null,null,null,"Текући трансфери осталим нивоима власти",250000,null,250000]
[null,null,null,null,null,null,"515-Нематеријална имовина-књиге за библиотеку",10000,null,{"$f":"H1536","v":10000}]
[]
[null,null,null,null,null,"02",null,null,null,{"$f":"SUM(H1538:I1538)","v":0}]
[null,null,null,null,null,"03",null,null,null,0]
[null,null,null,null,null,"04",null,null,null,0]
[null,null,null,null,null,"05",null,null,null,0]
[null,null,null,null,null,"06",null,null,null,0]
[null,null,null,null,null,"07",null,null,null,0]
[null,null,null,null,null,"08",null,null,null,0]
[null,null,null,null,null,"09",null,null,null,0]
[null,null,null,null,null,"10",null,null,null,0]
[null,null,null,null,null,"11",null,null,null,0]
[null,null,null,null,null,"12",null,null,null,0]
[null,null,null,null,null,"13",null,null,null,0]
[null,null,null,null,null,null,"512-Машина и опрема",250000,null,250000]
[null,null,null,null,null,null,"515-Нематеријална имовина",10000,null,10000]
[null,null,null,null,null,null,"Извор финансирања за ПА: 2002-0001"]
[null,null,null,null,null,null,"01 - Приходи из буџета",{"$f":"H1480+H1533","v":14000000},null,{"$f":"J1480+J1533","v":14000000}]
[null,null,null,null,null,null,"Укупно за ПА: 2002-0001",{"$f":"H1553","v":14000000},null,{"$f":"J1553","v":14000000}]
[null,null,null,null,null,null,"Извор финансирања за функцију: 912"]
[null,null,null,null,null,null,"01 - Приходи из буџета",{"$f":"H1553","v":14000000},null,{"$f":"J1553","v":14000000}]
[null,null,null,null,null,null,"Укупно за функцију: 912",{"$f":"H1556","v":14000000},null,{"$f":"J1556","v":14000000}]
[null,null,null,null,null,null,"Извор финансирања за функцију: 912- збирно за ОШ"]
[null,null,null,null,null,null,"01 - Приходи из буџета",{"$f":"H1391+H1470+H1553","v":54000000},null,{"$f":"J1391+J1473+J1556","v":54000000}]
[null,null,null,null,null,null,"Укупно за функцију: 912 - збирно за ОШ",{"$f":"H1392+H1474+H1557","v":54000000},null,{"$f":"J1559","v":54000000}]
[]
["5. ","5.00.04",null,null,null,null,"УГОСТИТЕЉСКО-ТУРИСТИЧКА ШКОЛА ЧАЈЕТИНА"]
[null,null,"2004",null,null,null,"ПРОГРАМ 10: СРЕДЊЕ ОБРАЗОВАЊЕ"]
[null,null,"2004-0001",null,null,null,"ПА: Реализација делатности средњег образовања"]
[null,null,null,920,null,null,"Средње образовање"]
[null,null,null,null,169,463,"Текући трансфери осталим нивоима власти",{"$f":"H1567+H1568+H1569+H1570+H1571+H1572+H1599+H1600+H1601+H1602+H1603","v":10315000},null,{"$f":"H1566","v":10315000}]
[null,null,null,null,null,null,"414-Социјална давања запосленима",300000,null,{"$f":"H1567","v":300000}]
[null,null,null,null,null,null,"415-Накнаде за запослене-превоз",2400000,null,2400000]
[null,null,null,null,null,null,"416-Награде за запослене-јубиларне",850000,null,850000]
[null,null,null,null,null,null,"421-Стални трошкови",3050000,null,3050000]
[null,null,null,null,null,null,"422-Трошкови службених путовања",350000,null,350000]
[null,null,null,null,null,null,"423-Услуге по уговору",905000,null,905000]
[null,null,null,null,null,null,"424-Специјализоване услуге",80000,null,80000]
[null,null,null,null,null,464,null,null,null,0]
[null,null,null,null,null,465,null,null,null,0]
[null,null,null,null,null,472,null,null,null,0]
[null,null,null,null,null,481,null,null,null,0]
[null,null,null,null,null,482,null,null,null,0]
[null,null,null,null,null,483,null,null,null,0]
[null,null,null,null,null,484,null,null,null,0]
[null,null,null,null,null,485,null,null,null,0]
[null,null,null,null,null,489,null,null,null,0]
[null,null,null,null,null,494,null,null,null,0]
[null,null,null,null,null,495,null,null,null,0]
[null,null,null,null,null,496,null,null,null,0]
[null,null,null,null,null,499,null,null,null,0]
[null,null,null,null,null,511,null,null,null,0]
[null,null,null,null,null,512,null,null,null,0]
[null,null,null,null,null,513,null,null,null,0]
[null,null,null,null,null,514,null,null,null,0]
[null,null,null,null,null,515,null,null,null,0]
[null,null,null,null,null,521,null,null,null,0]
[null,null,null,null,null,522,null,null,null,0]
[null,null,null,null,null,523,null,null,null,0]
[null,null,null,null,null,531,null,null,null,0]
[null,null,null,null,null,541,null,null,null,0]
[null,null,null,null,null,null,"422-Трошкови службених путовања",350000,null,350000]
[null,null,null,null,null,null,"423-Услуге по уговору",890000,null,890000]
[null,null,null,null,null,null,"424-Специјализоване услуге",80000,null,80000]
[null,null,null,null,null,null,"425-Текуће поправке и одржавање",660000,null,660000]
[null,null,null,null,null,null,"426-Материјал",1635000,null,1635000]
[null,null,null,null,null,null,"472-Накнада за образовање и такмичење",80000,null,80000]
[null,null,null,null,null,null,"482-Порези, обавезне таксе, казне и пенали",5000,null,5000]
[null,null,null,null,165,463,"Капитални трансфери осталим нивоима власти",{"$f":"H1620","v":3385000},null,3385000]
[null,null,null,null,null,null,null,null,null,0]
[null,null,null,null,null,null,null,null,null,0]
[null,null,null,null,null,null,null,null,null,0]
[null,null,null,null,null,null,null,null,null,0]
[null,null,null,null,null,null,null,null,null,0]
[null,null,null,null,null,null,null,null,null,0]
[null,null,null,null,null,null,null,null,null,0]
[null,null,null,null,null,null,null,null,null,0]
[null,null,null,null,null,null,null,null,null,0]
[null,null,null,null,null,null,null,null,null,0]
[null,null,null,null,null,null,null,null,null,0]
[null,null,null,null,null,null,null,null,null,0]
[null,null,null,null,null,null,"472-Накнада за образовање и такмичење",80000,null,80000]
[null,null,null,null,null,null,"482-Порези, обавезне таксе, пенали и казне",5000,null,5000]
[null,null,null,null,null,463,"Текући трансфери осталим нивоима власти",{"$f":"H1620+H1636","v":3685000},null,3685000]
[null,null,null,null,null,null,"511-Зграде и грађевински објекти",3385000,null,3385000]
[]
[null,null,null,null,null,"02",null,null,null,{"$f":"SUM(H1622:I1622)","v":0}]
[null,null,null,null,null,"03",null,null,null,0]
[null,null,null,null,null,"04",null,null,null,0]
[null,null,null,null,null,"05",null,null,null,0]
[null,null,null,null,null,"06",null,null,null,0]
[null,null,null,null,null,"07",null,null,null,0]
[null,null,null,null,null,"08",null,null,null,0]
[null,null,null,null,null,"09",null,null,null,0]
[null,null,null,null,null,"10",null,null,null,0]
[null,null,null,null,null,"11",null,null,null,0]
[null,null,null,null,null,"12",null,null,null,0]
[null,null,null,null,null,"13",null,null,null,0]
[null,null,null,null,173,463,"Капитални трансфери осталим нивоима власти",{"$f":"H1635+H1636","v":3700000},null,{"$f":"J1635+J1636","v":3700000}]
[null,null,null,null,null,null,"511 - Зграде и грађевински објекти - замена столарије на школи",3400000,null,{"$f":"H1635","v":3400000}]
[null,null,null,null,null,null,"512-Машина и опрема",300000,null,300000]
[null,null,null,null,null,null,"Извор финансирања за ПА: 2004-0001"]
[null,null,null,null,null,null,"01 - Приходи из буџета",{"$f":"H1566+H1619","v":14000000},null,{"$f":"J1566+J1619","v":14000000}]
[null,null,null,null,null,null,"Укупно за ПА: 2004-0001",{"$f":"H1638","v":14000000},null,{"$f":"J1638","v":14000000}]
[null,null,null,null,null,null,"Извор финансирања за функцију: 920"]
[null,null,null,null,null,null,"01 - Приходи из буџета",{"$f":"H1638","v":14000000},null,{"$f":"J1638","v":14000000}]
[null,null,null,null,null,null,"Укупно за функцију: 920",{"$f":"H1641","v":14000000},null,{"$f":"J1641","v":14000000}]
[]
[5,"5.00.05",null,null,null,null,"ЦЕНТАР ЗА СОЦИЈАЛНИ РАД"]
[null,null,"0902",null,null,null,"ПРОГРАМ 11: СОЦИЈАЛНА И ДЕЧЈА ЗАШТИТА"]
[null,null,"0902-0001",null,null,null,"ПА: Једнократне помоћи и други облици помоћи"]
[null,null,null,"070",null,null,"Социјална заштита некласификована на другом месту, помоћ угроженом становништву"]
[null,null,null,null,null,463,"Текући трансфери осталим нивоима власти",{"$f":"H1649","v":4900000},null,{"$f":"J1649","v":4900000}]
[null,null,null,null,50,null,"472-Једнократне помоћи ",4900000,null,{"$f":"H1649","v":4900000}]
[null,null,null,null,null,null,"Извор финансирања за ПА: 0902-0001"]
[null,null,null,null,null,null,"01 - Приходи из буџета",{"$f":"H1649","v":4900000},null,{"$f":"J1649","v":4900000}]
[null,null,null,null,null,null,"Укупно за ПА: 0902-0001",{"$f":"H1651","v":4900000},null,{"$f":"J1651","v":4900000}]
[]
[null,null,"0902",null,null,null,"ПРОГРАМ 11: СОЦИЈАЛНА И ДЕЧЈА ЗАШТИТА"]
[null,null,"0902-0005",null,null,null,"ПА: Обављање делатности установа социјалне заштите"]
[null,null,null,"070",null,null,"Социјална заштита некласификована на другом месту, помоћ угроженом становништву"]
[null,null,null,null,51,463,"Текући трансфери осталим нивоима власти",{"$f":"H1658+H1659+H1660+H1661+H1662","v":4110000},null,{"$f":"J1658+J1659+J1660+J1661+J1662","v":4110000}]
[null,null,null,null,null,null,"421- Стални трошкови",255000,null,{"$f":"H1658","v":255000}]
[null,null,null,null,null,null,"423-Услуге по уговору",3350000,null,3350000]
[null,null,null,null,null,null,"425-Текуће поправке и одржавање",150000,null,150000]
[null,null,null,null,null,null,"426-Материјал",350000,null,350000]
[null,null,null,null,null,null,"483-Новчане казне и пенали по решењу судова",5000,null,5000]
[null,null,null,null,null,null,"Извор финансирања за ПА: 0902-0005"]
[null,null,null,null,null,null,"01 - Приходи из буџета",{"$f":"H1657","v":4110000},null,{"$f":"H1664","v":4110000}]
[null,null,null,null,null,null,"Укупно  за ПА: 0902-0005",{"$f":"H1664","v":4110000},null,{"$f":"J1664","v":4110000}]
[null,null,null,null,null,null,"Извор финансирања за функцију: 070"]
[null,null,null,null,null,null,"01 - Приходи из буџета",{"$f":"H1652+H1665","v":9010000},null,{"$f":"J1652+J1665","v":9010000}]
[null,null,null,null,null,null,"Укупно за функцију: 070",{"$f":"H1667","v":9010000},null,{"$f":"J1667","v":9010000}]
[]
[5,"5.00.06",null,null,null,null,"ДОМ ЗДРАВЉА ЧАЈЕТИНА"]
[null,null,"1801",null,null,null,"ПРОГРАМ 12: ПРИМАРНА ЗДРАВСТВЕНА ЗАШТИТА"]
[null,null,"1801-0001",null,null," ","ПА: Функционисање установа примарне здравствене заштите"]
[null,null,null,760,null,null,"Здравство некласификовано на другом месту"]
[null,null,null,null,149,464,"Текући и капитални трансфери осталим нивоима власти",10100000,null,{"$f":"H1674","v":10100000}]
[null,null,null,null,null,null,"Извор финансирања за ПА: 1801-0001"]
[null,null,null,null,null,null,"01 - Приходи из буџета",{"$f":"H1674","v":10100000},null,{"$f":"J1674","v":10100000}]
[null,null,null,null,null,null,"Свега за ПА: 1801-0001",{"$f":"H1676","v":10100000},null,{"$f":"J1676","v":10100000}]
[]
[]
[]
[]
[]
[]
[]
[null,null,null,null,null,null,"01 - Приходи из буџета"]
[null,null,null,null,null,null,"Функција 920: "]
[null,null,null,null,null,null,"Извор финансирања за програмску активност 2003-0001"]
[]
[]
[null,null,null,null,null,null,"Извор финансирања за ПА: 1801-0001"]
[null,null,null,null,null,null,"01 - Приходи из буџета",{"$f":"H1674","v":10100000},null,{"$f":"J1674","v":10100000}]
[null,null,null,null,null,null,"Укупно за ПА: 1801-0001",{"$f":"H1691","v":10100000},null,{"$f":"J1691","v":10100000}]
[null,null,null,null,null,null,"Извор финансирања за функцију: 760"]
[null,null,null,null,null,null,"01 - Приходи из буџета",{"$f":"H1676","v":10100000},null,{"$f":"J1676","v":10100000}]
[null,null,null,null,null,null,"Укупно за функцију: 760",{"$f":"H1677","v":10100000},null,{"$f":"J1694","v":10100000}]
[]
[5,"5.01",null,null,null,null,"ПРЕДШКОЛСКА УСТАНОВА\"РАДОСТ\" ЧАЈЕТИНА"]
[null,null,"2002",null,null,null,"ПРОГРАМ 8: ПРЕДШКОЛСКО ВАСПИТАЊЕ "]
[null,null,"2002-0002",null,null,null,"ПА: Функционисање и остваривање предшколског васпитања и образовања"]
[null,null,null,911,null,null,"Предшколско образовање"]
[]
[]
[]
[]
[]
[]
[]
[]
[]
[]
[]
[]
[null,null,"2002",null,null,null,"ПРОГРАМ 8: ПРЕДШКОЛСКО ВАСПИТАЊЕ "]
[null,null,"2002-0002",null,null,null,"ПА: Функционисање и остваривање предшколског васпитања и образовања"]
[null,null,null,911,null,null,"Предшколско образовање"]
[null,null,null,null,172,"411","Плате, додаци и накнаде запослених-зараде",66919000,null,{"$f":"H1716+I1716","v":66919000}]
[null,null,null,null,173,412,"Социјални доприноси на терет послодавца",10808000,null,{"$f":"H1717+I1717","v":10808000}]
[null,null,null,null,174,413,"Накнаде у натури",850000,null,{"$f":"H1718","v":850000}]
[null,null,null,null,175,414,"Социјална давања запосленима",9350000,150000,{"$f":"H1719+I1719","v":9500000}]
[null,null,null,null,176,"415","Накнаде трошкова за запослене-превоз",4000000,null,{"$f":"H1720+I1720","v":4000000}]
[null,null,null,null,177,416,"Награде запосленима и остали посебни расходи-јубиларне награде",1400000,null,1400000]
[null,null,null,null,null,421,"Стални трошкови",10390000,null,10390000]
[null,null,null,null,null,null,null,null,null,0]
[null,null,null,null,null,null,null,null,null,0]
[null,null,null,null,null,null,null,null,null,0]
[null,null,null,null,null,null,null,null,null,0]
[null,null,null,null,null,null,"01 - Приходи из буџета",null,null,0]
[null,null,null,null,null,null,"Свега за програмску активност 0901-0006",null,null,0]
[null,null,null,null,null,null,"Извор финансирања за  главу 4.19",null,null,0]
[null,null,null,null,null,null,"01 - Приходи из буџета",null,null,0]
[null,null,null,null,null,null,"Укупно за  главу 4.19",null,null,0]
[null,null,null,null,null,"01",null,8500000,null,8500000]
[null,null,null,null,null,null,null,8500000,null,8500000]
[null,null,null,null,null,null,null,null,null,0]
[null,null,null,null,null,null,null,null,null,0]
[null,null,null,null,null,null,null,null,null,0]
[null,null,null,null,null,null,null,null,null,0]
[null,null,null,null,null,null,null,null,null,0]
[null,null,null,null,null,null,null,null,null,0]
[null,null,null,null,null,null,null,null,null,0]
[null,null,null,null,null,null,null,null,null,0]
[null,null,null,null,null,null,"Приходи из буџета",null,null,0]
[null,null,null,null,null,null,"Свега за програмску активност 2003-0001",null,null,0]
[null,null,null,null,null,null,null,null,null,0]
[null,null,null,null,null,null,null,null,null,0]
[null,null,null,null,null,null,null,null,null,0]
[null,null,null,null,null,null,null,null,null,0]
[null,null,null,null,null,null,null,null,null,0]
[null,null,null,null,null,null,null,null,null,0]
[null,null,null,null,null,null,null,null,null,0]
[null,null,null,null,null,null,null,null,null,0]
[null,null,null,null,null,null,null,null,null,0]
[null,null,null,null,null,null,null,null,null,0]
[null,null,null,null,null,null,null,null,null,0]
[null,null,null,null,null,null,null,null,null,0]
[null,null,null,null,null,415,"Накнаде трошкова за запослене - превоз",4000000,null,4000000]
[null,null,null,null,null,416,"Награде за запослене и остали посебни расходи-јубиларне награде",1400000,null,1400000]
[null,null,null,null,178,421,"Стални трошкови",13600000,null,13600000]
[null,null,null,null,179,422,"Трошкови службених путовања",400000,null,400000]
[null,null,null,null,null,423,"Услуге по уговору",11200000,null,{"$f":"H1760","v":11200000}]
[null,null,null,null,null,null,null,null,null,0]
[null,null,null,null,null,null,null,null,null,0]
[null,null,null,null,null,null,null,null,null,0]
[null,null,null,null,null,null,null,null,null,0]
[null,null,null,null,null,null,null,null,null,0]
[null,null,null,null,null,null,null,null,null,0]
[null,null,null,null,null,null,null,null,null,0]
[null,null,null,null,null,null,null,null,null,0]
[null,null,null,null,null,null,null,null,null,0]
[null,null,null,null,null,null,null,null,null,0]
[null,null,null,null,null,null,null,null,null,0]
[null,null,null,null,null,null,null,null,null,0]
[null,null,null,null,null,421,"Стални трошкови",13600000,null,13600000]
[null,null,null,null,null,422,"Трошкови службених путовања",450000,null,450000]
[null,null,null,null,180,423,"Услуге по уговору",26800000,null,26800000]
[null,null,null,null,181,424,"Специјализоване услуге",1500000,null,1500000]
[null,null,null,null,182,425,"Текеуће поправке и одржавање",8900000,null,8900000]
[null,null,null,null,null,426,"Материјал",5740000,4700000,10440000]
[null,null,null,null,null,null,null,null,null,0]
[null,null,null,null,null,null,null,null,null,0]
[null,null,null,null,null,null,null,null,null,0]
[null,null,null,null,null,null,null,null,null,{"$f":"H1782+I1782","v":0}]
[null,null,null,null,null,null,null,null,null,0]
[null,null,null,null,null,null,null,null,null,0]
[null,null,null,null,null,null,null,null,null,0]
[null,null,null,null,null,null,null,null,null,0]
[null,null,null,null,null,null,null,null,null,0]
[null,null,null,null,null,null,null,null,null,0]
[null,null,null,null,null,null,null,null,null,0]
[null,null,null,null,null,null,null,null,null,0]
[null,null,null,null,null,null,null,null,null,0]
[null,null,null,null,null,null,null,null,null,0]
[null,null,null,null,null,null,null,null,null,0]
[null,null,null,null,null,null,null,null,null,0]
[null,null,null,null,null,424,"Специјализоване услуге",1500000,null,1500000]
[null,null,null,null,null,425,"Текуће поправке и одржавање",3270000,null,3270000]
[null,null,null,null,183,426,"Материјал",8730000,6200000,14930000]
[null,null,null,null,null,482,"Порези, обавезне таксе, пенали и казне",128000,null,128000]
[null,null,null,null,null,null,null,null,null,0]
[null,null,null,null,null,null,null,null,null,0]
[null,null,null,null,null,null,null,null,null,0]
[null,null,null,null,null,null,null,null,null,0]
[null,null,null,null,null,null,null,null,null,0]
[null,null,null,null,null,null,null,null,null,0]
[null,null,null,null,null,null,null,null,null,0]
[null,null,null,null,null,null,null,null,null,0]
[null,null,null,null,null,null,null,null,null,0]
[null,null,null,null,null,null,null,null,null,0]
[null,null,null,null,null,null,null,null,null,0]
[null,null,null,null,null,null,null,null,null,0]
[null,null,null,null,null,null,null,null,null,0]
[null,null,null,null,null,null,null,null,null,0]
[null,null,null,null,null,null,null,null,null,0]
[null,null,null,null,null,null,null,null,null,0]
[null,null,null,null,null,null,null,null,null,0]
[null,null,null,null,null,null,null,null,null,0]
[null,null,null,null,null,null,null,null,null,0]
[null,null,null,null,null,null,null,null,null,0]
[null,null,null,null,null,null,null,null,null,0]
[null,null,null,null,null,null,null,null,null,0]
[null,null,null,null,null,null,null,null,null,0]
[null,null,null,null,null,null,null,null,null,0]
[null,null,null,null,null,null,null,null,null,0]
[null,null,null,null,null,null,null,null,null,0]
[null,null,null,null,null,null,null,null,null,0]
[null,null,null,null,null,null,null,null,null,0]
[null,null,null,null,null,null,null,null,null,0]
[null,null,null,null,null,null,null,null,null,0]
[null,null,null,null,null,null,null,null,null,0]
[null,null,null,null,null,null,null,null,null,0]
[null,null,null,null,null,null,null,null,null,0]
[null,null,null,null,null,null,null,null,null,0]
[null,null,null,null,null,null,null,null,null,0]
[null,null,null,null,null,null,null,null,null,0]
[null,null,null,null,null,null,null,null,null,0]
[null,null,null,null,null,425,"Текуће поправке и одржавање",10900000,null,10900000]
[null,null,null,null,null,426,"Материјал",8730000,6200000,14930000]
[null,null,null,null,184,482,"Порези, обавезне таксе, пенали и казне",200000,null,200000]
[null,null,null,null,185,511,"Зграде и грађевински објекти",102000000,null,102000000]
[null,null,null,null,182,512,"Машине и опрема",1200000,null,1200000]
[]
[]
[]
[]
[]
[]
[]
[]
[]
[]
[]
[]
[null,null,null,null,188,482,"Порези, обавезне таксе, пенали и казне",200000,null,{"$f":"H1853","v":200000}]
[null,null,null,null,181,511,"Зграде  и грађевински објекти",1500000,null,{"$f":"H1854","v":1500000}]
[null,null,null,null,186,512,"Машине и опрема",3700000,null,{"$f":"H1855","v":3700000}]
[]
[]
[]
[]
[]
[]
[]
[]
[]
[]
[]
[]
[]
[null,null,null,null,189,511,"Зграде и грађевински објекти",102000000,null,{"$f":"H1869","v":102000000}]
[null,null,null,null,190,512,"Машине и опрема",3700000,null,{"$f":"H1870","v":3700000}]
[null,null,null,null,null,null,"Извор финансирања за ПА: 2001-0001"]
[null,null,null,null,null,null,"01 - Приходи из буџета",{"$f":"H1716+H1717+H1718+H1719+H1720+H1721+H1758+H1759+H1775+H1776+H1777+H1797+H1838+H1839+H1855","v":259157000},null,{"$f":"H1872","v":259157000}]
[null,null,null,null,null,null,"07 - Приходи од Републике",null,{"$f":"I1719+I1796+I1837","v":6350000},{"$f":"I1873","v":6350000}]
[null,null,null,null,null,null,"Укупно за ПА: 2001-0001",{"$f":"H1872","v":259157000},{"$f":"I1873","v":6350000},{"$f":"J1872+J1873","v":265507000}]
[null,null,null,null,null,null,"Извор финансирања за функцију: 911"]
[null,null,null,null,null,null,"01 - Приходи из буџета",{"$f":"H1872","v":259157000},null,{"$f":"J1872","v":259157000}]
[null,null,null,null,null,null,"07 - Приходи од Републике",null,{"$f":"I1873","v":6350000},{"$f":"J1873","v":6350000}]
[null,null,null,null,null,null,"Укупно за функцију: 911",{"$f":"H1872","v":259157000},{"$f":"I1877","v":6350000},{"$f":"J1874","v":265507000}]
[]
[5,"5.02",null,null,null,null,"БИБЛИОТЕКА ЉУБИША Р. ЂЕНИЋ"]
[null,null,"1201",null,null,null,"ПРОГРАМ 13: РАЗВОЈ КУЛТУРЕ"]
[null,null,"1201-0001",null,null,null,"ПА: Функционисање локалних установа културе"]
[null,null,null,820,null,null,"Услуге културе"]
[]
[]
[]
[]
[]
[]
[]
[]
[]
[]
[]
[]
[null,null,"1201",null,null,null,"ПРОГРАМ 13: РАЗВОЈ КУЛТУРЕ"]
[null,null,"1201-0001",null,null,null,"ПА: Функционисање локалних установа културе"]
[null,null,null,820,null,null,"Услуге културе"]
[null,null,null,null,187,"411","Плате, додаци и накнаде запослених-зараде",10432000,null,{"$f":"H1899","v":10432000}]
[null,null,null,null,188,412,"Социјални доприноси на терет послодавца",1685000,null,{"$f":"H1900","v":1685000}]
[null,null,null,null,189,413,"Накнаде у натури ",200000,null,{"$f":"H1901","v":200000}]
[null,null,null,null,190,414,"Социјална давања запосленима",1000000,null,1000000]
[null,null,null,null,191,"415","Накнаде трошкова за запослене-превоз",500000,null,500000]
[null,null,null,null,192,"416 ","Награде за запослене и остали посебни расходи - јубиларне награде",350000,null,350000]
[null,null,null,null,null,421,"Стални трошкови",3030000,null,3030000]
[null,null,null,null,null,null,null,null,null,0]
[null,null,null,null,null,null,null,null,null,0]
[null,null,null,null,null,null,null,null,null,0]
[null,null,null,null,null,null,null,null,null,0]
[null,null,null,null,null,null,"01 - Приходи из буџета",null,null,0]
[null,null,null,null,null,null,"Свега за програмску активност 0901-0006",null,null,0]
[null,null,null,null,null,null,"Извор финансирања за  главу 4.19",null,null,0]
[null,null,null,null,null,null,"01 - Приходи из буџета",null,null,0]
[null,null,null,null,null,null,"Укупно за  главу 4.19",null,null,0]
[null,null,null,null,null,"01",null,8500000,null,8500000]
[null,null,null,null,null,null,null,8500000,null,8500000]
[null,null,null,null,null,null,null,null,null,0]
[null,null,null,null,null,null,null,null,null,0]
[null,null,null,null,null,null,null,null,null,0]
[null,null,null,null,null,null,null,null,null,0]
[null,null,null,null,null,null,null,null,null,0]
[null,null,null,null,null,null,null,null,null,0]
[null,null,null,null,null,null,null,null,null,0]
[null,null,null,null,null,null,null,null,null,0]
[null,null,null,null,null,null,"Приходи из буџета",null,null,0]
[null,null,null,null,null,null,"Свега за програмску активност 2003-0001",null,null,0]
[null,null,null,null,null,null,null,null,null,0]
[null,null,null,null,null,null,null,null,null,0]
[null,null,null,null,null,null,null,null,null,0]
[null,null,null,null,null,null,null,null,null,0]
[null,null,null,null,null,null,null,null,null,0]
[null,null,null,null,null,null,null,null,null,0]
[null,null,null,null,null,null,null,null,null,0]
[null,null,null,null,null,null,null,null,null,0]
[null,null,null,null,null,null,null,null,null,0]
[null,null,null,null,null,null,null,null,null,0]
[null,null,null,null,null,null,null,null,null,0]
[null,null,null,null,null,null,null,null,null,0]
[null,null,null,null,null,415,"Накнаде трошкова за запослене - превоз",500000,null,500000]
[null,null,null,null,null,416,"Награде за запослене и остали посебни расходи-јубиларне награде",350000,null,350000]
[null,null,null,null,193,421,"Стални трошкови",3150000,null,3150000]
[null,null,null,null,194,422,"Трошкови службених путовања",400000,null,{"$f":"H1942","v":400000}]
[null,null,null,null,null,423,"Услуге по уговору",6800000,null,6800000]
[null,null,null,null,null,null,null,null,null,0]
[null,null,null,null,null,null,null,null,null,0]
[null,null,null,null,null,null,null,null,null,0]
[null,null,null,null,null,null,null,null,null,0]
[null,null,null,null,null,null,null,null,null,0]
[null,null,null,null,null,null,null,null,null,0]
[null,null,null,null,null,null,null,null,null,0]
[null,null,null,null,null,null,null,null,null,0]
[null,null,null,null,null,null,null,null,null,0]
[null,null,null,null,null,null,null,null,null,0]
[null,null,null,null,null,null,null,null,null,0]
[null,null,null,null,null,null,null,null,null,0]
[null,null,null,null,null,421,"Стални трошкови",3150000,null,3150000]
[null,null,null,null,null,422,"Трошкови службених путовања",400000,null,400000]
[null,null,null,null,195,423,"Услуге по уговору",10650000,null,10650000]
[null,null,null,null,196,424,"Специјализоване услуге",300000,null,300000]
[null,null,null,null,197,425,"Текеуће поправке и одржавање",1200000,null,1200000]
[null,null,null,null,null,426,"Материјал",800000,null,800000]
[null,null,null,null,null,null,null,null,null,0]
[null,null,null,null,null,null,null,null,null,0]
[null,null,null,null,null,null,null,null,null,{"$f":"H1964","v":0}]
[null,null,null,null,null,null,null,null,null,0]
[null,null,null,null,null,null,null,null,null,0]
[null,null,null,null,null,null,null,null,null,0]
[null,null,null,null,null,null,null,null,null,0]
[null,null,null,null,null,null,null,null,null,0]
[null,null,null,null,null,null,null,null,null,0]
[null,null,null,null,null,null,null,null,null,0]
[null,null,null,null,null,null,null,null,null,0]
[null,null,null,null,null,null,null,null,null,0]
[null,null,null,null,null,null,null,null,null,0]
[null,null,null,null,null,null,null,null,null,0]
[null,null,null,null,null,null,null,null,null,0]
[null,null,null,null,null,null,null,null,null,0]
[null,null,null,null,null,424,"Специјализоване услуге",300000,null,300000]
[null,null,null,null,null,425,"Текуће поправке и одржавање",750000,null,750000]
[null,null,null,null,198,426,"Материјал",1050000,null,1050000]
[null,null,null,null,null,482,"Порези, обавезне таксе, пенали и казне",20000,null,20000]
[null,null,null,null,null,null,null,null,null,0]
[null,null,null,null,null,null,null,null,null,0]
[null,null,null,null,null,null,null,null,null,0]
[null,null,null,null,null,null,null,null,null,0]
[null,null,null,null,null,null,null,null,null,0]
[null,null,null,null,null,null,null,null,null,0]
[null,null,null,null,null,null,null,null,null,0]
[null,null,null,null,null,null,null,null,null,0]
[null,null,null,null,null,null,null,null,null,0]
[null,null,null,null,null,null,null,null,null,0]
[null,null,null,null,null,null,null,null,null,0]
[null,null,null,null,null,null,null,null,null,0]
[null,null,null,null,null,null,null,null,null,0]
[null,null,null,null,null,null,null,null,null,0]
[null,null,null,null,null,null,null,null,null,0]
[null,null,null,null,null,null,null,null,null,0]
[null,null,null,null,null,null,null,null,null,0]
[null,null,null,null,null,null,null,null,null,0]
[null,null,null,null,null,null,null,null,null,0]
[null,null,null,null,null,null,null,null,null,0]
[null,null,null,null,null,null,null,null,null,0]
[null,null,null,null,null,null,null,null,null,0]
[null,null,null,null,null,null,null,null,null,0]
[null,null,null,null,null,null,null,null,null,0]
[null,null,null,null,null,null,null,null,null,0]
[null,null,null,null,null,null,null,null,null,0]
[null,null,null,null,null,null,null,null,null,0]
[null,null,null,null,null,null,null,null,null,0]
[null,null,null,null,null,null,null,null,null,0]
[null,null,null,null,null,null,null,null,null,0]
[null,null,null,null,null,null,null,null,null,0]
[null,null,null,null,null,null,null,null,null,0]
[null,null,null,null,null,null,null,null,null,0]
[null,null,null,null,null,null,null,null,null,0]
[null,null,null,null,null,null,null,null,null,0]
[null,null,null,null,null,null,null,null,null,0]
[null,null,null,null,null,null,null,null,null,0]
[null,null,null,null,null,425,"Текуће поправке и одржавање",1200000,null,1200000]
[null,null,null,null,null,426,"Материјал",800000,null,800000]
[null,null,null,null,199,482,"Порези, обавезне таксе, пенали и казне",30000,null,30000]
[null,null,null,null,null,512,"Машине и опрема",500000,null,500000]
[null,null,null,null,null,null,null,null,null,0]
[null,null,null,null,null,null,null,null,null,0]
[null,null,null,null,null,null,null,null,null,0]
[null,null,null,null,null,null,null,null,null,0]
[null,null,null,null,null,null,null,null,null,0]
[null,null,null,null,null,null,null,null,null,{"$f":"H2028","v":0}]
[null,null,null,null,null,null,null,null,null,0]
[null,null,null,null,null,null,null,null,null,0]
[null,null,null,null,null,null,null,null,null,0]
[null,null,null,null,null,null,null,null,null,0]
[null,null,null,null,null,null,null,null,null,0]
[null,null,null,null,null,null,null,null,null,0]
[null,null,null,null,null,426,"Материјал",1050000,null,1050000]
[null,null,null,null,null,482,"Порези, обавезне таксе, пенали и казне",30000,null,30000]
[null,null,null,null,200,512,"Машине и опрема",800000,null,800000]
[null,null,null,null,201,515,"Нематеријална имовина-књиге",800000,null,800000]
[]
[]
[]
[]
[]
[]
[]
[]
[]
[]
[]
[]
[]
[null,null,null,null,204,512,"Машине и опрема",800000,null,{"$f":"H2052","v":800000}]
[null,null,null,null,205,515,"Нематеријална имовина - књиге",800000,null,{"$f":"H2053","v":800000}]
[null,null,null,null,null,null,"Извор финансирања за ПА: 1201-0001"]
[null,null,null,null,null,null,"01 - Приходи из буџета",{"$f":"H1899+H1900+H1901+H1902+H1903+H1904+H1941+H1942+H1958+H1959+H1960+H1980+H2021+H2037+H2038","v":32547000},null,{"$f":"J1899+J1900+J1901+J1902+J1939+J1940+J1956+J1957+J1958+J1978+J2019+J2035+J2036+J2052+J2053","v":32547000},null,null," "]
[null,null,null,null,null,null,"Свега за ПА: 1201-0001",{"$f":"H1899+H1900+H1901+H1902+H1939+H1940+H1956+H1957+H1958+H1978+H2019+H2035+H2036+H2052+H2053","v":32547000},null,{"$f":"J2055","v":32547000}]
[null,null,null,null,null,null,"Извор финансирања за функцију: 820"]
[null,null,null,null,null,null,"01 - Приходи из буџета",{"$f":"H2055","v":32547000},null,{"$f":"J2055","v":32547000}]
[null,null,null,null,null,null,"Укупно за функцију: 820",{"$f":"H2056","v":32547000},null,{"$f":"J2056","v":32547000}]
[]
[5,"5.03",null,null,null,null,"ТУРИСТИЧКА ОРГАНИЗАЦИЈА ЗЛАТИБОР"]
[null,null,"1502",null,null,null,"ПРОГРАМ 4: РАЗВОЈ ТУРИЗМА"]
[null,null,"1502-0001",null,null,null,"ПА: Управљање развојем туризма"]
[null,null,null,473,null,null,"Туризам"]
[]
[]
[]
[]
[]
[]
[]
[]
[]
[]
[]
[]
[null,null,"1502",null,null,null,"ПРОГРАМ 4: РАЗВОЈ ТУРИЗМА"]
[null,null,"1502-0001",null,null,null,"ПА: Управљање развојем туризма"]
[null,null,null,473,null,null,"Туризам"]
[null,null,null,null,202,"411","Плате, додаци и накнаде запослених-зараде",30440000,null,{"$f":"H2080+I2080","v":30440000}]
[null,null,null,null,203,412,"Социјални доприноси на терет послодавца",4919000,null,{"$f":"H2081+I2081","v":4919000}]
[null,null,null,null,204,413,"накнаде у натури",300000,null,{"$f":"H2082+I2082","v":300000}]
[null,null,null,null,205,414,"Социјална давања запосленима",1950000,null,1950000]
[null,null,null,null,206,"415","Накнаде трошкова за запослене-превоз",1000000,null,1000000]
[null,null,null,null,207,416,"Награде запосленима и остали посебни расходи-јубиларне награде",200000,null,200000]
[null,null,null,null,null,421,"Стални трошкови",11000000,null,11000000]
[null,null,null,null,null,null,null,null,null,0]
[null,null,null,null,null,null,null,null,null,0]
[null,null,null,null,null,null,null,null,null,0]
[null,null,null,null,null,null,null,null,null,0]
[null,null,null,null,null,null,"01 - Приходи из буџета",null,null,0]
[null,null,null,null,null,null,"Свега за програмску активност 0901-0006",null,null,0]
[null,null,null,null,null,null,"Извор финансирања за  главу 4.19",null,null,0]
[null,null,null,null,null,null,"01 - Приходи из буџета",null,null,0]
[null,null,null,null,null,null,"Укупно за  главу 4.19",null,null,0]
[null,null,null,null,null,"01",null,8500000,null,8500000]
[null,null,null,null,null,null,null,8500000,null,8500000]
[null,null,null,null,null,null,null,null,null,0]
[null,null,null,null,null,null,null,null,null,0]
[null,null,null,null,null,null,null,null,null,0]
[null,null,null,null,null,null,null,null,null,0]
[null,null,null,null,null,null,null,null,null,0]
[null,null,null,null,null,null,null,null,null,0]
[null,null,null,null,null,null,null,null,null,0]
[null,null,null,null,null,null,null,null,null,0]
[null,null,null,null,null,null,"Приходи из буџета",null,null,0]
[null,null,null,null,null,null,"Свега за програмску активност 2003-0001",null,null,0]
[null,null,null,null,null,null,null,null,null,0]
[null,null,null,null,null,null,null,null,null,0]
[null,null,null,null,null,null,null,null,null,0]
[null,null,null,null,null,null,null,null,null,0]
[null,null,null,null,null,null,null,null,null,0]
[null,null,null,null,null,null,null,null,null,0]
[null,null,null,null,null,null,null,null,null,0]
[null,null,null,null,null,null,null,null,null,0]
[null,null,null,null,null,null,null,null,null,0]
[null,null,null,null,null,null,null,null,null,0]
[null,null,null,null,null,null,null,null,null,0]
[null,null,null,null,null,null,null,null,null,0]
[null,null,null,null,null,415,"Накнаде трошкова за запослене - превоз",1000000,null,1000000]
[null,null,null,null,null,416,"Награде за запослене и остали посебни расходи-јубиларне награде",200000,null,200000]
[null,null,null,null,208,421,"Стални трошкови",10800000,null,10800000]
[null,null,null,null,209,422,"Трошкови службених путовања",500000,null,500000]
[null,null,null,null,null,423,"Услуге по уговору",17400000,null,17400000]
[null,null,null,null,null,null,null,null,null,0]
[null,null,null,null,null,null,null,null,null,0]
[null,null,null,null,null,null,null,null,null,0]
[null,null,null,null,null,null,null,null,null,0]
[null,null,null,null,null,null,null,null,null,0]
[null,null,null,null,null,null,null,null,null,0]
[null,null,null,null,null,null,null,null,null,0]
[null,null,null,null,null,null,null,null,null,0]
[null,null,null,null,null,null,null,null,null,0]
[null,null,null,null,null,null,null,null,null,0]
[null,null,null,null,null,null,null,null,null,0]
[null,null,null,null,null,null,null,null,null,0]
[null,null,null,null,null,421,"Стални трошкови",10800000,null,10800000]
[null,null,null,null,null,422,"Трошкови службених путовања",500000,null,500000]
[null,null,null,null,210,423,"Услуге по уговору",38246000,null,38246000]
[null,null,null,null,211,424,"Специјализоване услуге",630000,null,630000]
[null,null,null,null,212,425,"Текеуће поправке и одржавање",1700000,null,{"$f":"H2141+I2141","v":1700000}]
[null,null,null,null,null,426,"Материјал",3000000,null,3000000]
[null,null,null,null,null,null,null,null,null,0]
[null,null,null,null,null,null,null,null,null,{"$f":"H2144+I2144","v":0}]
[null,null,null,null,null,null,null,null,null,0]
[null,null,null,null,null,null,null,null,null,0]
[null,null,null,null,null,null,null,null,null,0]
[null,null,null,null,null,null,null,null,null,0]
[null,null,null,null,null,null,null,null,null,0]
[null,null,null,null,null,null,null,null,null,0]
[null,null,null,null,null,null,null,null,null,0]
[null,null,null,null,null,null,null,null,null,0]
[null,null,null,null,null,null,null,null,null,0]
[null,null,null,null,null,null,null,null,null,0]
[null,null,null,null,null,null,null,null,null,0]
[null,null,null,null,null,null,null,null,null,0]
[null,null,null,null,null,null,null,null,null,0]
[null,null,null,null,null,null,null,null,null,0]
[null,null,null,null,null,424,"Специјализоване услуге",630000,null,630000]
[null,null,null,null,null,425,"Текуће поправке и одржавање",1500000,null,1500000]
[null,null,null,null,213,426,"Материјал",4215000,null,4215000]
[null,null,null,null,null,482,"Порези, обавезне таксе, пенали и казне",6500000,null,6500000]
[null,null,null,null,null,null,null,null,null,0]
[null,null,null,null,null,null,null,null,null,0]
[null,null,null,null,null,null,null,null,null,0]
[null,null,null,null,null,null,null,null,null,0]
[null,null,null,null,null,null,null,null,null,0]
[null,null,null,null,null,null,null,null,null,0]
[null,null,null,null,null,null,null,null,null,0]
[null,null,null,null,null,null,null,null,null,0]
[null,null,null,null,null,null,null,null,null,0]
[null,null,null,null,null,null,null,null,null,0]
[null,null,null,null,null,null,null,null,null,0]
[null,null,null,null,null,null,null,null,null,0]
[null,null,null,null,null,null,null,null,null,0]
[null,null,null,null,null,null,null,null,null,0]
[null,null,null,null,null,null,null,null,null,0]
[null,null,null,null,null,null,null,null,null,0]
[null,null,null,null,null,null,null,null,null,0]
[null,null,null,null,null,null,null,null,null,0]
[null,null,null,null,null,null,null,null,null,0]
[null,null,null,null,null,null,null,null,null,0]
[null,null,null,null,null,null,null,null,null,0]
[null,null,null,null,null,null,null,null,null,0]
[null,null,null,null,null,null,null,null,null,0]
[null,null,null,null,null,null,null,null,null,0]
[null,null,null,null,null,null,null,null,null,0]
[null,null,null,null,null,null,null,null,null,0]
[null,null,null,null,null,null,null,null,null,0]
[null,null,null,null,null,null,null,null,null,0]
[null,null,null,null,null,null,null,null,null,0]
[null,null,null,null,null,null,null,null,null,0]
[null,null,null,null,null,null,null,null,null,0]
[null,null,null,null,null,null,null,null,null,0]
[null,null,null,null,null,null,null,null,null,0]
[null,null,null,null,null,null,null,null,null,0]
[null,null,null,null,null,null,null,null,null,0]
[null,null,null,null,null,null,null,null,null,0]
[null,null,null,null,null,null,null,null,null,0]
[null,null,null,null,null,425,"Текуће поправке и одржавање",1700000,null,1700000]
[null,null,null,null,null,426,"Материјал",4215000,null,4215000]
[null,null,null,null,214,482,"Порези, обавезне таксе, пенали и казне",5900000,null,5900000]
[null,null,null,null,215,483,"Новчане казне и пенали по решењу судова",100000,null,100000]
[null,null,null,null,216,511,"Зграде и грађевински објекти",6500000,null,{"$f":"H2204","v":6500000}]
[null,null,null,null,null,512,"Машине и опрема",200000,null,{"$f":"H2205+I2205","v":200000}]
[]
[]
[]
[]
[]
[]
[]
[]
[]
[]
[]
[]
[null,null,null,null,null,483,"Новчане казне и пенали по решењу судова",100000,null,{"$f":"H2218","v":100000}]
[null,null,null,null,null,511,"Зграде и грађевински објекти",2700000,null,{"$f":"H2219","v":2700000}]
[null,null,null,null,217,512,"Машине и опрема",8000000,null,{"$f":"H2220","v":8000000}]
[null,null,null,null,null,515,"Нематеријална имовина",2000000,null,{"$f":"H2221+I2221","v":2000000}]
[]
[]
[]
[]
[]
[]
[]
[]
[]
[]
[]
[]
[null,null,null,null,null,511,"Зграде и грађевински објекти",6500000,null,{"$f":"H2234","v":6500000}]
[null,null,null,null,null,512,"Машине и опрема",8000000,null,{"$f":"H2235+I2235","v":8000000}]
[null,null,null,null,218,515,"Нематеријална имовина",500000,null,{"$f":"H2236+I2236","v":500000}]
[null,null,null,null,219,523,"Залихе робе за даљу продају",500000,null,{"$f":"H2237+I2237","v":500000}]
[null,null,null,null,null,null,"Извор финансирања за ПА: 1502-0001"]
[null,null,null,null,null,null,"01 - Приходи из буџета",{"$f":"H2080+H2081+H2082+H2083+H2120+H2121+H2137+H2138+H2139+H2159+H2200+H2201+H2202+H2218+H2234+H2235+H2236+H2237","v":116400000},null,{"$f":"H2239","v":116400000}]
[null,null,null,null,null,null,"07 - Приходи од Републике"]
[null,null,null,null,null,null,"Укупно за ПА: 1502-0001",{"$f":"H2239","v":116400000},null,{"$f":"J2080+J2081+J2082+J2083+J2120+J2121+J2137+J2138+J2139+J2159+J2200+J2201+J2202+J2218+J2234+J2235+J2236+J2237","v":116400000}]
[]
[null,null,"1502-0002",null,null,null,"ПА: Промоција туристичке понуде"]
[null,null,null,473,null,null,"Туризам"]
[]
[]
[]
[]
[]
[]
[]
[]
[]
[]
[]
[]
[]
[]
[]
[]
[]
[]
[]
[]
[]
[]
[]
[]
[]
[]
[]
[]
[null,null,"1502-0002",null,null,null,"ПА: Промоција туристичке понуде"]
[]
[null,null,null,null,216,"421","Стални трошкови",2500000,null,{"$f":"H2275+I2275","v":2500000}]
[null,null,null,null,null,null,null,null,null,{"$f":"H2276+I2276","v":0}]
[null,null,null,null,null,null,null,null,null,0]
[null,null,null,null,null,null,null,null,null,0]
[null,null,null,null,null,null,null,null,null,0]
[null,null,null,null,null,null,null,null,null,0]
[null,null,null,null,null,null,null,null,null,0]
[null,null,null,null,null,null,null,null,null,0]
[null,null,null,null,null,null,null,null,null,0]
[null,null,null,null,null,null,null,null,null,0]
[null,null,null,null,null,null,null,null,null,0]
[null,null,null,null,null,null,null,null,null,0]
[null,null,null,null,null,null,null,null,null,0]
[null,null,null,null,null,null,null,null,null,0]
[null,null,null,null,null,null,null,null,null,0]
[null,null,null,null,null,null,null,null,null,0]
[null,null,null,null,null,null,null,null,null,0]
[null,null,null,null,null,null,null,null,null,0]
[null,null,null,null,null,null,null,null,null,0]
[null,null,null,null,null,null,null,null,null,0]
[null,null,null,null,null,null,null,null,null,0]
[null,null,null,null,null,null,null,null,null,0]
[null,null,null,null,null,null,null,null,null,0]
[null,null,null,null,null,null,null,null,null,0]
[null,null,null,null,null,null,null,null,null,0]
[null,null,null,null,null,null,null,null,null,0]
[null,null,null,null,null,null,null,null,null,0]
[null,null,"1502-0002",null,null,null,"ПА: Промоција туристичке понуде"]
[null,null,null,473,null,null,"Туризам"]
[null,null,null,null,220,421,"Стални трошкови",500000,null,500000]
[null,null,null,null,221,422,"Трошкови службених путовања",800000,null,800000]
[null,null,null,null,null,423,"Услуге по уговору",5000000,null,5000000]
[null,null,null,null,null,null,null,null,null,0]
[null,null,null,null,null,null,null,null,null,0]
[null,null,null,null,null,null,null,null,null,0]
[null,null,null,null,null,null,null,null,null,0]
[null,null,null,null,null,null,null,null,null,0]
[null,null,null,null,null,null,null,null,null,0]
[null,null,null,null,null,null,null,null,null,0]
[null,null,null,null,null,null,null,null,null,0]
[null,null,null,null,null,null,null,null,null,0]
[null,null,null,null,null,null,null,null,null,0]
[null,null,null,null,null,null,null,null,null,0]
[null,null,null,null,null,null,null,null,null,0]
[null,null,null,null,null,421,"Стални трошкови",500000,null,500000]
[null,null,null,null,null,422,"Трошкови службених путовања",800000,null,800000]
[null,null,null,null,222,423,"Услуге по уговору",33290000,null,33290000]
[null,null,null,null,223,424,"Специјализоване услуге",400000,null,{"$f":"H2322","v":400000}]
[null,null,null,null,224,"426","Материјал",610000,null,610000]
[null,null,null,null,null,null,"Извор финансирања за ПА: 1502-0002"]
[null,null,null,null,null,null,"01 - Приходи из буџета",{"$f":"H2319+H2320+H2321+H2322+H2323","v":35600000},null,{"$f":"H2325","v":35600000}]
[null,null,null,null,null,null,"07 - Приходи од Републике"]
[null,null,null,null,null,null,"Укупно за ПА: 1502-0002",{"$f":"H2325","v":35600000},null,{"$f":"J2319+J2320+J2321+J2322+J2323","v":35600000}]
[]
[null,null,null,null,null,null,"Извор финансирања за функцију: 473"]
[null,null,null,473,null,null,"Туризам"]
[]
[]
[]
[]
[]
[]
[]
[]
[]
[]
[]
[]
[]
[]
[]
[]
[]
[]
[]
[]
[]
[]
[]
[]
[]
[]
[]
[null,null,"1502-001",null,null,null,"Пројекат: Штампа пропагандног материјала"]
[]
[null,null,null,null,220,423,"Услуге по уговору",1000000,null,{"$f":"H2360+I2360","v":1000000}]
[null,null,null,null,null,null,null,null,null,0]
[null,null,null,null,null,null,null,null,null,0]
[null,null,null,null,null,null,null,null,null,0]
[null,null,null,null,null,null,null,null,null,0]
[null,null,null,null,null,null,null,null,null,0]
[null,null,null,null,null,null,null,null,null,0]
[null,null,null,null,null,null,null,null,null,0]
[null,null,null,null,null,null,null,null,null,0]
[null,null,null,null,null,null,null,null,null,0]
[null,null,null,null,null,null,null,null,null,0]
[null,null,null,null,null,null,null,null,null,0]
[null,null,null,null,null,null,null,null,null,0]
[null,null,null,null,null,null,"Извор финансирања за функцију: 473"]
[null,null,null,null,null,null,"01 - Приходи из буџета",{"$f":"H2241+H2327","v":152000000},null,{"$f":"H2374","v":152000000}]
[null,null,null,null,null,null,"01 - Приходи из буџета",{"$f":"H2241+H2327","v":152000000},null,{"$f":"J2241+J2327","v":152000000}]
[null,null,null,null,null,null,"07 - Приходи од Републике"]
[null,null,null,null,null,null,"Укупно за функцију: 473",{"$f":"H2374","v":152000000},null,{"$f":"J2241+J2327","v":152000000}]
[]
[5,"5.04",null,null,null,null,"МЕСНЕ ЗАЈЕДНИЦЕ"]
[null,null,"0602",null,null,null,"ПРОГРАМ 15: ЛОКАЛНА САМОУПРАВА"]
[null,null,"0602-0002",null,null,null,"ПА: Функционисање месних заједница"]
[null,null,null,160,null,null,"Опште јавне услуге некласификоване на другом месту"]
[]
[]
[]
[]
[]
[]
[]
[]
[]
[]
[]
[]
[null,null,"0602",null,null,null,"ПРОГРАМ 15: ЛОКАЛНА САМОУПРАВА"]
[null,null,"0602-0002",null,null,null,"ПА: Функционисање месних заједница"]
[null,null,null,null,225,421,"Стални трошкови",5030000,null,5030000]
[null,null,null,null,224,421,"Стални трошкови",4245000,null,{"$f":"H2398+I2398","v":4245000}]
[null,null,null,null,null,null,null,null,null,{"$f":"H2399+I2399","v":0}]
[null,null,null,null,null,null,null,null,null,0]
[null,null,null,null,null,null,null,null,null,0]
[null,null,null,null,null,null,null,null,null,0]
[null,null,null,null,null,null,"01 - Приходи из буџета",null,null,0]
[null,null,null,null,null,null,"Свега за програмску активност 0901-0006",null,null,0]
[null,null,null,null,null,null,"Извор финансирања за  главу 4.19",null,null,0]
[null,null,null,null,null,null,"01 - Приходи из буџета",null,null,0]
[null,null,null,null,null,null,"Укупно за  главу 4.19",null,null,0]
[null,null,null,null,null,"01",null,8500000,null,8500000]
[null,null,null,null,null,null,null,8500000,null,8500000]
[null,null,null,null,null,null,null,null,null,0]
[null,null,null,null,null,null,null,null,null,0]
[null,null,null,null,null,null,null,null,null,0]
[null,null,null,null,null,null,null,null,null,0]
[null,null,null,null,null,null,null,null,null,0]
[null,null,null,null,null,null,null,null,null,0]
[null,null,null,null,null,null,null,null,null,0]
[null,null,null,null,null,null,null,null,null,0]
[null,null,null,null,null,null,"Приходи из буџета",null,null,0]
[null,null,null,null,null,null,"Свега за програмску активност 2003-0001",null,null,0]
[null,null,null,null,null,null,null,null,null,0]
[null,null,null,null,null,null,null,null,null,0]
[null,null,null,null,null,null,null,null,null,0]
[null,null,null,null,null,null,null,null,null,0]
[null,null,null,null,null,null,null,null,null,0]
[null,null,null,null,null,null,null,null,null,0]
[null,null,null,null,null,null,null,null,null,0]
[null,null,null,null,null,null,null,null,null,0]
[null,null,null,null,null,null,null,null,null,0]
[null,null,null,null,null,null,null,null,null,0]
[null,null,null,null,null,null,null,null,null,0]
[null,null,null,null,null,null,null,null,null,0]
[null,null,"0602-0002",null,null,null,"ПА: Функционисање месних заједница"]
[null,null,null,160,null,null,"Опште јавне услуге некласификоване на другом месту"]
[null,null,null,null,225,423,"Услуге по уговору",1470000,null,1470000]
[null,null,null,null,null,null,null,null,null,0]
[null,null,null,null,null,null,null,null,null,0]
[null,null,null,null,null,null,null,null,null,0]
[null,null,null,null,null,null,null,null,null,0]
[null,null,null,null,null,null,null,null,null,0]
[null,null,null,null,null,null,null,null,null,0]
[null,null,null,null,null,null,null,null,null,0]
[null,null,null,null,null,null,null,null,null,0]
[null,null,null,null,null,null,null,null,null,0]
[null,null,null,null,null,null,null,null,null,0]
[null,null,null,null,null,null,null,null,null,0]
[null,null,null,null,null,null,null,null,null,0]
[null,null,null,160,null,null,"Опште јавне услуге некласификоване на другом месту"]
[null,null,null,null,229,421,"Стални трошкови",4915000,null,4915000]
[null,null,null,null,226,423,"Услуге по уговору",3380000,null,3380000]
[null,null,null,null,227,424,"Специјализоване услуге",2950000,null,2950000]
[null,null,null,null,228,425,"Текеуће поправке и одржавање",9500000,null,9500000]
[null,null,null,null,null,426,"Материјал",1065000,null,1065000]
[null,null,null,null,null,null,null,null,null,0]
[null,null,null,null,null,null,null,null,null,0]
[null,null,null,null,null,null,null,null,null,0]
[null,null,null,null,null,null,null,null,null,0]
[null,null,null,null,null,null,null,null,null,0]
[null,null,null,null,null,null,null,null,null,0]
[null,null,null,null,null,null,null,null,null,0]
[null,null,null,null,null,null,null,null,null,0]
[null,null,null,null,null,null,null,null,null,0]
[null,null,null,null,null,null,null,null,null,{"$f":"H2462+I2462","v":0}]
[null,null,null,null,null,null,null,null,null,0]
[null,null,null,null,null,null,null,null,null,0]
[null,null,null,null,null,null,null,null,null,0]
[null,null,null,null,null,null,null,null,null,0]
[null,null,null,null,null,null,null,null,null,0]
[null,null,null,null,null,null,null,null,null,0]
[null,null,null,null,null,424,"Специјализоване услуге",1977000,null,1977000]
[null,null,null,null,null,425,"Текуће поправке и одржавање",3635000,null,3635000]
[null,null,null,null,229,426,"Материјал",1590000,null,1590000]
[null,null,null,null,null,482,"Порези, обавезне таксе, пенали и казне",165000,null,165000]
[null,null,null,null,null,null,null,null,null,0]
[null,null,null,null,null,null,null,null,null,0]
[null,null,null,null,null,null,null,null,null,0]
[null,null,null,null,null,null,null,null,null,0]
[null,null,null,null,null,null,null,null,null,0]
[null,null,null,null,null,null,null,null,null,0]
[null,null,null,null,null,null,null,null,null,0]
[null,null,null,null,null,null,null,null,null,0]
[null,null,null,null,null,null,null,null,null,0]
[null,null,null,null,null,null,null,null,null,0]
[null,null,null,null,null,null,null,null,null,0]
[null,null,null,null,null,null,null,null,null,0]
[null,null,null,null,null,null,null,null,null,0]
[null,null,null,null,null,null,null,null,null,0]
[null,null,null,null,null,null,null,null,null,0]
[null,null,null,null,null,null,null,null,null,0]
[null,null,null,null,null,null,null,null,null,0]
[null,null,null,null,null,null,null,null,null,0]
[null,null,null,null,null,null,null,null,null,0]
[null,null,null,null,null,null,null,null,null,0]
[null,null,null,null,null,null,null,null,null,0]
[null,null,null,null,null,null,null,null,null,0]
[null,null,null,null,null,null,null,null,null,0]
[null,null,null,null,null,null,null,null,null,0]
[null,null,null,null,null,null,null,null,null,0]
[null,null,null,null,null,null,null,null,null,0]
[null,null,null,null,null,null,null,null,null,0]
[null,null,null,null,null,null,null,null,null,0]
[null,null,null,null,null,null,null,null,null,0]
[null,null,null,null,null,null,null,null,null,0]
[null,null,null,null,null,null,null,null,null,0]
[null,null,null,null,null,null,null,null,null,0]
[null,null,null,null,null,null,null,null,null,0]
[null,null,null,null,null,null,null,null,null,0]
[null,null,null,null,null,null,null,null,null,0]
[null,null,null,null,null,null,null,null,null,0]
[null,null,null,null,null,null,null,null,null,0]
[null,null,null,null,null,null,null,null,null,0]
[null,null,null,null,null,null,null,null,null,0]
[null,null,null,null,null,null,null,null,null,0]
[]
[]
[]
[]
[]
[]
[]
[]
[]
[]
[]
[]
[]
[]
[]
[]
[]
[]
[]
[]
[]
[]
[]
[]
[]
[]
[]
[null,null,null,null,null,425,"Текуће поправке и одржавање",27395000,null,{"$f":"H2540","v":27395000}]
[null,null,null,null,null,426,"Материјал",1443000,null,{"$f":"H2541","v":1443000}]
[null,null,null,null,230,482,"Порези, обавезне таксе, пенали и казне",350000,null,{"$f":"H2542","v":350000}]
[null,null,null,null,231,512,"Машине и опрема",200000,null,{"$f":"H2543","v":200000}]
[null,null,null,null,null,null,"Извор финансирања за ПА: 0602-0002"]
[null,null,null,null,null,null,"01 - Приходи из буџета",{"$f":"H2397+H2449+H2450+H2451+H2471+H2542+H2543","v":23000000},null,{"$f":"J2397+J2449+J2450+J2451+J2471+J2542+J2543","v":23000000}]
[null,null,null,null,null,null,"Укупно за ПА: 0602-0002",{"$f":"H2545","v":23000000},null,{"$f":"J2545","v":23000000}]
[null,null,null,null,null,null,"Извор финансирања за функцију: 160"]
[null,null,null,null,null,null,"01 - Приходи из буџета",{"$f":"H2545","v":23000000},null,{"$f":"H2548","v":23000000}]
[null,null,null,null,null,null,"Свега за функцију: 160",{"$f":"H2546","v":23000000},null,{"$f":"J2397+J2449+J2450+J2451+J2471+J2542+J2543","v":23000000}]
[]
[]
[]
[]
[]
[]
[]
[]
[null,null,null,null,null,null,"01 - Приходи из буџета"]
[null,null,null,null,null,null,"Свега за ПА: 0602-0002:"]
[]
[]
[]
[]
[]
[]
[]
[]
[]
[]
[null,null,null,null,null,null,"01 - Приходи из буџета",{"$f":"H2546","v":23000000},null,{"$f":"J2546","v":23000000}]
[null,null,null,null,null,null,"Укупно за функцију: 160",{"$f":"H2545","v":23000000},null,{"$f":"J2545","v":23000000}]
[]
[5,"5.05",null,null,null,null,"УСТАНОВА \"КУЛТУРНИ ЦЕНТАР ЧАЈЕТИНА\""]
[null,null,"1201",null,null,null,"ПРОГРАМ 13: РАЗВОЈ КУЛТУРЕ И ИНФОРМИСАЊА"]
[null,null,"1201-0001",null,null,null,"ПА: Фукциоисање локалних установа културе"]
[null,null,null,820,null,null,"Услуге културе"]
[null,null,null,null,232,"411","Плате, додаци и накнаде запослених-зараде",31200000,null,{"$f":"H2577+I2577","v":31200000}]
[null,null,null,null,233,412,"Социјални доприноси на терет послодавца",5040000,null,{"$f":"H2578+I2578","v":5040000}]
[null,null,null,null,234,413,"Накнаде у натури",240000,null,{"$f":"H2579","v":240000}]
[null,null,null,null,235,414,"Социјална давања запосленима",3350000,null,{"$f":"H2580","v":3350000}]
[null,null,null,null,236,"415","Накнаде трошкова за запослене-превоз",1500000,null,{"$f":"H2581+I2581","v":1500000}]
[null,null,null,null,237,416,"Награде запосленима и остали посебни расходи-јубиларне награде",500000,null,{"$f":"H2582+I2582","v":500000}]
[null,null,null,null,null,421,"Стални трошкови",5465000,null,5465000]
[null,null,null,null,null,null,null,null,null,0]
[null,null,null,null,null,null,null,null,null,0]
[null,null,null,null,null,null,null,null,null,0]
[null,null,null,null,null,null,null,null,null,0]
[null,null,null,null,null,null,"01 - Приходи из буџета",null,null,0]
[null,null,null,null,null,null,"Свега за програмску активност 0901-0006",null,null,0]
[null,null,null,null,null,null,"Извор финансирања за  главу 4.19",null,null,0]
[null,null,null,null,null,null,"01 - Приходи из буџета",null,null,0]
[null,null,null,null,null,null,"Укупно за  главу 4.19",null,null,0]
[null,null,null,null,null,"01",null,8500000,null,8500000]
[null,null,null,null,null,null,null,8500000,null,8500000]
[null,null,null,null,null,null,null,null,null,0]
[null,null,null,null,null,null,null,null,null,0]
[null,null,null,null,null,null,null,null,null,0]
[null,null,null,null,null,null,null,null,null,0]
[null,null,null,null,null,null,null,null,null,0]
[null,null,null,null,null,null,null,null,null,0]
[null,null,null,null,null,null,null,null,null,0]
[null,null,null,null,null,null,null,null,null,0]
[null,null,null,null,null,null,"Приходи из буџета",null,null,0]
[null,null,null,null,null,null,"Свега за програмску активност 2003-0001",null,null,0]
[null,null,null,null,null,null,null,null,null,0]
[null,null,null,null,null,null,null,null,null,0]
[null,null,null,null,null,null,null,null,null,0]
[null,null,null,null,null,null,null,null,null,0]
[null,null,null,null,null,null,null,null,null,0]
[null,null,null,null,null,null,null,null,null,0]
[null,null,null,null,null,null,null,null,null,0]
[null,null,null,null,null,null,null,null,null,0]
[null,null,null,null,null,null,null,null,null,0]
[null,null,null,null,null,null,null,null,null,0]
[null,null,null,null,null,null,null,null,null,0]
[null,null,null,null,null,null,null,null,null,0]
[null,null,null,null,null,415,"Накнада трошкова за запослене - превоз",1500000,null,1500000]
[null,null,null,null,null,416,"Награде за запослене и остали посебни расходи-јубиларне награде",500000,null,500000]
[null,null,null,null,238,421,"Стални трошкови",8355000,null,8355000]
[null,null,null,null,239,422,"Трошкови службених путовања",350000,null,{"$f":"H2620+I2620","v":350000}]
[null,null,null,null,null,423,"Услуге по уговору",6700000,null,{"$f":"H2621","v":6700000}]
[null,null,null,null,null,null,null,null,null,0]
[null,null,null,null,null,null,null,null,null,0]
[null,null,null,null,null,null,null,null,null,0]
[null,null,null,null,null,null,null,null,null,0]
[null,null,null,null,null,null,null,null,null,0]
[null,null,null,null,null,null,null,null,null,0]
[null,null,null,null,null,null,null,null,null,0]
[null,null,null,null,null,null,null,null,null,0]
[null,null,null,null,null,null,null,null,null,0]
[null,null,null,null,null,null,null,null,null,0]
[null,null,null,null,null,null,null,null,null,0]
[null,null,null,null,null,null,null,null,null,0]
[null,null,null,null,null,421,"Стални трошкови",8355000,null,8355000]
[null,null,null,null,null,422,"Трошкови службених путовања",350000,null,350000]
[null,null,null,null,240,423,"Услуге по уговору",14400000,null,14400000]
[null,null,null,null,241,424,"Специјализоване услуге",910000,null,{"$f":"H2637+I2637","v":910000}]
[null,null,null,null,242,425,"Текеуће поправке и одржавање",4700000,null,4700000]
[null,null,null,null,243,426,"Материјал",3600000,null,{"$f":"H2639+I2639","v":3600000}]
[null,null,null,null,null,444,"Пратећи трошкови задуживања",1000,null,1000]
[null,null,null,null,null,null,null,null,null,0]
[null,null,null,null,null,null,null,null,null,{"$f":"H2642+I2642","v":0}]
[null,null,null,null,null,null,null,null,null,0]
[null,null,null,null,null,null,null,null,null,0]
[null,null,null,null,null,null,null,null,null,0]
[null,null,null,null,null,null,null,null,null,0]
[null,null,null,null,null,null,null,null,null,0]
[null,null,null,null,null,null,null,null,null,0]
[null,null,null,null,null,null,null,null,null,0]
[null,null,null,null,null,null,null,null,null,0]
[null,null,null,null,null,null,null,null,null,0]
[null,null,null,null,null,null,null,null,null,0]
[null,null,null,null,null,null,null,null,null,0]
[null,null,null,null,null,null,null,null,null,0]
[null,null,null,null,null,null,null,null,null,0]
[null,null,null,null,null,null,null,null,null,0]
[null,null,null,null,null,425,"Текуће поправке и одржавање",4700000,null,4700000]
[null,null,null,null,null,426,"Материјал",3550000,150000,3700000]
[null,null,null,null,244,482,"Порези, обавезне таксе, пенали и казне",120000,null,120000]
[null,null,null,null,null,482,"Порези, обавезне таксе, пенали и казне",150000,null,{"$f":"H2660","v":150000}]
[null,null,null,null,null,null,null,null,null,0]
[null,null,null,null,null,null,null,null,null,0]
[null,null,null,null,null,null,null,null,null,0]
[null,null,null,null,null,null,null,null,null,0]
[null,null,null,null,null,null,null,null,null,0]
[null,null,null,null,null,null,null,null,null,0]
[null,null,null,null,null,null,null,null,null,0]
[null,null,null,null,null,null,null,null,null,0]
[null,null,null,null,null,null,null,null,null,0]
[null,null,null,null,null,null,null,null,null,0]
[null,null,null,null,null,null,null,null,null,0]
[null,null,null,null,null,null,null,null,null,0]
[null,null,null,null,null,null,null,null,null,0]
[null,null,null,null,null,null,null,null,null,0]
[null,null,null,null,null,null,null,null,null,0]
[null,null,null,null,null,null,null,null,null,0]
[null,null,null,null,null,null,null,null,null,0]
[null,null,null,null,null,null,null,null,null,0]
[null,null,null,null,null,null,null,null,null,0]
[null,null,null,null,null,null,null,null,null,0]
[null,null,null,null,null,null,null,null,null,0]
[null,null,null,null,null,null,null,null,null,0]
[null,null,null,null,null,null,null,null,null,0]
[null,null,null,null,null,null,null,null,null,0]
[null,null,null,null,null,null,null,null,null,0]
[null,null,null,null,null,null,null,null,null,0]
[null,null,null,null,null,null,null,null,null,0]
[null,null,null,null,null,null,null,null,null,0]
[null,null,null,null,null,null,null,null,null,0]
[null,null,null,null,null,null,null,null,null,0]
[null,null,null,null,null,null,null,null,null,0]
[null,null,null,null,null,null,null,null,null,0]
[null,null,null,null,null,null,null,null,null,0]
[null,null,null,null,null,null,null,null,null,0]
[null,null,null,null,null,null,null,null,null,0]
[null,null,null,null,null,null,null,null,null,0]
[null,null,null,null,null,null,null,null,null,0]
[null,null,null,null,null,426,"Материјал",3600000,null,3600000]
[null,null,null,null,null,482,"Порези, обавезне таксе, пенали и казне",120000,null,120000]
[null,null,null,null,245,483,"Новчане казне и пенали по решењу судова",50000,null,50000]
[null,null,null,null,null,512,"Машине и опрема",11000000,null,11000000]
[null,null,null,null,null,null,null,null,null,0]
[null,null,null,null,null,null,null,null,null,0]
[null,null,null,null,null,null,null,null,null,{"$f":"H2704+I2704","v":0}]
[null,null,null,null,null,null,null,null,null,0]
[null,null,null,null,null,null,null,null,null,0]
[null,null,null,null,null,null,null,null,null,0]
[null,null,null,null,null,null,null,null,null,0]
[null,null,null,null,null,null,null,null,null,0]
[null,null,null,null,null,null,null,null,null,0]
[null,null,null,null,null,null,null,null,null,0]
[null,null,null,null,null,null,null,null,null,0]
[null,null,null,null,null,null,null,null,null,0]
[null,null,null,null,null,null,null,null,null,0]
[null,null,null,null,null,null,null,null,null,0]
[]
[]
[]
[]
[]
[]
[]
[]
[]
[]
[]
[]
[]
[null,null,null,null,null,483,"Новчане казне и пенали по решењу судова",50000,null,{"$f":"H2729","v":50000}]
[null,null,null,null,null,511,"Зграде и грађевински објекти",5500000,null,{"$f":"H2730+I2730","v":5500000}]
[null,null,null,null,246,511,"Зграде и грађевински објекти - завршетак радова на реконструкцији зграде Дома културе",5500000,null,{"$f":"H2731","v":5500000}]
[null,null,null,null,247,512,"Машине и опрема (административне опреме, опреме за културу и спорт, кино пројектора, моторне и механичке опреме)",17200000,10557000,{"$f":"H2732+I2732","v":27757000}]
[null,null,null,null,248,515,"Остала нематеријална имовина - израда портала за рад сектора за маркетинг",330000,null,{"$f":"H2733","v":330000}]
[null,null,null,null,null,null,"Извор финансирања за ПА: 1201-0001"]
[null,null,null,null,null,null,"01 - Приходи из буџета",{"$f":"H2577+H2578+H2579+H2580+H2581+H2582+H2619+H2620+H2636+H2637+H2638+H2639+H2659+H2700+H2731+H2732+H2733","v":97345000}," ",{"$f":"H2735","v":97345000}]
[null,null,null,null,null,null,"07- Приходи од Републике",null,10407000,{"$f":"I2736","v":10407000}]
[null,null,null,null,null,null,"08 - Приходи од донација",null,150000,{"$f":"I2737","v":150000}]
[null,null,null,null,null,null,"Укупно за ПА: 1201-0001",{"$f":"H2735","v":97345000},{"$f":"I2736+I2737","v":10557000},{"$f":"J2577+J2578+J2579+J2580+J2617+J2618+J2634+J2635+J2636+J2637+J2657+J2698+J2699+J2729+J2730+J2732+J2733","v":107902000}]
[]
[null,null,"1201-0002",null,null,null,"ПА: Јачање културне продукције и уметничког стваралаштва"]
[null,null,null,810,null,null,"Услуге рекреације и спорта"]
[]
[]
[]
[]
[]
[]
[]
[]
[]
[]
[]
[]
[]
[null,null,"1201-0002",null,null,null,"ПА: Јачање културне продукције и уметничког стваралаштва"]
[null,null,null,820,null,null,"Услуге културе"]
[null,null,null,null,249,"423","Услуге по уговору",3600000,null,{"$f":"H2757+I2757","v":3600000}]
[null,null,null,null,250,424,"Специјализоване услуге",1500000,null,{"$f":"H2758+I2758","v":1500000}]
[null,null,null,null,251,426,"Материјал",400000,null,400000]
[null,null,null,null,null,null,"Извор финансирања за ПА: 1201-0002"]
[null,null,null,null,null,null,"01 - Приходи из буџета",{"$f":"H2757+H2758+H2759","v":5500000},null,{"$f":"H2761+I2761","v":5500000}]
[null,null,null,null,null,null,"07 - Приходи од Републике"]
[null,null,null,null,null,null,"Укупно за ПА: 1201-0002",{"$f":"H2761","v":5500000},null,{"$f":"J2757+J2758+J2759","v":5500000}]
[null,null,null,null,null,null,"Извор финансирања за функцију: 820"]
[null,null,null,null,null,null,"01 - Приходи из буџета",{"$f":"H2738+H2763","v":102845000},null,{"$f":"H2765","v":102845000}]
[null,null,null,null,null,null,"07 - Приходи од Републике",null,{"$f":"I2736","v":10407000},{"$f":"I2766","v":10407000}]
[null,null,null,null,null,null,"08 - Приходи од донација",null,{"$f":"I2737","v":150000},{"$f":"I2767","v":150000}]
[null,null,null,null,null,null,"Укупно за функцију: 820",{"$f":"H2765","v":102845000},{"$f":"I2766+I2767","v":10557000},{"$f":"J2738+J2763","v":113402000}]
[]
[null,null,null,null,null,null,"Извор финансирања за раздео: 5"]
[null,null,null,null,null,null,"01 - Приходи из буџета",{"$f":"H383+H403+H448+H459+H468+H491+H580+H592+H620+H633+H643+H676+H687+H709+H730+H799+H855+H865+H893+H907+H954+H1056+H1137+H1156+H1183+H1211+H1224+H1244+H1257+H1268+H1279+H1560+H1642+H1668+H1695+H1878+H2059+H2377+H2549+H2768","v":2614186000},null,{"$f":"H2771+I2771","v":2614186000}]
[null,null,null,null,null,null,"07 - Приходи од Републике",null,18257000,{"$f":"I2772","v":18257000}]
[null,null,null,null,null,null,"08 - Приходи од ",null,150000,{"$f":"I2773","v":150000}]
[null,null,null,null,null,null,"13 - Из средстава суфицита",null,650000000,{"$f":"I2774","v":650000000}]
[null,null,null,null,null,null,"Укупно за раздео: 5",{"$f":"H383+H403+H448+H459+H471+H491+H580+H592+H620+H633+H643+H676+H687+H709+H730+H799+H855+H865+H893+H907+H954+H1056+H1137+H1156+H1183+H1211+H1224+H1244+H1257+H1268+H1279+H1560+H1642+H1668+H1695+H1878+H2059+H2377+H2549+H2768","v":2614186000},{"$f":"I2772+I2773+I2774","v":668407000},{"$f":"J2771+J2772+J2773+J2774","v":3282593000}]
[]
[]
[]
[]
[]
[]
[]
[]
[]
[]
[]
[]
[]
[]
[]
[]
[]
[]
[]
[]
[]
[]
[]
[]
[]
[]
[]
[]
[]
[]
[]
[]
[]
[]
[]
[]
[]
[]
[]
[]
[]
[]
[]
[]
[]
[]
[]
[]
[]
[]
[]
[]
[]
[]
[]
[]
[]
[]
[]
[null,null,null,null,null,null,"15 - Из средстава суфицита- донације",null,827251,{"$f":"I2835","v":827251}]
[null,null,null,null,null,null,"Укупно за раздео: 5",{"$f":"H383+H403+H448+H459+#REF!+H491+H580+H592+H620+H633+H643+H676+H687+H709+H730+H799+H855+H865+H893+H907+H954+H1056+H1135+H1156+H1183+H1211+H1224+H1244+H1257+H1268+H1309+H1560+H1642+H1668+H1695+H1878+H2059+H2377+H2571+H2768","v":{"$error":"#REF!"}},{"$f":"#REF!+I2772+I2773+I2774+I2835","v":{"$error":"#REF!"}},{"$f":"J383+J403+J448+J459+#REF!+J491+J580+J592+J620+J633+J643+J676+J687+J709+J730+J799+J855+J865+J893+J907+J954+J1056+J1135+J1156+J1183+J1211+J1224+J1244+J1257+J1268+J1309+J1560+J1642+J1668+J1695+J1878+J2059+J2377+J2571+J2768","v":{"$error":"#REF!"}}]
[]
[null,null,null,null,null,null,"Извор финансирања за раздео: 1, 2, 3, 4 и 5"]
[null,null,null,null,null,null,"01 - Приходи из буџета",1878657743,null,{"$f":"H2839","v":1878657743}]
[]
[]
[]
[]
[]
[]
[]
[]
[]
[]
[]
[]
[null,null,null,null,null,null,"Извори финансирања за раздео: 1, 2, 3, 4 и 5"]
[null,null,null,null,null,null,"01 - Приходи из буџета",{"$f":"H86+H189+H206+H309+H383+H403+H448+H459+#REF!+H491+H580+H592+H620+H633+H643+H676+H687+H709+H730+H799+H855+H865+H893+H907+H954+H1056+H1135+H1156+H1183+H1211+H1224+H1244+H1257+H1268+H1309+H1560+H1642+H1668+H1695+H1878+H2059+H2377+H2571+H2768","v":{"$error":"#REF!"}},null,{"$f":"H2853","v":{"$error":"#REF!"}}]
[null,null,null,null,null,null,"07 - Приходи од Републике",null,18257000,18257000]
[null,null,null,null,null,null,"08 - Приходи од трансфера од физичких и правних лица",null,150000,{"$f":"I2855","v":150000}]
[null,null,null,null,null,null,"13 - Из средстава суфицита",null,650000000,{"$f":"I2856","v":650000000}]
[null,null,null,null,null,null,"Укупно  за раздео: 1, 2, 3, 4 и 5",{"$f":"H86+H189+H206+H309+H383+H403+H448+H459+H471+H491+H580+H592+H620+H633+H643+H676+H687+H709+H730+H799+H855+H865+H893+H907+H954+H1056+H1137+H1156+H1183+H1211+H1224+H1244+H1257+H1268+H1279+H1560+H1642+H1668+H1695+H1878+H2059+H2377+H2549+H2768","v":2666593000},{"$f":"I420+I580+I676+I730+I855+I893+I954+I1056+I1137+I1878+I2768","v":668407000},{"$f":"J86+J189+J206+J309+J383+J403+J448+J459+J471+J491+J580+J592+J620+J633+J643+J676+J687+J709+J730+J799+J855+J865+J893+J907+J954+J1056+J1137+J1156+J1183+J1211+J1224+J1244+J1257+J1268+J1279+J1560+J1642+J1668+J1695+J1878+J2059+J2377+J2549+J2768","v":3335000000}]